{"text_format":"1","workbook":"xlsx","n_sheets":1,"sheets":["Fiche référencement"],"not_rendered":{"charts":0,"images":0,"macros":1,"external_links":0,"defined_names":5,"comments":0,"pivot_tables":0},"unopened":[],"bounds":{"document_bytes":16777216,"sheet_cells":100000,"rows_first":2000,"rows_last":500,"rows_between":2000,"halvings":0,"cell_chars":16384,"cell_head_chars":4096},"cells_cut":0,"cells_raw":0,"read":"whole","date_system":"1900"}

{"sheet":"Fiche référencement","index":0,"n_rows":59,"n_cols":76,"rows_kept":59,"cut":false,"hidden":false,"merged":[[1,53,2,53],[1,54,2,54],[1,55,2,55],[1,56,2,56],[1,75,2,75],[1,59,2,59],[1,60,2,60],[1,74,2,74],[1,67,2,67],[1,68,2,68],[1,69,2,69],[1,62,2,62],[1,61,2,61],[1,57,2,57],[1,58,2,58],[1,73,2,73],[1,14,1,17],[1,18,1,23],[1,51,2,51],[1,48,1,50],[1,52,2,52],[1,34,1,38],[1,29,1,33],[1,24,1,28],[1,47,2,47],[1,46,2,46],[1,45,2,45],[1,44,2,44],[1,39,1,43],[1,0,2,0],[1,1,2,1],[1,2,2,2],[1,10,2,10],[1,7,2,7],[1,5,2,5],[1,4,2,4],[1,3,2,3],[1,13,2,13],[1,8,2,8],[1,9,2,9],[1,11,2,11],[1,12,2,12],[1,71,2,71],[1,72,2,72],[1,63,2,63],[1,64,2,64],[1,65,2,65],[1,66,2,66],[1,70,2,70]]}
[{"$f":"TODAY()","v":"2023-02-13"},null,null,null,null,"REFERENCEMENT PHARMA  "]
["Marques *","Ligne / Gamme *","Référence fournisseur *","Nom du produit  *","Nom du produit SEO *","Nomenclature *","Code EAN / GENCOD *","Genre *","Date de mise sur le marché *","PAHT (€)\nPGHT (€) *","PPI (€) *","Code gestion *","Coffret *","Code EAN / Gencod référent *","Conditionnement *",null,null,null,"Poids/Dimension ARTICLE *",null,null,null,null,null,"Poids/Dimension SSPCB *",null,null,null,null,"Poids/Dimension SPCB *",null,null,null,null,"Poids/Dimension PCB *",null,null,null,null,"Poids/Dimension Palette *",null,null,null,null,"Déclinaison article: Eau de toilette XXml, XXg, N° teinte et nom teinte, … *","Accroche Marketing \n(descriptif court) *","Descriptif long du produit *","Famille olfactive\n* Parfum","Pyramide olfactive * Parfum",null,null,"Couleur dominante\n* Maq","Type de peau 1\n* Soin ","Type de peau 2 \nSoin","Protection Solaire\n* Soin","Texture\n* Soin/Maq","Nuance\n* Maq","Effet\n* Maq","Action\n* Soin/Maq","Couvrance\n* Maq","Format\n* Soin/Maq","Formulation 1\n* Soin/Maq","Formulation 2\nSoin/Maq","Soin spécifique\n* Soin","Conseils d'utilisation / \nConseils d'application / \nAstuce de parfumage *","Composition produit (Liste des ingrédients) *","Bénéfice produit *","EAN produit \nCross selling 1 *","EAN produit Cross selling 2","EAN produit Cross selling 3","EAN produit\nUp selling 1 *","EAN produit \nUp selling 2","EAN produit \nUp selling 3","Code couleur web","FITPC\nRéférence 2015","Mots clés SEO cachés. \nA utiliser que pour le moteur de recherche. Ne pas utiliser sur la page produit."]
[null,null,null,null,null,null,null,null,null,null,null,null,null,null,"SSPCB","SPCB","PCB","Palette","Poids (gr)","Largeur (mm)","Longueur (mm)","Hauteur (mm)","Contenance","Unité Contenance","Poids (gr)","Largeur (mm)","Longueur (mm)","Hauteur (mm)","Code EAN / Gencod","Poids (gr)","Largeur (mm)","Longueur (mm)","Hauteur (mm)","Code EAN / Gencod","Poids (gr)","Largeur (mm)","Longueur (mm)","Hauteur (mm)","Code EAN / Gencod","Poids (gr)","Largeur (mm)","Longueur (mm)","Hauteur (mm)","Code EAN / Gencod",null,null,null,null,"Note de tête","Note de cœur","Note de fond"]
["Skinceuticals","H.A.\tIntensifier","VFR08748","H.A. Intensifier sérum anti-rides à l'acide hyaluronique 30ml","Sérum visage hydratant anti-rides à l'acide hyaluronique - Tous types de peaux","03 - SOINS | 112 - Soin visage | 073 - Anti-âge   | 0631 - Sérum anti-âge","3606000436442","MIXTE",{"$f":"TEXT(\n  \"2018-12-07\",\n  \"JJ/MM/AA\"\n)","v":""},"63,40","","Permanent ","Non","3606000436442","","","35","2800","105","38","38","108","30.0","ml","","","","","","","","","","","3675","220","320","135","03433425327532","294000","1000","1200","675","03433425327556","\n  Pipette 30 MLT\n \n \n \n    \n      \n   ","Sérum correcteur multiactions qui booste le taux d’acide hyaluronique de la peau","H.A. Intensifier renferme de l'acide hyaluronique, du Pro-Xylane™, ainsi que des extraits de racine de réglisse et de riz violet pour maintenir et booster la synthèse d'acide hyaluronique naturelle dans la peau et éviter sa dégradation. Complément idéal aux injections de comblement, ce sérum correcteur quotidien atténue l’apparence des rides de la patte d’oie, du sillon nasogénien et autres rides et ridules. Excellente base pour recevoir d’autres soins et le maquillage."," ","","","","NA","Tout type de peau","","NA","Sérum","","","Repulpe","NA","Pipette","Sans parfum","","NA","Matin et soir, appliquer 2 à 3 gouttes sur l'ensemble du visage, le contour des yeux et des lèvres, le cou et le décolleté. Poursuivre avec un soin correcteur ciblé si nécessaire.","855159 69 - INGREDIENTS:  AQUA / WATER • CYCLOHEXASILOXANE • GLYCERIN • ALCOHOL DENAT. • HYDROXYPROPYL TETRAHYDROPYRANTRIOL • PROPYLENE GLYCOL • DIPOTASSIUM GLYCYRRHIZATE • POLYSILICONE-11 • POLYMETHYLSILSESQUIOXANE • SODIUM HYALURONATE • DIMETHICONE • TOCOPHEROL • PHENOXYETHANOL • CAPRYLOYL SALICYLIC ACID • OCTYLDODECANOL • BIS-PEG/PPG-16/16 PEG/PPG-16/16 DIMETHICONE • PEG-20 METHYL GLUCOSE SESQUISTEARATE • AMMONIUM POLYACRYLOYLDIMETHYL TAURATE • CAPRYLYL GLYCOL • XANTHAN GUM • DEXTRIN • ORYZA SATIVA EXTRACT / RICE EXTRACT • DISODIUM EDTA • CAPRYLIC/CAPRIC TRIGLYCERIDE • SODIUM HYDROXIDE • ADENOSINE • CITRUS NOBILIS PEEL OIL / MANDARIN ORANGE PEEL OIL • LIMONENE • T-BUTYL ALCOHOL • CELLULOSE ACETATE BUTYRATE • POLYPHOSPHORYLCHOLINE GLYCOL ACRYLATE • POLYVINYL ALCOHOL • SODIUM CHLORIDE • BUTYLENE GLYCOL • PENTAERYTHRITYL TETRA-DI-T-BUTYL HYDROXYHYDROCINNAMATE (F.I.L. D187316/1).\nLes listes d’ingrédients entrant dans la composition des produits de notre marque sont régulièrement mises à jour. Avant d’utiliser un produit de notre marque, vous êtes invités à lire la liste d’ingrédients figurant sur son emballage afin de vous assurer que les ingrédients sont adaptés à votre utilisation personnelle","Sérum booster d'acide hyaluronique\nUne synergie d'actifs hautement concentrés pour stimuler l'Acide Hyaluronique de la peau et prévenir de sa dégradation.\n- 1,3% Acide Hyaluronique :\n    - 1% fragmenté : stimule la synthèse pour repulper\n    - 0,2% à haut poids moléculaire : boost l'hydratation\n    - 0,1% encapsulé : libération prolongée\n- 10% Proxylane : Lisse les rides et redonne du volume à la peau\n- 2,2% Glycyrrhizate de Potassium (extrait de réglisse) + 0,2% Extrait de riz violet : Préviennent de la dégradation de l'acide hyaluronique","3606000463783","0635494363210","0635494349207","","","","","302 F - 01","sérum anti-rides à l'acide hyaluronique,sérum à l'acide hyaluronique,sérum anti-rides,sérum repulpant,sérum anti-rides visage,sérum repulpant visage"]
["Skinceuticals","H.A. Intensifier","VFR09346","Coffret Noël Rides + Perte de fermeté - H.A. Intensifier 30ml","Routine Noël anti-âge sérum correcteur à l'acide hyaluronique + sérum antioxydant à la vitamine C pure offert","","3433425405520","FEMME",{"$f":"TEXT(\n  \"2022-10-01\",\n  \"JJ/MM/AA\"\n)","v":""},"63,40","","Permanent ","Oui","3433425405520","","3","6","240","333","51","190","148","1.0","Unité","","","","","","999","153","190","148","03433425417325","1998","285","385","225","03433425417332","79920","1000","1200","900","03433425417356","\n  Pipette 1 PCE\n \n \n \n    \n      \n   ","Routine Noël anti-âge sérum correcteur à l'acide hyaluronique + sérum antioxydant à la vitamine C pure offert","SkinCeuticals, la haute efficacité recommandée et prescrite par les dermatologues, médecins et chirurgiens esthétiques. Nos formules associent une forte concentration en actifs purs à des textures à haute absorption cutanée pour offrir une haute efficacité anti-âge autour de 3 principes fondamentaux : prévenir, corriger et protéger.\n\nCELEBREZ NOËL ET OFFREZ LA HAUTE EFFICACITE ANTI-ÂGE AVEC VOTRE ROUTINE INTEGRALE RIDES + PERTE DE FERMETE. Découvrez nos sérums iconiques et leur action anti-âge sur-mesure et complète, intégrés dans un élégant coffret premium et eco-conçu, en édition limitée.\n\n- Le sérum correcteur anti-âge H.A. INTENSIFIER est capable de booster de 30% le taux d'acide hyaluronique cutané et d'en préserver sa dégradation. Formulé à base de 10% de ProxylaneTM, de 1.3% d'acide hyaluronique et de 2.2% d'extraits de riz violet et de racine de réglisse, ce sérum haute efficacité anti-âge procure une hydratation instantanée et révèle une peau plus ferme, plus lisse, et repulpée. Il atténue l'apparence des rides de la patte d'oie, du sillon nasogénien et autres rides et ridules. Convient à tous types de peau. Testé post-injections.\n\n- EN CADEAU, pour compléter votre routine: le sérum antioxydant C E FERULIC offert, qui associe la vitamine C pure hautement concentrée à 15%, la vitamine E et l'acide férulique afin de maximiser l'efficacité antioxydante. Cette formulation synergique optimise la protection de la peau contre les agressions environnementales afin de prévenir l'apparition des signes de vieillissement prématuré dus aux effets néfastes du soleil et de l'environnement (rides, ridules, perte de fermeté, perte d'éclat, taches brunes), tout en stimulant la production de collagène et d'élastine pour régénérer la peau. La peau est plus lumineuse, plus ferme et visiblement plus jeune. Convient aux peaux normales à sèches."," ","","","","NA","Tout type de peau","Mature","NA","Sérum","","","Anti rides","NA","Pipette","Sans parfum","","Anti âge global","H.A. INTENSIFIER: matin et soir, appliquer 4 à 6 gouttes sur le visage, le contour des yeux et des lèvres, le cou et le décolleté.\n\nC E FERULIC : le matin, sur peau propre, appliquer 3 à 4 gouttes sur l’ensemble du visage, du cou et du décolleté.","740019 21 - INGREDIENTS:  AQUA / WATER • DIPROPYLENE GLYCOL • ASCORBIC ACID • GLYCERIN • LAURETH-23 • PHENOXYETHANOL • TOCOPHEROL • FERULIC ACID • SODIUM HYALURONATE (F.I.L. D31590/4).\nLes listes d’ingrédients entrant dans la composition des produits de notre marque sont régulièrement mises à jour. Avant d’utiliser un produit de notre marque, vous êtes invités à lire la liste d’ingrédients figurant sur son emballage afin de vous assurer que les ingrédients sont adaptés à votre utilisation personnelle","Le sérum H.A. INTENSIFIER contient un trio d'actifs anti-âge pour une action correctrice ciblée sur les rides et la perte de fermeté:\n-10% PROXYLANETM : augmente la synthèse naturelle de l’acide hyaluronique, redonne du volume à la peau et lisse les rides\n- 2.2% EXTRAITS DE RIZ VIOLET ET DE RACINE DE RÉGLISSE : agissent en synergie pour prévenir la dégradation de l’acide hyaluronique\n- 1.3% ACIDE HYALURONIQUE : hydratant naturel, pouvant retenir 1 000 fois son propre poids en eau","635494317206 - HYDRATING B5","","","","","","","","Coffre Noel SkinCeuticals,Coffret H.A Intensifier,Coffret Niël H.A Intensifier,Coffret Noël Hydratation & anti-âge"]
["Skinceuticals","Blemish & Age","MB519600","Blemish + Age Toner Lotion tonique purifiante exfoliante 200ml","Lotion tonique purifiante exfoliante","03 - SOINS | 112 - Soin visage | 076 - Lotion et Tonique | 0204 - Lotion et Tonique","3606000471382","MIXTE",{"$f":"TEXT(\n  \"2018-12-05\",\n  \"JJ/MM/AA\"\n)","v":""},"24,80","","Permanent ","Non","0635494391206","","3","24","1536","233","47","47","155","200.0","ml","","","","","","705","47","141","155","03337875862790","5850","217","317","177","03337875862806","374900","968","1168","709","03337875862820","\n  Flacon 200 MLT\n \n \n \n    \n      \n   ","Lotion tonique à l’acide lipo-hydroxy. Élimine les pores obstrués et exfolie la surface de la peau.","Conçu pour les peaux matures sujettes aux imperfections, le tonique LHA  est  formulé  à partir  d’une triple combinaison  d’agents exfoliants : acide lipo-hydroxy, acide glycolique et acide salicylique, pour éliminer efficacement l’excès de sébum et les impuretés, afin de  décongestionner les pores. Grâce à sa formule au pH bas, ce tonique exfolie efficacement les cellules mortes pour révéler un teint plus lumineux, un grain de peau plus homogène et affiné."," ","","","","NA","Mixte","Grasse","","Liquide","","","Purifie","NA","Flacon","NA","","NA","Ce soin peut être utilisé matin et/ou soir. Appliquer 4 à 6 gouttes sur le visage, le cou et le décolleté, en évitant le contour des yeux.","855063 1 - INGREDIENTS:  AQUA / WATER • ALCOHOL DENAT. • GLYCOLIC ACID • SODIUM HYDROXIDE • CAPRYLOYL SALICYLIC ACID • SALICYLIC ACID (F.I.L. D169297/1).\nLes listes d’ingrédients entrant dans la composition des produits de notre marque sont régulièrement mises à jour. Avant d’utiliser un produit de notre marque, vous êtes invités à lire la liste d’ingrédients figurant sur son emballage afin de vous assurer que les ingrédients sont adaptés à votre utilisation personnelle","Acide salicylique capryloyl: Dotée d’une structure lipidique semblable à celle de la peau humaine, cette forme d’acide salicylique exfolie la peau en précision et possède une action antibactérienne et anti-inflammatoire.\nAcide glycolique: Cet AHA élimine l’accumulation de cellules mortes et améliore l’hydratation de la peau.\nAcide salicylique: Cet acide bêta-hydroxylé resserre les pores et réduit les imperfections.","3606000471467","0635494310207","0635494391206","","","","","302 F - 01","lotion tonique,lotion astringente,tonique visage,lotion tonique visage,lotion peau grasse"]
["Skinceuticals","Antioxydant Lip Repair","S1227002","ANTIOXYDANT LIP REPAIR Gel antioxydant repulpant lèvres 10ml","Soin pour les lèvres antioxydant et repulpant","03 - SOINS | 112 - Soin visage | 180 - Soin des yeux et des lèvres | 0238 - Soin des lèvres","3606000498983","MIXTE",{"$f":"TEXT(\n  \"2018-12-07\",\n  \"JJ/MM/AA\"\n)","v":""},"33,30","","Permanent ","Non","3606000498983","","36","144","3456","29","25","25","107","10.0","ml","","","","","","1161","156","156","111","03606000498990","5073","344","360","152","03606000499003","121747","1016","1219","610","03606000499010","\n  Flacon Pompe 10 MLT\n \n \n \n    \n      \n   ","Ce soin ciblé lutte contre les dommages environnementaux tout en lissant et en affinant la surface des lèvres","Ce soin puissant lutte contre les signes des dommages environnementaux tout en lissant et en réhydratant la surface des lèvres."," ","","","","NA","Tout type de peau","Normale","NA","Gel","","","Répare","NA","Flacon pompe","Sans parfum","","NA","Soin des lèvres quotidien (appliquer en couche légère et compléter avec une protection solaire)","740034 21 - INGREDIENTS:  AQUA / WATER • HYDROGENATED POLYISOBUTENE • GLYCERIN • CERA MICROCRISTALLINA / MICROCRYSTALLINE WAX • DIMETHICONE • UNDECANE • TRIDECANE • PEG/PPG-18/18 DIMETHICONE • SILICA • ALCOHOL DENAT. • TOCOPHERYL ACETATE • POLYMETHYLSILSESQUIOXANE • ETHYLHEXYL PALMITATE • PHENOXYETHANOL • LAURYL PEG-9 POLYDIMETHYLSILOXYETHYL DIMETHICONE • TOCOPHEROL • MAGNESIUM SULFATE • DISTEARDIMONIUM HECTORITE • TRIBEHENIN • CAPRYLYL GLYCOL • ALLANTOIN • DISODIUM EDTA • HYDROXYETHYL UREA • SORBITAN ISOSTEARATE • SODIUM HYALURONATE • PENTYLENE GLYCOL • FAEX EXTRACT / YEAST EXTRACT • LACTIC ACID • BIOSACCHARIDE GUM-1 • PALMITOYL TRIPEPTIDE-1 • SILYBUM MARIANUM EXTRACT • HELIANTHUS ANNUUS SEED OIL / SUNFLOWER SEED OIL (F.I.L. D214618/1).\nLes listes d’ingrédients entrant dans la composition des produits de notre marque sont régulièrement mises à jour. Avant d’utiliser un produit de notre marque, vous êtes invités à lire la liste d’ingrédients figurant sur son emballage afin de vous assurer que les ingrédients sont adaptés à votre utilisation personnelle","Ce soin ciblé lutte contre les dommages environnementaux tout en lissant et en affinant la surface des lèvres.\n- Silymarine : Cet antioxydant puissant neutralise les radicaux libres et combat les signes de vieillissement\n- Alpha tocophérol (vitamine E) : Alpha tocophérol (vitamine E)\n- Hydroxyethyl Urée : Ses puissantes propriétés de fixation de l’eau rééquilibrent les niveaux d’hydratation pour améliorer l’élasticité de la peau\n- Allantoïne : Un extrait de plantes anti-irritation connu pour ses propriétés dermo-apaisantes\n- Acide hyaluronique : Cet humectant naturel peut retenir 1 000 fois son propre poids en eau, ce qui en fait un hydratant efficace","0635494363210","3606000436442","","","","","","302 F - 01","soin anti-âge lèvres,soin des lèvres,soin antioxydant lèvres"]
["Skinceuticals","Phyto Corrective Masque","S2066903","PHYTO CORRECTIVE MASQUE Masque apaisant hydratant 60ml","Masque hydratant apaisant enrichi en actifs végétaux et acide hyaluronique","03 - SOINS | 112 - Soin visage | 077 - Masque | 0209 - Hydratation","3606000436725","MIXTE",{"$f":"TEXT(\n  \"2018-12-07\",\n  \"JJ/MM/AA\"\n)","v":""},"47,20","","Permanent ","Non","3606000436725","","","32","1152","258","69","69","62","60.0","ml","","","","","","","","","","","8614","297","297","143","03606000436749","310093","892","1187","429","03606000436756","\n  Pot 60 MLT\n \n \n \n    \n      \n   ","Masque visage apaisant et hydratant intensif pour les peaux ponctuellement réactives\nRiche en ingrédients botaniques et en acide hyaluronique","Soin hydratant et apaisant, Phyto Corrective Masque soulage la réactivité cutanée due à l’exposition au soleil, à l’activité physique, aux températures extrêmes et autres potentielles agressions extérieures. Formulé à partir d’actifs hautement concentrés:  concombre, thym et extraits de feuilles d’olivier, auxquels viennent s’ajouter un dipeptide apaisant et de l’acide hyaluronique aux vertus hydratantes. Atténue les rougeurs visibles, les sensations d’inconfort et d'échauffements tout en permettant à la peau de redevenir douce, lisse et éclatante."," ","","","","NA","Tout type de peau","Normale","NA","Gel","","","Apaise","NA","Pot","Sans parfum","","NA","Ce masque visage peut être appliqué avec ou sans rinçage, ou en soin de nuit. Appliquer en couche épaisse sur la peau du visage, du décolleté ou du cou préalablement nettoyée en évitant le contour des yeux et des lèvres. Laisser poser 10 à 15 minutes. Rincer à l’eau froide si désiré. Utiliser 2 à 3 fois par semaine ou selon les besoins. Après une intervention, appliquer en respectant les instructions du praticien.","855203 13 - INGREDIENTS:  AQUA / WATER • GLYCERIN • ALCOHOL DENAT. • DIPROPYLENE GLYCOL • DIMETHICONE • BUTYLENE GLYCOL • PROPYLENE GLYCOL • PEG-8 • PEG/PPG/POLYBUTYLENE GLYCOL-8/5/3 GLYCERIN • AMMONIUM POLYACRYLOYLDIMETHYL TAURATE • PHENOXYETHANOL • CARBOMER • DIMETHICONOL • CAPRYLYL GLYCOL • SODIUM HYALURONATE • CHLORPHENESIN • OLEA EUROPAEA LEAF EXTRACT / OLIVE LEAF EXTRACT • SODIUM HYDROXIDE • TETRASODIUM EDTA • SODIUM CITRATE • PARFUM / FRAGRANCE • ACETYL DIPEPTIDE-1 CETYL ESTER • CUCUMIS SATIVUS FRUIT EXTRACT / CUCUMBER FRUIT EXTRACT • SODIUM BENZOATE • THYMUS VULGARIS FLOWER/LEAF EXTRACT - THYME FLOWER/LEAF EXTRACT • CITRUS GRANDIS EXTRACT / GRAPEFRUIT FRUIT EXTRACT • TOLUENE SULFONIC ACID • BENZYL BENZOATE • CELLULOSE ACETATE BUTYRATE • BENZYL ALCOHOL • ALPHA-ISOMETHYL IONONE • POLYPHOSPHORYLCHOLINE GLYCOL ACRYLATE • LINALOOL • MORUS ALBA ROOT EXTRACT • POLYVINYL ALCOHOL • CITRONELLOL • CI 19140 / YELLOW 5 • CI 42090 / BLUE 1 • SODIUM CHLORIDE (F.I.L. D211646/1).\nLes listes d’ingrédients entrant dans la composition des produits de notre marque sont régulièrement mises à jour. Avant d’utiliser un produit de notre marque, vous êtes invités à lire la liste d’ingrédients figurant sur son emballage afin de vous assurer que les ingrédients sont adaptés à votre utilisation personnelle","Masque visage calmant intensif pour réhydrater et apaiser les peaux réactives\n- 9 % d’extraits végétaux apaisants : Un mélange unique d’extraits de concombre, de thym et d’olive qui apaise la peau\n- Dipeptide apaisant : Aide à réduire la perception de sensibilité à la chaleur\n- Acide hyaluronique : Aide à réduire la perception de sensibilité à la chaleur","3606000463622","0635494310207","0635494349207","","","","","302 F - 01","masque visage hydratant,masque visage peaux sensibles,masque visage"]
["Skinceuticals","Body Tightening Concentrate","S0799802","BODY TIGHTENING CONCENTRATE crème anti-cellulite 150ml","Crème raffermissante anti-cellulite Corps et Fessiers","03 - SOINS | 110 - Corps | 057 - Amincissant et Raffermissant | 0156 - Raffermissant","3606000495531","FEMME",{"$f":"TEXT(\n  \"2018-12-05\",\n  \"JJ/MM/AA\"\n)","v":""},"55,90","","Permanent ","Non","3606000495531","","","56","1680","216","50","43","178","150.0","ml","","","","","","","","","","","12508","364","364","194","03606000496415","375240","1016","1219","968","03606000416215","\n  Flacon Pompe 150 MLT\n \n \n \n    \n      \n   ","Soin pour le corps raffermissant, formulé pour améliorer le relâchement cutané et offrir une sensation de fraîcheur immédiate.","Fluide léger quotidien, Body Tightening Concentrate offre un complexe associant tripeptide, extrait de levure, protéine de riz hydrolysée et acide lipo-hydroxy. Son action stimule la production d'acide hyaluronique, renforce la matrice de soutien de la peau, réduit le relâchement cutané et améliore la fermeté. Idéal sur les zones telles que l'abdomen, les fesses, les cuisses, les genoux et les bras. Parfait relai à domicile des soins professionnels utilisant des appareils raffermissants."," ","","","","NA","Normale","Grasse","","Fluide","","","Raffermi","NA","Flacon pompe","Sans parfum","","Minceur","Deux fois par jour, appliquer en fine couche sur les zones du corps concernées.","855096 38 - INGREDIENTS:  AQUA / WATER • GLYCERIN • ALCOHOL DENAT. • DIMETHICONE • CYCLOHEXASILOXANE • PENTAERYTHRITYL TETRAETHYLHEXANOATE • DIMETHICONE/VINYL DIMETHICONE CROSSPOLYMER • MENTHYL LACTATE • POLYACRYLAMIDE • PENTYLENE GLYCOL • MICROCRYSTALLINE CELLULOSE • PHENOXYETHANOL • AMMONIUM POLYACRYLDIMETHYLTAURAMIDE / AMMONIUM POLYACRYLOYLDIMETHYL TAURATE • C13-14 ISOPARAFFIN • PANTHENOL • FAEX EXTRACT / YEAST EXTRACT • CAPRYLOYL SALICYLIC ACID • XANTHAN GUM • HYDROLYZED RICE PROTEIN • POLYMETHYLSILSESQUIOXANE • TRIETHANOLAMINE • LAURETH-7 • CELLULOSE GUM • METHYLSILANOL MANNURONATE • ROSMARINUS OFFICINALIS LEAF OIL / ROSEMARY LEAF OIL • DISODIUM EDTA • ADENOSINE • DIMETHICONOL • TOCOPHERYL ACETATE • TETRADECYL AMINOBUTYROYLVALYLAMINOBUTYRIC UREA TRIFLUOROACETATE • LIMONENE (F.I.L. D158123/1).\nLes listes d’ingrédients entrant dans la composition des produits de notre marque sont régulièrement mises à jour. Avant d’utiliser un produit de notre marque, vous êtes invités à lire la liste d’ingrédients figurant sur son emballage afin de vous assurer que les ingrédients sont adaptés à votre utilisation personnelle","Permet de retrouver une peau lisse et ferme\n- Tripeptide\n- Extrait de levure\n- Protéine de riz hydrolisée\n- LHA","0635494328202","3606000436442","","","","","","302 F - 01","crème anti-cellulite,crème amincissante,Crème raffermissante,crème corps anti-cellulilte,crème corps raffermissante"]
["Skinceuticals","Oil Shield Uv Defense Spf 50","MB302000","Oil Shield UV Defense Crème de Photoprotection Quotidienne Matifiante SPF 50 30ml","Crème solaire matifiante haute protection pour peaux mixtes à grasses","03 - SOINS | 111 - Solaire | 071 - Protection | 0187 - Visage","3337875749909","MIXTE",{"$f":"TEXT(\n  \"2021-03-01\",\n  \"JJ/MM/AA\"\n)","v":""},"24,50","","Permanent ","Non","3337875749909","","","138","5520","46","36","28","127","30.0","ml","","","","","","","","","","","6859","285","385","225","03337875753500","274860","955","1155","901","03337875753524","\n  Tube 30 MLT\n \n \n \n    \n      \n   ","Crème de photoprotection quotidienne matifiante pour les peaux mixtes à grasses, qui réduit la brillance tout en délivrant une haute protection SPF50 contre les UVA/UVB avec un fini toucher-sec.","Crème de photoprotection quotidienne matifiante, Oil Shield UV Defense SPF 50 délivre une haute protection à large spectre contre les UVB, UVA et UVA longs. Le complexe filtrant UV Defense combine un filtre minéral à des filtres organiques qui permettent de stabiliser la formule et de garantir une protection optimale quotidienne face aux rayons UV. A ce complexe s'ajoute de la Silice Silicate qui permet de réduire les excès de sébum et de contrôler la brillance pour un fini matifiant et un effet flouteur.  \nFormulée avec une texture crème ultra-légère à haute absorption cutanée, cette crème solaire visage matifiante offre une sensation de fraicheur et de confort immédiat tout en délivrant une protection homogène sans résidu au fini toucher-sec. Idéal pour les peaux mixtes à grasses, Oil Shield UV Defense SPF 50 convient à tous les types de peaux, mêmes sensibles. Convient également en post-procédures esthétiques."," ","","","","NA","Tout type de peau","Grasse","Protection Moyenne (SPF 30)","Crème","","","Protège","","Tube","Sans parfum","","NA","Le matin, appliquer la photoprotection sur le visage, le cou et le décolleté avant de se maquiller et juste avant l'exposition. Renouveler généreusement et fréquemment l’application, surtout après avoir nagé, transpiré ou vous être essuyé.","940347 4 - INGREDIENTS:  AQUA / WATER • SILICA • ISONONYL ISONONANOATE • BIS-ETHYLHEXYLOXYPHENOL METHOXYPHENYL TRIAZINE • HOMOSALATE • ETHYLHEXYL TRIAZONE • BUTYL METHOXYDIBENZOYLMETHANE • PHENYLBENZIMIDAZOLE SULFONIC ACID • DIISOPROPYL SEBACATE • TRIETHANOLAMINE • TITANIUM DIOXIDE • GLYCERIN • ALUMINUM STARCH OCTENYLSUCCINATE • OCTOCRYLENE • CAPRYLYL METHICONE • PENTYLENE GLYCOL • METHYLENE BIS-BENZOTRIAZOLYL TETRAMETHYLBUTYLPHENOL [NANO] / METHYLENE BIS-BENZOTRIAZOLYL TETRAMETHYLBUTYLPHENOL • TITANIUM DIOXIDE [NANO] / TITANIUM DIOXIDE • POTASSIUM CETYL PHOSPHATE • TEREPHTHALYLIDENE DICAMPHOR SULFONIC ACID • STEARIC ACID • PHENOXYETHANOL • PALMITIC ACID • PEG-100 STEARATE • GLYCERYL STEARATE • AMMONIUM ACRYLOYLDIMETHYLTAURATE/VP COPOLYMER • SODIUM METHYL STEAROYL TAURATE • STEARYL ALCOHOL • CAPRYLYL GLYCOL • TOCOPHEROL • POLOXAMER 338 • POLYGLYCERYL-10 LAURATE • BUTYLENE GLYCOL • ACRYLATES/C10-30 ALKYL ACRYLATE CROSSPOLYMER • CELLULOSE • ALUMINUM HYDROXIDE • SILICA SILYLATE • DISODIUM EDTA • MYRISTIC ACID • T-BUTYL ALCOHOL (F.I.L. B260569/1).\nLes listes d’ingrédients entrant dans la composition des produits de notre marque sont régulièrement mises à jour. Avant d’utiliser un produit de notre marque, vous êtes invités à lire la liste d’ingrédients figurant sur son emballage afin de vous assurer que les ingrédients sont adaptés à votre utilisation personnelle","Une combinaison unique d'actifs haute efficacité qui délivre une haute protection SPF50 avec un fini matifiant : \n- Système filtrant UV Defense : association unique de filtres organiques et minéraux qui délivre une haute protection SPF50 à large spectre contre les UVB, UVA et UVA longs et assure la stabilité de la formule; \n- Silice Silicate : poudre minérale qui absorbe l'excès de sébum pour réduire la brillance et apporter un fini matifiant à la peau; \n- Texture ultra-légère non grasse et non collante, qui offre une sensation de fraicheur et de confort immédiat. \n\nCette formule matifiante délivre une protection homogène sans résidu avec un fini toucher-sec.","3433425331881","3433425350769","3433425322681","","","","","303 E - 01","protection solaire,protection solaire visage,crème solaire ,crème solaire SPF50,crème solaire visage,protection solaire matifiante,protection solaire peau grasse,protection solaire peau mixte"]
["Skinceuticals","Triple Lipid Restore 2:4:2","S2047902","TRIPLE LIPID RESTORE 2:4:2 Soin visage anti âge relipidant & confort 50ml","Crème anti rides anti-âge visage pour peaux mâtures ","03 - SOINS | 112 - Soin visage | 073 - Anti-âge | 0197 - Régénération jour","3606000435087","MIXTE",{"$f":"TEXT(\n  \"2018-12-07\",\n  \"JJ/MM/AA\"\n)","v":""},"88,70","","Permanent ","Non","3606000435087","","1","40","1440","286","78","77","61","48.0","ml","","","","","","286","77","78","61","03606000435094","11972","325","402","143","03606000435100","430979","1016","1219","579","03606000435117","\n  Pot 48 MLT\n \n \n \n    \n      \n   ","Crème de soin anti-âge enrichie en céramides, cholestérol et acides gras pour relipider la peau, renforcer la fonction barrière, soulager la sécheresse et restaurer le confort cutané.","Crème nourrissante réparatrice, à l’efficacité prouvée sur le relâchement cutané. Triple Lipid Restore 2:4:2 a une concentration d’actifs lipidiques réparateurs qui permettent de renforcer la barrière cutanée, lisser le grain de peau, atténuer l’apparence des pores et le relâchement cutané, booster l’éclat du teint. Parfait relai à domicile de la médecine esthétique anti-âge, sa formule procure aux peaux sèches et matures: confort, souplesse et éclat"," ","","","","NA","Sèche","Très sèche","NA","Crème","","","Nourri","NA","Pot","Sans parfum","","NA","Une à deux fois par jour, réchauffer une petite quantité entre la pulpe de ses doigts et appliquer par massages circulaires sur la peau du visage, du cou et du décolleté. Le matin, appliquer après un sérum antioxydant à la vitamine C et avant une photoprotection SkinCeuticals. Le soir, appliquer si besoin après un soin au rétinol.","855183 85 - INGREDIENTS:  AQUA / WATER • DIMETHICONE • HYDROGENATED POLYISOBUTENE • GLYCERIN • CHOLESTEROL • C12-15 ALKYL BENZOATE • CERAMIDE 3 • HELIANTHUS ANNUUS SEED OIL UNSAPONIFIABLES / SUNFLOWER SEED OIL UNSAPONIFIABLES • BIS-PEG-18 METHYL ETHER DIMETHYL SILANE • SODIUM POLYACRYLATE • PEG-10 DIMETHICONE • NYLON-12 • LAURYL PEG-9 POLYDIMETHYLSILOXYETHYL DIMETHICONE • DIMETHICONE/PEG-10/15 CROSSPOLYMER • PHENOXYETHANOL • DISTEARDIMONIUM HECTORITE • HYDROXYETHYLPIPERAZINE ETHANE SULFONIC ACID • AMMONIUM POLYACRYLOYLDIMETHYL TAURATE • CHLORPHENESIN • CAPRYLYL GLYCOL • PEG/PPG-18/18 DIMETHICONE • PROPYLENE CARBONATE • DISODIUM EDTA • ACRYLONITRILE/METHYL METHACRYLATE/VINYLIDENE CHLORIDE COPOLYMER • ADENOSINE • DIPROPYLENE GLYCOL • LAVANDULA ANGUSTIFOLIA OIL / LAVENDER OIL • ROSMARINUS OFFICINALIS LEAF OIL / ROSEMARY LEAF OIL • T-BUTYL ALCOHOL • MENTHA PIPERITA OIL / PEPPERMINT OIL • SODIUM CITRATE • LINALOOL • ISOBUTANE • CERAMIDE EOP • BHT • TOCOPHEROL • LIMONENE (F.I.L. D182889/1).\nLes listes d’ingrédients entrant dans la composition des produits de notre marque sont régulièrement mises à jour. Avant d’utiliser un produit de notre marque, vous êtes invités à lire la liste d’ingrédients figurant sur son emballage afin de vous assurer que les ingrédients sont adaptés à votre utilisation personnelle","Céramides, cholestérol et acides gras essentiels pour combler les carences de la peau.\nRespecte l'intégrité de la  barrière cutanée.\nAméliore l'aspect lisse, la fermeté et l’éclat de la peau.\nMinimise l’apparence des pores.\nComplément parfait des traitements aux rétinoïdes.\nFormule qui apporte du confort.\nAmélioration de 66 % de l’aspect lisse de la peau\nAmélioration de 35 % de la fermeté cutanée\nAmélioration de 20 % de l’uniformité du teint\nAmélioration de 26 % de l’éclat du teint\nAmélioration de 44 % de l’apparence des pores","3606000464186","0635494363210","3606000497290","","","","","302 F - 01","soin visage anti-âge,crème relipidante,soin visage peaux matures,crème peaux matures,crème anti-âge peaux sèches"]
["Skinceuticals","Glycolic","MB506900","Glycolic Renewal Cleanser Gel Nettoyant booster d'éclat 150ml","Gel nettoyant visage booster d'éclat à l'acide glycolique","03 - SOINS | 112 - Soin visage | 079 - Démaquillant et Nettoyant| 0214 - Visage","3606000481121","MIXTE",{"$f":"TEXT(\n  \"2020-01-08\",\n  \"JJ/MM/AA\"\n)","v":""},"24,80","","Permanent ","Non","0635494363210","","3","42","1680","185","63","40","175","150.0","ml","","","","","","561","40","186","190","03337875851244","8454","285","385","225","03337875843928","338660","955","1155","901","03337875843942","\n  Tube 150 MLT\n \n \n \n    \n      \n   ","Gel nettoyant exfoliant quotidien contenant une concentration d'acide glycolique actif de 8 %. Améliore l'apparence du grain de peau et restaure l'éclat du teint.","Glycolic Renewal Cleanser est un gel nettoyant conçu pour booster l’éclat de la peau. \nSa formule enrichie en AHA permet une exfoliation douce associée à une accélération du renouvellement cellulaire.\nCe gel moussant nettoie efficacement les impuretés et le maquillage longue durée tout en hydratant la peau"," ","","","","NA","Mature","Sèche","NA","Gel","","","Hydrate","","Tube","Sans alcool","Non comédogène","Hydratation","Deux fois par jour, appliquer en massant délicatement une petite quantité de ce nettoyant sur peau et cou humides par légers mouvements circulaires puis rincer abondamment.","855313 5 - INGREDIENTS:  AQUA / WATER • GLYCOLIC ACID • COCO-GLUCOSIDE • PROPYLENE GLYCOL • AMMONIUM POLYACRYLOYLDIMETHYL TAURATE • GLYCERIN • SODIUM METHYL COCOYL TAURATE • SODIUM HYDROXIDE • ALOE BARBADENSIS LEAF JUICE • PHYTIC ACID • SODIUM CHLORIDE • PHENOXYETHANOL • DIPROPYLENE GLYCOL • COCONUT ACID • CAPRYLYL GLYCOL • SALICYLIC ACID • CHLORPHENESIN • ETHYLHEXYLGLYCERIN • BOSWELLIA SERRATA GUM • CYMBOPOGON SCHOENANTHUS OIL • CITRAL • CITRIC ACID • POTASSIUM SORBATE • SODIUM BENZOATE • TOCOPHEROL (F.I.L. D233328/1).\nLes listes d’ingrédients entrant dans la composition des produits de notre marque sont régulièrement mises à jour. Avant d’utiliser un produit de notre marque, vous êtes invités à lire la liste d’ingrédients figurant sur son emballage afin de vous assurer que les ingrédients sont adaptés à votre utilisation personnelle","Glycolic Renewal Cleanser est un gel nettoyant moussant doux et hautement concentré, conçu pour exfolier efficacement la peau. Formulé avec 8% d'acide glycolique actif, associé à 1% d'acide phytique, 2% d’extrait d'aloès et de glycérine, ce nettoyant exfoliant aide à obtenir un teint clair et éclatant tout en éliminant l’excès de sébum, les impuretés et les traces de maquillage (même longue tenue). Sa formule douce maintient le taux d’hydratation et le confort de la peau.","0635494363210","3606000480964","0635494343205","","","","","302 F - 01","nettoyant visage,crème exfoliante nettoyante,nettoyant visage exfoliant,nettoyant visage à l'acide glycolique"]
["Skinceuticals","Discoloration Defense Serum","VFR09197","Discoloration Defense Serum : sérum anti-taches 30ML ","Sérum visage anti taches brunes haute efficacité à l'acide tranexamique","03 - SOINS | 112 - Soin visage | 073 - Anti-âge | 0631 - Sérum anti-âge","3606000481282","FEMME",{"$f":"TEXT(\n  \"2019-08-15\",\n  \"JJ/MM/AA\"\n)","v":""},"56,70","","Permanent ","Non","3606000481282","","","35","3360","90","38","38","108","30.0","ml","","","","","","","","","","","3360","217","317","136","03433425400297","322560","968","1168","817","03433425400310","\n  Flacon 30 MLT\n \n \n \n    \n      \n   ","Sérum anti-tache haute efficacité à l'acide tranexamique","Sérum correcteur qui agit à toutes les étapes de l'hyperpigmentation pour prévenir et corriger les taches pigmentaires. \n\nFormulé à base d'un ingrédient anti-taches dernière génération - l'acide tranexamique -, ce sérum haute efficacité a cliniquement prouvé sa capacité à réduire l'apparence des défauts de pigmentation, même les plus tenaces, tels que les marques d'acne et le Mélasma. "," ","","","","NA","Tout type de peau","","NA","Sérum","","","NA","NA","Flacon","NA","","Tâches","Matin et soir, appliquer 3-5 gouttes sur le cou, le visage et le décolleté. Le matin, utiliser une protection UV SPF50+ à la large spectre. Limiter l'exposition au soleil pendant la période d'utilisation.","855304 04 - INGREDIENTS:  AQUA / WATER • BUTYLENE GLYCOL • NIACINAMIDE • HYDROXYETHYLPIPERAZINE ETHANE SULFONIC ACID • GLYCERIN • HYDROXYETHYL UREA • PROPYLENE GLYCOL • TRANEXAMIC ACID • PHENOXYETHANOL • CAPRYLYL GLYCOL • ALLANTOIN • CHLORPHENESIN • XANTHAN GUM • DISODIUM EDTA (F.I.L. D227872/1).\nLes listes d’ingrédients entrant dans la composition des produits de notre marque sont régulièrement mises à jour. Avant d’utiliser un produit de notre marque, vous êtes invités à lire la liste d’ingrédients figurant sur son emballage afin de vous assurer que les ingrédients sont adaptés à votre utilisation personnelle","1.8% ACIDE TRANEXAMIQUE \n5% NIACINAMIDE\n5% HEPES","0635494310207","0635494348200","3606000495470","","","","","302 F - 01","sérum anti-taches,soin anti-taches,soin anti-taches brunes,sérum anti-taches brunes,soin visage anti-taches"]
["Skinceuticals","Mineral Eye Uv Defense Spf 30","S1754402","MINERAL EYE UV DEFENSE SPF 30 Soin solaire teinté contour des yeux minéral SPF 30 10ml","Protection Solaire Contour Yeux Teintée Haute Protection Indice 30","03 - SOINS | 111 - Solaire | 071 - Protection | 0186 - Soin spécifique lèvres et yeux","3606000409125","MIXTE",{"$f":"TEXT(\n  \"2018-12-03\",\n  \"JJ/MM/AA\"\n)","v":""},"24,50","","Permanent ","Non","3606000409125","","","36","8064","19","35","23","97","10.0","ml","","","","","","","","","","","799","153","217","118","03606000409149","178997","1016","1219","830","03606000409156","\n  Tube 10 MLT\n \n \n \n    \n      \n   ","Soin solaire teinté doté de filtres 100 % minéraux, dédié à la zone délicate du contour des yeux.","Soin solaire haute efficacité formulé spécifiquement pour protéger en douceur la zone délicate du contour des yeux. Mineral Eye UV Defense SPF 30 renferme du dioxyde de titane micronisé pour assurer une protection à large spectre contre les UVA et les UVB. Sa formule ne migre pas, n’irrite pas les yeux et renferme une technologie nourrissante à base de céramides pour renforcer la barrière cutanée. Son léger effet teinté unifie le contour des yeux. Peut-être utilisé comme base pour lisser la peau et la préparer à l’application du maquillage."," ","","","","NA","Tout type de peau","Normale","Protection Faible (SPF 15)","Crème","","Mat","Protège","Moyenne","Tube","Minérale","Non comédogène","NA","Le matin, après avoir appliqué ses soins antioxydant et regard SkinCeuticals, tapoter un pois de produit sous et autour des yeux, ainsi que sur les paupières, avec la pulpe des doigts.","858391 12 - INGREDIENTS:  DIMETHICONE • TITANIUM DIOXIDE [NANO] / TITANIUM DIOXIDE • C12-15 ALKYL BENZOATE • HYDROGENATED JOJOBA OIL • STYRENE/ACRYLATES COPOLYMER • DIMETHICONE CROSSPOLYMER • TALC • TRIETHYLHEXANOIN • ISOHEXADECANE • DIMETHICONE/VINYL DIMETHICONE CROSSPOLYMER • ALUMINUM HYDROXIDE • STEARIC ACID • CI 77491, CI 77492, CI 77499 / IRON OXIDES • ALUMINUM STEARATE • POLYPROPYLSILSESQUIOXANE • ALUMINA • POLYHYDROXYSTEARIC ACID • PEG-8 LAURATE • SILICA SILYLATE • ISODODECANE • 2-OLEAMIDO-1,3-OCTADECANEDIOL • DISODIUM STEAROYL GLUTAMATE (F.I.L. D172626/1).\nLes listes d’ingrédients entrant dans la composition des produits de notre marque sont régulièrement mises à jour. Avant d’utiliser un produit de notre marque, vous êtes invités à lire la liste d’ingrédients figurant sur son emballage afin de vous assurer que les ingrédients sont adaptés à votre utilisation personnelle","Photoprotection à large spectre teintée. Conçue pour la zone délicate du contour des yeux.\n- Dioxyde de titane : Le dioxyde de titane microfin forme une barrière protectrice sur la peau pour la protéger des rayons UVB et UVA de courte longueur d’onde.\n- Silice aérée : Le dioxyde de titane microfin forme une barrière protectrice sur la peau pour la protéger des rayons UVB et UVA de courte longueur d’onde.\n- Sphères translucides colorées : Les sphères d’oxyde de fer mettent en valeur la carnation naturelle de la peau et redonnent de l’éclat. Leur teinte universelle est adaptée à la plupart des carnations.\n- Céramides : Nourrissent la peau délicate du contour des yeux.","3606000463622","0635494363210","0635494348200","","","","","303 E - 01","protection solaire contour des yeux,écran solaire contour des yeux,crème solaire contour des yeux,crème teintée yeux SPF 30"]
["Skinceuticals","Mineral Radiance Uv Defense Spf50","MB504700","MINERAL RADIANCE UV DEFENSE SPF 50 Protection solaire visage teintée SPF 50 50ml","Protection Solaire Visage Teintée Très Haute Protection Indice 50+","03 - SOINS | 111 - Solaire | 071 - Protection | 0187 - Visage","3606000497290","MIXTE",{"$f":"TEXT(\n  \"2018-12-03\",\n  \"JJ/MM/AA\"\n)","v":""},"27,50","","Permanent ","Non","3606000497290","","","24","4608","72","48","23","120","50.0","ml","","","","","","","","","","","1864","167","209","159","03337875843898","358388","961","1170","955","03337875843911","\n  Flacon 50 MLT\n \n \n \n    \n      \n   ","Fluide de protection solaire à large spectre teinté, doté de filtres UV 100 % minéraux, complice d’un teint uniforme et éclatant.","Fluide solaire teinté doté de filtres UV 100 % minéraux. Mineral Radiance  UV Defense SPF 50 renferme du dioxyde de titane micronisé capable de protéger efficacement  la peau contre les UVA et les UVB. Sa formule ultratransparente et non-irritante contient un extrait de plancton qui stimule les défenses naturelles de la peau contre le stress photo-induit et la chaleur. Des sphères translucides colorées unifient le teint et révèle l’éclat de la peau. Galénique légère résistante à l’eau qui s’appuie sur la technologie « Shaking Fluid ». Il est donc nécessaire de secouer  la formule pour assurer une dispersion des actifs et  une efficacité optimale. Couvrance au fini soyeux."," ","","","","NA","Normale","Sèche","Protection Moyenne (SPF 30)","Fluide","","Mat","Protège","Haute","Flacon","Minérale","Non comédogène","NA","Bien secouer le flacon avant utilisation. Le matin, appliquer sur le visage, le cou et le décolleté avant de se maquiller. Appliquer généreusement 15 minutes avant l'exposition au soleil et réappliquer après une baignade de plus de 40 minutes, après avoir transpiré ou après s’être essuyé avec une serviette. Dans tous les cas, renouveler l’application au minimum toutes les deux heures. Pour les enfants de moins de six mois, consulter un médecin avant utilisation.","858260 7 - INGREDIENTS:  AQUA / WATER • TITANIUM DIOXIDE [NANO] / TITANIUM DIOXIDE • ISODODECANE • DIMETHICONE • UNDECANE • C12-15 ALKYL BENZOATE • STYRENE/ACRYLATES COPOLYMER • CAPRYLYL METHICONE • NYLON-12 • BUTYLOCTYL SALICYLATE • PHENETHYL BENZOATE • TRIDECANE • DICAPRYLYL CARBONATE • SILICA [NANO] / SILICA • TRIETHYLHEXANOIN • ISOHEXADECANE • DICAPRYLYL ETHER • TALC • DIMETHICONE/PEG-10/15 CROSSPOLYMER • ALUMINUM HYDROXIDE • STEARIC ACID • PENTYLENE GLYCOL • PEG-9 POLYDIMETHYLSILOXYETHYL DIMETHICONE • CI 77491, CI 77492, CI 77499 / IRON OXIDES • ALUMINUM STEARATE • PHENOXYETHANOL • PEG-8 LAURATE • MAGNESIUM SULFATE • CAPRYLYL GLYCOL • ALUMINA • POLYHYDROXYSTEARIC ACID • DISTEARDIMONIUM HECTORITE • DIETHYLHEXYL SYRINGYLIDENEMALONATE • TOCOPHEROL • PROPYLENE CARBONATE • ARTEMIA EXTRACT • BENZOIC ACID • DISODIUM STEAROYL GLUTAMATE • PEG-9 (F.I.L. D175497/1).\nLes listes d’ingrédients entrant dans la composition des produits de notre marque sont régulièrement mises à jour. Avant d’utiliser un produit de notre marque, vous êtes invités à lire la liste d’ingrédients figurant sur son emballage afin de vous assurer que les ingrédients sont adaptés à votre utilisation personnelle","Photoprotection à large spectre. Protège la peau tout en favorisant l’éclat naturel de la peau.\n- 6 % de dioxyde de titane : Le dioxyde de titane microfin est un contributeur SPF non chimique qui forme une barrière sur la peau pour la protéger des rayons UVA et UVB.\n- Artemia salina : Cet extrait de plancton stimule les défenses naturelles de la peau et sa résistance au stress dû aux UV et à la chaleur. (d’après un test in vitro)\n- Sphères translucides colorées : Les sphères d’oxyde de fer mettent en valeur la carnation naturelle de la peau et redonnent de l’éclat. Leur teinte universelle est adaptée à la plupart des carnations.","0635494328202","0635494317206","","","","","","303 E - 01","protection solaire visage,protection solaire SPF 50,crème solaire teintée,crème solaire visage SPF50"]
["Skinceuticals","Foaming Cleanser","MB519700","SOOTHING CLEANSER Mousse nettoyante apaisante 150ml","Mousse nettoyante demaquillante apaisante visage","03 - SOINS | 112 - Soin visage | 079 - Démaquillant et Nettoyant| 0214 - Visage","3606000463622","MIXTE",{"$f":"TEXT(\n  \"2018-12-05\",\n  \"JJ/MM/AA\"\n)","v":""},"24,80","","Permanent ","Non","0635494363210","","3","36","1440","235","48","48","173","150.0","ml","","","","","","711","48","144","173","03337875857512","9132","285","385","225","03337875857529","365780","955","1155","901","03337875857543","\n  Flacon Pompe 150 MLT\n \n \n \n    \n      \n   ","Mousse nettoyante et apaisante, élimine les impuretés tout en apaisant la peau, pour lui apporter douceur et confort","Soothing Cleanser est un nettoyant sans savon adapté aux peaux sensibles, conçu pour nettoyer efficacement la peau tout en réduisant les effets secondaires des traitements dermatologiques.\nFormulé à partir d’une base d’acides aminés et d’une forte concentration en extraits d’orchidée (Orchis mascula), de concombre, aux vertus apaisantes, de sorbitol qui contribue à préserver l’hydratation. Sa galénique se transforme en une émulsion apaisante au contact de la peau. Bien qu’il soit assez doux pour convenir aux peaux lésées, réactives et aux peaux ayant subi un traitement, il élimine en profondeur le maquillage longue tenue et le maquillage waterproof."," ","","","","NA","Tout type de peau","Normale","","Mousse","","","Nettoie","NA","Flacon pompe","Sans alcool","Sans parfum","NA","Deux fois par jour, appliquer en massant délicatement une dose de ce nettoyant sur peau et cou humides par légers mouvements circulaires puis rincer abondamment.","855235 9 - INGREDIENTS:  AQUA / WATER • SORBITOL • GLYCERIN • SODIUM COCOYL GLYCINATE • PEG-8 • HEXYLENE GLYCOL • COCO-BETAINE • SODIUM HYDROXIDE • PROPYLENE GLYCOL • PHENOXYETHANOL • DISODIUM EDTA • SODIUM CHLORIDE • ORCHIS MASCULA EXTRACT • CUCUMIS SATIVUS FRUIT EXTRACT / CUCUMBER FRUIT EXTRACT (F.I.L. D228834/1).\nLes listes d’ingrédients entrant dans la composition des produits de notre marque sont régulièrement mises à jour. Avant d’utiliser un produit de notre marque, vous êtes invités à lire la liste d’ingrédients figurant sur son emballage afin de vous assurer que les ingrédients sont adaptés à votre utilisation personnelle","Sorbitol: Alcool de sucre présent dans les plantes et doté d'une membrane de protection extérieure, cet humectant naturel attire l’eau à la surface de la peau et contribue à maintenir un niveau d’hydratation adéquat.\nGlycérine: Ce puissant humectant d’origine végétale possède des propriétés de fixation de l’eau qui lui permettent de fournir un degré d’hydratation intense.\nExtrait d’orchis mascula: Ce puissant extrait de fleur d’orchidée exerce une action apaisante qui protège la peau et contribue à en restaurer la surface.\nExtrait de concombre: Cet extrait non irritant contient des quantités élevées de vitamine C et d’acides aminés connus pour aider à nourrir, hydrater et apaiser la peau.\n","0635494310207","0635494314205","3606000436725","","","","","302 F - 01","nettoyant visage,mousse nettoyante visage,nettoyant visage doux,nettoyant visage peaux sensibles"]
["Skinceuticals","Phyto Corrective","S4779200","Phyto A+ Brightening Treatment 30ml","Gel-crème hautement concentré pour illuminer et corriger les imperfections","03 - SOINS | 112 - Soin visage | 081 - Soin quotidien | 0228 - Hydratation jour","3606000584563","MIXTE",{"$f":"TEXT(\n  \"2022-02-01\",\n  \"JJ/MM/AA\"\n)","v":""},"55,60","","Permanent ","Non","3606000584563","","","49","3528","141","39","39","116","30.0","ml","","","","","","","","","","","7243","297","297","143","03606000584587","521516","1016","1219","865","03606000584594","\n  Flacon Pompe 30 MLT\n \n \n \n    \n      \n   ","Correcteur hydratant quotidien pour unifier le teint, restaurer l'éclat et affiner le grain de peau","SkinCeuticals, la haute efficacité recommandée et prescrite par les dermatologues, médecins et chirurgiens esthétiques. Nos formules associent une forte concentration en actifs purs à des textures à haute absorption cutanée pour offrir une haute efficacité anti-âge autour de 3 principes fondamentaux : prévenir, corriger et protéger.\n\nCORRECTEUR HYDRATANT QUOTIDIEN ASSOCIANT 3% D'ACIDE AZELAIQUE, 2% D'ARBUTINE ET 5,75% D'EXTRAITS BOTANIQUES.\nPhyto A+ Brightening Treatment est un soin perfecteur d'éclat apaisant qui corrige les irrégularités et le teint terne. Ce soin quotidien réduit visiblement l’excès de sébum et les rougeurs, améliore la texture de la peau, atténue l’apparence des pores pour un teint unifié et lumineux."," ","","","","NA","Sèche","Grasse","NA","Crème","","","NA","NA","Flacon pompe","NA","Sans parfum","Rougeurs","Sur une peau propre, appliquer 1 à 2 pressions deux fois par jour. Le matin, appliquer après votre antioxydant SkinCeuticals et terminer par l’application d’une protection solaire SkinCeuticals.","855349 66 - INGREDIENTS:  AQUA / WATER • GLYCERIN • ISONONYL ISONONANOATE • PROPYLENE GLYCOL • AZELAIC ACID • NIACINAMIDE • SQUALANE • ALPHA-ARBUTIN • AMMONIUM POLYACRYLOYLDIMETHYL TAURATE • HYDROGENATED POLYISOBUTENE • SILICA SILYLATE • HYDROXYACETOPHENONE • SODIUM HYALURONATE • CAPRYLYL GLYCOL • HYDROXYETHYL ACRYLATE/SODIUM ACRYLOYLDIMETHYL TAURATE COPOLYMER • SODIUM HYDROXIDE • OLEA EUROPAEA LEAF EXTRACT / OLIVE LEAF EXTRACT • PARFUM / FRAGRANCE • BUTYLENE GLYCOL • ROSMARINUS OFFICINALIS LEAF EXTRACT / ROSEMARY LEAF EXTRACT • CITRUS GRANDIS FRUIT EXTRACT / GRAPEFRUIT FRUIT EXTRACT • SODIUM BENZOATE • CUCUMIS SATIVUS FRUIT EXTRACT / CUCUMBER FRUIT EXTRACT • SORBITAN ISOSTEARATE • POLYSORBATE 60 • BENZYL BENZOATE • THYMUS VULGARIS FLOWER/LEAF EXTRACT - THYME FLOWER/LEAF EXTRACT • LACTIC ACID • BENZYL ALCOHOL • ALPHA-ISOMETHYL IONONE • LINALOOL • POTASSIUM SORBATE • CITRONELLOL • MORUS ALBA ROOT EXTRACT • CI 19140 / YELLOW 5 • CI 42090 / BLUE 1 • TOCOPHEROL (F.I.L. D278070/1).\nLes listes d’ingrédients entrant dans la composition des produits de notre marque sont régulièrement mises à jour. Avant d’utiliser un produit de notre marque, vous êtes invités à lire la liste d’ingrédients figurant sur son emballage afin de vous assurer que les ingrédients sont adaptés à votre utilisation personnelle","Une combinaison d'actifs haute efficacité pour unifier le teint, restaurer l'éclat et affiner le grain de peau:\n2% d'arbutine pour améliorer l'apparence des taches pigmentaires, y compris l'hyperpigmentation post-inflammatoire,\n3% d'acide azélaïque pour nettoyer les pores obstrués et limiter l'excès de sébum,  \n5.75% d'extraits botaniques, pour calmer et apaiser les sensations d'inconforts, et réduire les rougeurs visibles.","","","","","","","","302 F - 01","Phyto A+ Brightening Treatment,Soin hydratant correcteur,soin visage ,soin perfecteur d'éclat,soin visage apaisant"]
["Skinceuticals","Blemish & Age","VFR07077","Blemish + Age Defense sérum anti-imperfections 30ml","Sérum visage double action anti-âge et anti-imperfection - Peaux grasses et mixtes","03 - SOINS | 112 - Soin visage | 081 - Soin quotidien | 0222 - Anti-imperfections","0635494391206","MIXTE",{"$f":"TEXT(\n  \"2018-12-07\",\n  \"JJ/MM/AA\"\n)","v":""},"56,70","","Permanent ","Non","0635494391206","","","25","2400","99","60","40","110","30.0","ml","","","","","","","","","","","2573","220","320","140","03433425322537","247008","1000","1200","900","03433425322551","\n  Pipette 30 MLT\n \n \n \n    \n      \n   ","Un sérum double action anti-âge et anti-imperfection qui réduit la formation des imperfections et atténue les signes de l'âge.","Ce soin ciblé non gras à double efficacité corrige les imperfections et les signes visibles de l'âge. Il diminue efficacement l'apparition des rides et des ridules grâce à la présence d'acide citrique qui accélère l'exfoliation.\nCe soin anti-rides comporte une combinaison inédite d'acide dioïque à 2 % et une formulation d'acide alpha et bêta-hydroxy. Il élimine les cellules mortes et désobstrue les pores pour un effet peau neuve.\nEn régulant la production de sébum, il réduit les imperfections, et prévient l'hyperpigmentation et l’apparition des taches."," ","","","","NA","Normale","Grasse","NA","Sérum","","","Traite","NA","Pipette","NA","","NA","Ce soin peut être utilisé matin et/ou soir. Appliquer 4 à 6 gouttes sur le visage, le cou et le décolleté, en évitant le contour des yeux.","855061 5 - INGREDIENTS:  ALCOHOL DENAT. • AQUA / WATER • METHYLPROPANEDIOL • GLYCOLIC ACID • DIISOPROPYL ADIPATE • OCTADECENEDIOIC ACID • SALICYLIC ACID • HYDROXYETHYLPIPERAZINE ETHANE SULFONIC ACID • CITRIC ACID • CAPRYLOYL SALICYLIC ACID • SODIUM HYDROXIDE • POLYQUATERNIUM-10 (F.I.L. D43561/1).\nLes listes d’ingrédients entrant dans la composition des produits de notre marque sont régulièrement mises à jour. Avant d’utiliser un produit de notre marque, vous êtes invités à lire la liste d’ingrédients figurant sur son emballage afin de vous assurer que les ingrédients sont adaptés à votre utilisation personnelle","Ce cocktail unique d’acide dioïque, d’acide salicylique, de LHA, d’acide glycolique et d’acide citrique lutte contre les imperfections, réduit la production excessive de sébum et traite les rides, ridules et irrégularités qui peuvent donner à la peau l’apparence d’un vieillissement prématuré.","3606000471467","0635494310207","3606000439627","","","","","302 F - 01","sérum anti-imperfections,sérum anti-acné,sérum anti-taches acné,sérum anti-rides,soin anti-imperfections"]
["Skinceuticals","Simply Clean","MB518600","SIMPLY CLEAN Gel nettoyant et purifiant 200ml","Gel nettoyant et purifiant visage aux extraits végétaux","03 - SOINS | 112 - Soin visage | 079 - Démaquillant et Nettoyant| 0214 - Visage","3606000463783","MIXTE",{"$f":"TEXT(\n  \"2018-12-05\",\n  \"JJ/MM/AA\"\n)","v":""},"24,80","","Permanent ","Non","0635494363210","","3","24","1920","250","46","45","180","200.0","ml","","","","","","720","45","137","184","03337875863155","6215","195","293","205","03337875865906","497700","976","1172","821","03337875865920","\n  Flacon Pompe 200 MLT\n \n \n \n    \n      \n   ","Gel nettoyant purifiant, nettoie et affine le grain de peau en stimulant l'exfoliation enzymatique","Simply Clean est un gel nettoyant puissant qui contient un acide léger (HEPES) qui stimule les enzymes naturels et aide à l’élimination des cellules mortes.\nEnrichi en extraits végétaux apaisants, ce nettoyant élimine efficacement le maquillage waterproof et l’excès de sébum, laissant la peau propre et prête pour l’application de soins professionnels."," ","","","","NA","Normale","Grasse","","Gel","","","Nettoie","NA","Flacon pompe","Sans parfum","Sans alcool","NA","Deux fois par jour, appliquer en massant délicatement une petite quantité de produit sur le visage et le cou, sur peau humide. Rincer abondamment à l’eau et finaliser avec un tonique","855234 16 - INGREDIENTS:  AQUA / WATER • SODIUM COCOYL GLYCINATE • COCO-BETAINE • GLYCERIN • ACRYLATES COPOLYMER • PENTYLENE GLYCOL • SODIUM CHLORIDE • PROPYLENE GLYCOL • HYDROXYETHYLPIPERAZINE ETHANE SULFONIC ACID • PHENOXYETHANOL • SODIUM HYDROXIDE • DISODIUM EDTA • CITRUS AURANTIUM DULCIS OIL / ORANGE PEEL OIL • LIMONENE • ALOE BARBADENSIS EXTRACT / ALOE BARBADENSIS LEAF EXTRACT • CHAMOMILLA RECUTITA EXTRACT / MATRICARIA FLOWER EXTRACT • CITRIC ACID (F.I.L. D205061/1).\nLes listes d’ingrédients entrant dans la composition des produits de notre marque sont régulièrement mises à jour. Avant d’utiliser un produit de notre marque, vous êtes invités à lire la liste d’ingrédients figurant sur son emballage afin de vous assurer que les ingrédients sont adaptés à votre utilisation personnelle","Mélange d’acides de fruits: Ils agissent en synergie pour exfolier en douceur les cellules mortes.\nExtraits végétaux: La camomille et l’aloe possèdent des propriétés adoucissantes qui apaisent et calment la peau.\nCamomille: Ses propriétés anti-inflammatoires prouvées cliniquement permettent d’apaiser et de calmer la peau.","0635494363210","3606000436442","0635494349207","","","","","302 F - 01","nettoyant visage ,gel nettoyant visage,démaquillant waterproof"]
["Skinceuticals","Aox+ Eye Gel","S1110503","AOX EYE GEL Serum Gel antioxydant poches et cernes 15ml","Sérum Contour des Yeux Antioxydant Anti-poches et Anti-Cernes","03 - SOINS | 112 - Soin visage | 180 - Soin des yeux et des lèvres | 0784 - Soin des yeux","0635494348200","MIXTE",{"$f":"TEXT(\n  \"2018-12-07\",\n  \"JJ/MM/AA\"\n)","v":""},"56,20","","Permanent ","Non","0635494348200","","","144","5184","35","29","29","84","15.0","ml","","","","","","","","","","","5445","364","364","117","20635494348204","196020","1016","1219","705","03606000416383","\n  Flacon Pompe 15 MLT\n \n \n \n    \n      \n   ","Sérum gel antioxydant, adapté au contour de l’œil qui protège la peau des agressions environnementales et améliore l’apparence des poches, des cernes et autres signes de fatigue.","Sérum en gel à la texture légère, AOX+ Eye Gel renferme une combinaison de 3 actifs antioxydants -5 % de vitamine C pure, 1 % de phlorétine et 0,5 % d'acide férulique – associés à des ingrédients botaniques ciblés qui agissent en synergie pour protéger la zone délicate du contour de l’oeil. Formulé pour  prévenir des signes du vieillissement cutané et des photo-dommages. Ce sérum quotidien améliore l’apparence des ridules, poches, cernes et autres signes de fatigue et stimule la microcirculation. Sensation de fraîcheur à l’application qui renforce l’action décongestionnante."," ","","","","NA","Tout type de peau","Normale","NA","Gel","","","Protège","NA","Flacon pompe","Sans parfum","","NA","Le matin, appliquer ½ pression de sérum pour chaque œil : sur la paupière inférieure, au coin externe et sur l'arcade sourcilière. Faire pénétrer par tapotements délicats du bout des doigts, jusqu’à pénétration de la formule. Ne pas appliquer au coin interne, près du canal lacrymal, sous l’arcade sourcilière ou sur la paupière supérieure. Remarque : l’assombrissement des formules à la vitamine C une fois ouvertes, et donc exposées à l’air et à la lumière, est un phénomène normal qui n’affecte en rien l’efficacité du produit. Utiliser dans les six mois suivant l’ouverture.","855025 6 - INGREDIENTS:  AQUA / WATER • DIPROPYLENE GLYCOL • BUTYLENE GLYCOL • UNDECANE • BIS-HYDROXYETHOXYPROPYL DIMETHICONE • ALCOHOL DENAT. • ASCORBIC ACID • DIMETHICONE • CAPRYLIC/CAPRIC TRIGLYCERIDE • TRIDECANE • PHLORETIN • LAURYL PEG-9 POLYDIMETHYLSILOXYETHYL DIMETHICONE • DIMETHICONE/PEG-10/15 CROSSPOLYMER • DIMETHICONE/POLYGLYCERIN-3 CROSSPOLYMER • FERULIC ACID • RUSCUS ACULEATUS EXTRACT / RUSCUS ACULEATUS ROOT EXTRACT • CAFFEINE • DISODIUM EDTA • SODIUM HYDROXIDE (F.I.L. D41812/1).\nLes listes d’ingrédients entrant dans la composition des produits de notre marque sont régulièrement mises à jour. Avant d’utiliser un produit de notre marque, vous êtes invités à lire la liste d’ingrédients figurant sur son emballage afin de vous assurer que les ingrédients sont adaptés à votre utilisation personnelle","Fournit une protection avancée contre les agressions environnementales tout en réduisant les gonflements, les signes de fatigue visibles et les cernes sous les yeux.\n- 1 % de phlorétine, 5 % d’acide L-ascorbique, 0,5 % d’acide férulique : Une concentration optimale de ce cocktail synergique d’antioxydants a été formulée pour combattre les effets néfastes des radicaux libres, prévenir les signes de vieillissement cutané et atténuer les signes existants de photovieillissement tels que les ridules, les rides et le teint irrégulier.\n- Ruscus aculeatus : Dérivé d’un petit arbuste à feuilles persistantes originaire d’Europe occidentale, cet actif réduit l’aspect gonflé.\n- Caféine : Réduit les poches sous les yeux.","0635494363210","0635494317206","0635494394207","","","","","302 F - 01","sérum antioxydant contour des yeux,contour des yeux anti-poches,contour des yeux anti-cernes"]
["Skinceuticals","Gentle Cleanser","MB519000","GENTLE CLEANSER Lait nettoyant démaquillant doux 200ml","Lait nettoyant démaquillant doux visage","03 - SOINS | 112 - Soin visage | 079 - Démaquillant et Nettoyant| 0214 - Visage","3606000463981","MIXTE",{"$f":"TEXT(\n  \"2018-12-05\",\n  \"JJ/MM/AA\"\n)","v":""},"24,80","","Permanent ","Non","0635494363210","","3","24","1920","238","46","45","180","200.0","ml","","","","","","720","45","137","184","03337875863193","5927","195","293","205","03337875865876","474660","976","1172","821","03337875865890","\n  Flacon Pompe 200 MLT\n \n \n \n    \n      \n   ","Nettoyant doux à l’allantoïne, qui adoucit la peau tout en éliminant efficacement les impuretés et le maquillage waterproof","Gentle Cleanser est un nettoyant onctueux qui ne mousse pas. Il contient un tensioactif riche en agents émollients et de l’allantoïne pour hydrater, adoucir, et préparer la peau. Il est conçu pour apaiser les peaux sèches et sujettes aux tiraillements. Il élimine efficacement les impuretés et le maquillage longue tenue sur le visage et sur les yeux sans laisser aucune trace de résidu. Ce nettoyant peut être rincé à l’eau ou retiré à l’aide d’un coton. Il est idéal pour être utilisé avant un soin professionnel."," ","","","","NA","Normale","Sèche","","Crème","","","Nettoie","NA","Flacon pompe","NA","","NA","Deux fois par jour, appliquer une petite quantité de produit en légers mouvements circulaires sur le visage et le cou humides. Rincer abondamment à l’eau.","855233 10 - INGREDIENTS:  AQUA / WATER • C12-15 ALKYL BENZOATE • GLYCERIN • PROPANEDIOL • CETYL ALCOHOL • METHYL GLUCETH-20 • NEOPENTYL GLYCOL DICAPRATE • PEG-100 STEARATE • GLYCERYL STEARATE • POLYGLYCERYL-4 CAPRATE • PHENOXYETHANOL • CITRUS AURANTIUM DULCIS OIL / ORANGE PEEL OIL • LIMONENE • ACRYLATES/C10-30 ALKYL ACRYLATE CROSSPOLYMER • CAPRYL/CAPRAMIDOPROPYL BETAINE • CAPRYLYL GLYCOL • POLYSORBATE 20 • ALLANTOIN • SODIUM HYDROXIDE • PENTAERYTHRITYL TETRA-DI-T-BUTYL HYDROXYHYDROCINNAMATE • DISODIUM EDTA • POLYQUATERNIUM-39 • SODIUM CHLORIDE • PEG-30 DIPOLYHYDROXYSTEARATE • TRIDECETH-6 • GLYCOLIC ACID • SODIUM BENZOATE (F.I.L. D203706/1).\nLes listes d’ingrédients entrant dans la composition des produits de notre marque sont régulièrement mises à jour. Avant d’utiliser un produit de notre marque, vous êtes invités à lire la liste d’ingrédients figurant sur son emballage afin de vous assurer que les ingrédients sont adaptés à votre utilisation personnelle","Ce produit est volontairement formulé avec des actifs peu nombreux, basiques mais efficaces, dans le but de prévenir toute réaction potentielle.","0635494328202","0635494317206","0635494349207","","","","","302 F - 01","nettoyant visage ,nettoyant visage doux,démaquillant doux,lait nettoyant visage"]
["Skinceuticals","Phyto Corrective","MB185300","Phyto Corrective Serum hydratant apaisant 30ml","Sérum hydratant visage apaisant anti-rougeurs complexe végétal acide hyaluronique","03 - SOINS | 112 - Soin visage | 081 - Soin quotidien | 0632 - Sérum","0635494314205","MIXTE",{"$f":"TEXT(\n  \"2018-12-07\",\n  \"JJ/MM/AA\"\n)","v":""},"44,70","","Permanent ","Non","0635494314205","","","35","3360","90","38","38","108","30.0","ml","","","","","","","","","","","3360","217","317","136","03337875704649","323060","968","1168","817","03337875704663","\n  Pipette 30 MLT\n \n \n \n    \n      \n   ","Un sérum hydratant et apaisant, idéal pour calmer et hydrater la peau tout en atténuant les rougeurs grâce à son complexe végétal","Sérum de texture gel, apaisant et hydratant. Phyto Corrective renferme une combinaison d’extraits naturels de choix: concombre, thym, extraits de feuilles d’olivier et mûrier qui réduisent les défauts de pigmentation, uniformisent le teint. Sa formule hydratante et sans corps gras est idéale pour les peaux sensibles, à tendance acnéique car elle contient de l’acide hyaluronique capable d'hydrater la peau sans en obstruer les pores ainsi que de l’eucalyptus aux vertus rafraîchissantes."," ","","","","NA","Tout type de peau","Normale","NA","Gel","","","Apaise","NA","Pipette","Sans parfum","","NA","Deux fois par jour, déposer 3 à 5 gouttes dans la paume de main. Appliquer du bout des doigts sur l'ensemble du visage ou sur la zone à imperfections.","740015 29 - INGREDIENTS:  AQUA / WATER • GLYCERIN • PROPYLENE GLYCOL • PHENOXYETHANOL • POLYSORBATE 80 • SODIUM BENZOATE • SODIUM HYALURONATE • HYDROXYETHYLCELLULOSE • DISODIUM EDTA • OLEA EUROPAEA LEAF EXTRACT / OLIVE LEAF EXTRACT • BENZOPHENONE-4 • BUTYLENE GLYCOL • ROSMARINUS OFFICINALIS LEAF EXTRACT / ROSEMARY LEAF EXTRACT • PARFUM / FRAGRANCE • CITRUS GRANDIS FRUIT EXTRACT / GRAPEFRUIT FRUIT EXTRACT • CUCUMIS SATIVUS FRUIT EXTRACT / CUCUMBER FRUIT EXTRACT • THYMUS VULGARIS FLOWER/LEAF EXTRACT - THYME FLOWER/LEAF EXTRACT • LACTIC ACID • BENZYL BENZOATE • POTASSIUM SORBATE • BENZYL ALCOHOL • ALPHA-ISOMETHYL IONONE • MORUS ALBA ROOT EXTRACT • LINALOOL • CI 19140 / YELLOW 5 • CI 42090 / BLUE 1 (F.I.L. D230010/1).\nLes listes d’ingrédients entrant dans la composition des produits de notre marque sont régulièrement mises à jour. Avant d’utiliser un produit de notre marque, vous êtes invités à lire la liste d’ingrédients figurant sur son emballage afin de vous assurer que les ingrédients sont adaptés à votre utilisation personnelle","Sérum apaisant peaux irritées\n- Acide hyaluronique : Hydrate et renforce la barrière cutanée\n- Extrait de feuilles d'olivier, concombre et thym : Effet cicatrisant, calment la peau irritée\n- Extrait de murier : Eclaircissant, uniformise le teint","0635494310207","3606000463622","0635494394207","0635494394207","3606000436725","3606000495395","","302 F - 01","sérum à l'acide hyaluronique,sérum hydratant,sérum hydratant visage,sérum hydratant peau sensible"]
["Skinceuticals","Replenishing Cleanser","MB520000","REPLENISHING CLEANSER CREAM Crème nettoyante hydratante 150ml","Crème nettoyante hydratante visage","03 - SOINS | 112 - Soin visage | 079 - Démaquillant et Nettoyant| 0214 - Visage","3606000464186","MIXTE",{"$f":"TEXT(\n  \"2018-12-05\",\n  \"JJ/MM/AA\"\n)","v":""},"24,80","","Permanent ","Non","3606000464186","","3","42","1680","173","63","40","175","150.0","ml","","","","","","525","40","186","190","03337875851251","7950","285","385","225","03337875851268","318500","955","1155","901","03337875851282","\n  Tube 150 MLT\n \n \n \n    \n      \n   ","Nettoyant double action, contenant un complexe de céramides qui nettoie en profondeur et préserve la fonction de protection de la peau tout en maintenant un niveau d’hydratation optimal.","Grâce à son système tensioactif d’exception et sa forte concentration d’actifs, la crème moussante Replenishing Cleanser nettoie en profondeur la peau sans la priver de ses lipides naturels. La combinaison de panthénol  et  de céramides permettent de capter et maintenir l’hydratation cutanée. Sa galénique crème élimine toutes traces d’impuretés, débris cellulaires et le maquillage longue tenue. Une fois rincé soigneusement, Replenishing Cleanser ne laisse aucun résidu. Il rétablit l'équilibre et prépare la peau à recevoir ses soins."," ","","","","NA","Tout type de peau","Normale","","Crème","","","Nettoie","NA","Tube","Sans parfum","","NA","Deux fois par jour (matin et soir), appliquer une petite quantité de produit sur la peau du visage et du cou humidifiée, en effectuant de légers mouvements circulaires. Ajouter de l’eau pour faire mousser la crème. Rincer soigneusement à l’eau.","855243 51 - INGREDIENTS:  AQUA / WATER • GLYCERIN • MYRISTIC ACID • STEARIC ACID • SODIUM COCOYL GLYCINATE • PALMITIC ACID • LAURIC ACID • POTASSIUM HYDROXIDE • SORBITAN PALMITATE • PANTHENOL • PHENOXYETHANOL • DISODIUM EDTA • LAVANDULA ANGUSTIFOLIA OIL / LAVENDER OIL • POLYQUATERNIUM-39 • CITRUS AURANTIUM DULCIS OIL / ORANGE PEEL OIL • LIMONENE • PELARGONIUM GRAVEOLENS FLOWER OIL • 2-OLEAMIDO-1,3-OCTADECANEDIOL • ROSMARINUS OFFICINALIS LEAF OIL / ROSEMARY LEAF OIL • LINALOOL • CITRONELLOL • GERANIOL • SODIUM BENZOATE (F.I.L. D206696/1).\nLes listes d’ingrédients entrant dans la composition des produits de notre marque sont régulièrement mises à jour. Avant d’utiliser un produit de notre marque, vous êtes invités à lire la liste d’ingrédients figurant sur son emballage afin de vous assurer que les ingrédients sont adaptés à votre utilisation personnelle","Nettoyant visage double action : nettoie la peau en profondeur et procure une hydratation contrôlée pour une sensation de confort retrouvée.\n\n- Céramides : ces molécules lipidiques d’origine synthétique aident la peau à augmenter son niveau d’hydratation et à remplir sa fonction de barrière de manière optimale.\n- Panthénol : dérivé de la vitamine B5, le panthénol est un humectant efficace qui aide la peau à absorber et retenir l’humidité présente dans l’environnement.\n- Mélange d’huiles de lavande, de sauge sclarée, d’orange et de feuille de romarin : naturellement présents dans différentes huiles essentielles, ces extraits revigorants contribuent à rafraîchir et restaurer l’état de la peau.\n- Solution de tensioactifs à base d’acides aminés : obtenu à partir des acides gras d’huile de noix de coco et de glycine, cet agent nettoyant doux génère une mousse dense et riche qui émulsionne efficacement pour éliminer les impuretés et le maquillage, sans assécher la peau.","3606000471269","3606000435087","0635494363210","","","","","302 F - 01","nettoyant visage,crème nettoyante visage,nettoyant visage peaux mixtes"]
["Skinceuticals","A.G.E. Interrupter Advanced","MB578801","A.G.E. INTERRUPTER ADVANCED 48ml","Soin multi-correcteur anti-ride et fermeté","03 - SOINS | 112 - Soin visage | 073 - Anti-âge | 0192 - Fermeté et Rides jour","3337875864367","FEMME",{"$f":"TEXT(\n  \"2023-03-01\",\n  \"JJ/MM/AA\"\n)","v":""},"105,00","","Permanent ","Non","3337875864367","","","36","2016","264","76","76","71","48.0","ml","","","","","","","","","","","10115","246","316","230","03337875870788","566440","1000","1200","944","03337875870801","\n  Pot 48 MLT\n \n \n \n    \n      \n   ","SOIN CONCENTRÉ MULTI-CORRECTEUR POUR INVERSER LES SIGNES ACCÉLÉRÉS DE L'ÂGE CAUSÉS PAR LA GLYCATION","SkinCeuticals, la haute efficacité recommandée et prescrite par les dermatologues, médecins et chirurgiens esthétiques. Nos formules associent une forte concentration en actifs purs à des textures à haute absorption cutanée pour offrir une haute efficacité anti-âge autour de 3 principes fondamentaux : prévenir, corriger et protéger.\n\nLe vieillissement accéléré de la peau désormais interrompu grâce à ce SOIN CONCENTRE MUTLI-CORRECTEUR ASSOCIANT 18% DE PROXYLANE CONCENTRE, 4.25% DE FLAVONOÏDES ET 0.1% D'ACIDE GLYCYRRHETINIQUE\n\nSoin hautement concentré pour réduire l'apparence des rides, la perte de fermeté et d'éclat, causés par la Glycation (Advanced Glycation End-produit ou A.G.E.), l'un des processus naturels de vieillissement cutané. La formule, concentrée en Proxylane actif, aide à lisser la peau et à améliorer la fermeté et l'élasticité. Formule renforcée en flavonoïdes et acide glycérrhétinique pour améliorer l'éclat de la peau et aider à réduire les signes du vieillissement cutané, conséquences des stades répétés de la Glycation (A.G.E.)."," ","","","","NA","Mature","Normale","NA","Crème","","","Anti rides","NA","Pot","Sans alcool","","Anti âge global","Appliquer une ou deux fois par jour sur la peau préalablement nettoyée du visage, du cou et du décolleté. Compléter ensuite avec un écran solaire SkinCeuticals.","855355 111 - INGREDIENTS:  AQUA / WATER / EAU • HYDROXYPROPYL TETRAHYDROPYRANTRIOL • GLYCERIN • PROPYLENE GLYCOL • STEARIC ACID • BUTYROSPERMUM PARKII BUTTER / SHEA BUTTER • HYDROXYETHYLPIPERAZINE ETHANE SULFONIC ACID • PALMITIC ACID • PENTYLENE GLYCOL • OLEYL ALCOHOL • ARACHIDYL ALCOHOL • MYRISTYL MYRISTATE • PANTHENOL • NIACINAMIDE • DIMETHICONE • ISONONYL ISONONANOATE • BIS-PEG/PPG-16/16 PEG/PPG-16/16 DIMETHICONE • GLYCERYL STEARATE • CANDELILLA CERA / CANDELILLA WAX / CIRE DE CANDELILLA • BEHENYL ALCOHOL • PEG-100 STEARATE • SODIUM POLYACRYLATE • PENTAERYTHRITYL TETRAISOSTEARATE • 4-T-BUTYLCYCLOHEXANOL • ARACHIDYL GLUCOSIDE • CAPRYLYL GLYCOL • XANTHAN GUM • CHLORPHENESIN • MYRISTIC ACID • CAPRYLIC/CAPRIC TRIGLYCERIDE • GLYCYRRHETINIC ACID • PARFUM / FRAGRANCE • SORBITOL • VACCINIUM MYRTILLUS FRUIT EXTRACT • POTASSIUM HYDROXIDE • ADENOSINE • CITRIC ACID • PUNICA GRANATUM FRUIT EXTRACT • LIMONENE • COUMARIN • LINALOOL • PENTAERYTHRITYL TETRA-DI-T-BUTYL HYDROXYHYDROCINNAMATE (F.I.L. N70027350/1).\nLes listes d’ingrédients entrant dans la composition des produits de notre marque sont régulièrement mises à jour. Avant d’utiliser un produit de notre marque, vous êtes invités à lire la liste d’ingrédients figurant sur son emballage afin de vous assurer que les ingrédients sont adaptés à votre utilisation personnelle","Une combinaison d'actifs haute efficacité pour cibler toutes les phases de la glycation, et réduire l'apparence des rides, la perte de fermeté et d'éclat : \n4.25% de flavonoïdes (myrtille et grenade), à l'action antioxydante, pour combattre le stress oxydatif et prévenir les signes précoces de vieillissement\n18% de Proxylane maintenant concentré pour corriger les signes visibles de l'âge, comme les rides profondes et la perte d'élasticité\n0.1% d'acide glycyrrhétinique pour réduire l'inflammation causée par la glycation","","","","","","","","302 F - 01","Fermeté,Crème anti-âge,Glycation,Proxylane,Anti-ride,Eclat"]
["Skinceuticals","Clarifying Clay Masque","S0797405","Clarifying Clay Masque purifiant 60ml","Masque purifiant exfoliant visage","03 - SOINS | 112 - Soin visage | 077 - Masque | 0210 - Purifiant","0635494330205","MIXTE",{"$f":"TEXT(\n  \"2018-12-07\",\n  \"JJ/MM/AA\"\n)","v":""},"44,10","","Permanent ","Non","0635494330205","","","32","1152","259","70","69","62","67.0","g","","","","","","","","","","","8657","297","297","143","20635494330308","311663","1016","1219","429","03606000416147","\n  Pot 67 GRM\n \n \n \n    \n      \n   ","Masque purifiant qui désobstrue les pores et élimine l’excès de sébum","Ce soin purifiant désincrustant est un masque anti-âge qui exfolie et hydrate. Grâce à sa combinaison de plusieurs actifs naturels avec des acides de fruits, il agit sur les pores dilatés et les signes visibles du vieillissement cutané. Ce masque réduit également les taches pigmentaires, les ridules et agit sur le teint terne.\nPour un grain de peau zéro défaut, Clarifying Clay Masqu est le soin  idéal. Sa formule non asséchante assure une peau apaisée, hydratée, exfoliée et un teint lumineux. Idéal pour les peaux normales à grasses."," ","","","","NA","Normale","Grasse","NA","Pâte","","","Purifie","NA","Pot","Sans parfum","","NA","Appliquer une fine couche du Clarifying Clay Masque sur le visage, le cou et le décolleté nettoyés et préalablement tonifiés. Laisser poser pendant 10 à 15 minutes. (Le masque ne durcira pas en séchant.) Rincer à l’eau tiède et tapoter avec une serviette pour essuyer. (Pour des résultats optimaux, utiliser une fois par semaine pour éliminer les résidus de peau exfoliée.)","740030 32 - INGREDIENTS:  AQUA / WATER • KAOLIN • BENTONITE • ALOE BARBADENSIS / ALOE BARBADENSIS LEAF JUICE • PROPYLENE GLYCOL • GLYCERIN • CI 77891 / TITANIUM DIOXIDE • ARGILLA / MAGNESIUM ALUMINUM SILICATE • CAPRYLIC/CAPRIC TRIGLYCERIDE • CETEARYL ALCOHOL • DIMETHICONE • PHENOXYETHANOL • CETEARETH-20 • VACCINIUM MYRTILLUS FRUIT EXTRACT • CAPRYLYL GLYCOL • XANTHAN GUM • HELIANTHUS ANNUUS SEED OIL / SUNFLOWER SEED OIL • SACCHARUM OFFICINARUM EXTRACT / SUGAR CANE EXTRACT • SODIUM HYDROXIDE • CITRUS AURANTIUM DULCIS FRUIT WATER / ORANGE FRUIT WATER • CITRUS LIMON FRUIT EXTRACT / LEMON FRUIT EXTRACT • ACER SACCHARINUM EXTRACT / SUGAR MAPLE EXTRACT • CHAMOMILLA RECUTITA EXTRACT / MATRICARIA FLOWER EXTRACT • ROSMARINUS OFFICINALIS LEAF OIL / ROSEMARY LEAF OIL • CUCUMIS SATIVUS FRUIT EXTRACT / CUCUMBER FRUIT EXTRACT • PELARGONIUM GRAVEOLENS FLOWER OIL • LAVANDULA HYBRIDA OIL • CURCUMA LONGA EXTRACT / TURMERIC ROOT EXTRACT • SCLAREOLIDE • ROSA SPP / ROSE FLOWER OIL • JASMINUM OFFICINALE EXTRACT / JASMINE EXTRACT (F.I.L. D173121/1).\nLes listes d’ingrédients entrant dans la composition des produits de notre marque sont régulièrement mises à jour. Avant d’utiliser un produit de notre marque, vous êtes invités à lire la liste d’ingrédients figurant sur son emballage afin de vous assurer que les ingrédients sont adaptés à votre utilisation personnelle","Masque purifiant désincrustant qui désobstrue les pores et élimine l’excès de sébum pour un grain de peau zéro défaut. , Ce masque anti-âge exfolie, hydrate, réduit également les taches pigmentaires, les ridules et agit sur le teint terne.\n\n- 5 % de mélange d’acides hydroxylés : ces acides malique, lactique, tartrique, citrique et glycolique agissent en synergie pour exfolier en douceur les cellules mortes.\n- Argiles (kaolin et bentonite) : ces argiles naturelles clarifient la peau, absorbent l’excès de sébum, resserrent les pores, illuminent le teint et minimisent la brillance.\n- Aloe et camomille : grâce à leurs propriétés anti-inflammatoires prouvées cliniquement, ces extraits végétaux apaisent et calment la peau.","0635494330205","3606000439627","0635494391206","","","","","302 F - 01","masque visage,masque visage purifiant,masque point noir,masque anti-point noir,masque argile"]
["Skinceuticals","Retinol","S3042201","Skinceuticals Correct Soin Retinol 0.3","Crème de nuit visage anti-rides au retinol pur - Tous types de peaux","03 - SOINS | 112 - Soin visage | 073 - Anti-âge | 0631 - Sérum anti-âge","3606000509603","MIXTE",{"$f":"TEXT(\n  \"2018-12-01\",\n  \"JJ/MM/AA\"\n)","v":""},"56,70","","Permanent ","Non","3606000509603","","1","63","1890","56","48","36","165","30.0","ml","","","","","","57","36","48","165","03606000509610","3966","363","363","194","03606000509627","118979","1016","1219","976","03606000509634","\n  Tube 30 MLT\n \n \n \n    \n      \n   ","Soin du visage hautement concentré en rétinol pur. Atténue simultanément de multiples signes de l’âge (rides profondes, ridules et tâches pigmentaires)","Le soin de nuit RETINOL 0.3 contient 0.3 % de retinol pur et est enrichi des toutes dernières technologies de stabilisation et d’absorption pour une efficacité optimale et durable. Formulé avec un nouveau complexe apaisant (Bisabolol et Boswellia) ce soin visage au retinol pur améliore l’apparence des principaux signes de vieillissement de la peau (rides profondes, ridules et tâches) dûs aussi bien aux facteurs environnementaux qu’au vieillissement naturel."," ","","","","NA","Normale","Sèche","NA","Crème","","","Anti rides","NA","Tube","NA","","Anti âge global","Le soir, appliquer une très petite quantité de Retinol 0.3 sur une peau parfaitement nettoyée. Éviter absolument les yeux et le coin des yeux. Pour des résultats optimaux, attendre au moins 30 minutes avant d’appliquer les soins correcteurs ou hydratants s’ils doivent être utilisés le même soir que les soins au rétinol SkinCeuticals.","855260 3 - INGREDIENTS:  AQUA / WATER • PROPANEDIOL • DIMETHICONE • CETEARYL ETHYLHEXANOATE • ALCOHOL DENAT. • DIPROPYLENE GLYCOL • AMMONIUM POLYACRYLOYLDIMETHYL TAURATE • HYDROGENATED LECITHIN • ALLYL METHACRYLATES CROSSPOLYMER • PHENOXYETHANOL • CAPRYLYL GLYCOL • ISOPROPYL MYRISTATE • RETINOL • POLYSORBATE 20 • SODIUM CITRATE • BOSWELLIA SERRATA GUM • DIMETHICONOL • TRISODIUM ETHYLENEDIAMINE DISUCCINATE • BISABOLOL • CITRIC ACID • BHT • PROPYL GALLATE (F.I.L. D225390/1).\nLes listes d’ingrédients entrant dans la composition des produits de notre marque sont régulièrement mises à jour. Avant d’utiliser un produit de notre marque, vous êtes invités à lire la liste d’ingrédients figurant sur son emballage afin de vous assurer que les ingrédients sont adaptés à votre utilisation personnelle","Booste le renouvellement cellulaire\nAméliore l’apparence des signes dûs au vieillissement cutané (rides, taches)\nNon comédogène, convient à la plupart des types de peau\nConvient à la plupart des types de peau","0635494363210","3606000499607","3606000435087","","","","","302 F - 01","soin anti rides,serum anti rides,soin de nuit,soin retinol pur,retinol pure,anti tache"]
["Skinceuticals","C E Ferulic","VFR09790","C E FERULIC Serum antioxydant anti-rides Vitamine C 30ml","Sérum visage hydratant anti-rides antioxydant éclat vitamine C tous types de peaux","03 - SOINS | 112 - Soin visage | 073 - Anti-âge | 0631 - Sérum anti-âge","0635494363210","MIXTE",{"$f":"TEXT(\n  \"2018-12-07\",\n  \"JJ/MM/AA\"\n)","v":""},"97,00","","Permanent ","Non","0635494363210","","","25","2400","95","58","37","106","30.0","ml","","","","","","","","","","","2590","217","317","136","03433425322452","248640","968","1168","817","03433425322476","\n  Pipette 30 MLT\n \n \n \n    \n      \n   ","Sérum antioxydant à la vitamine C, la vitamine E et à l’acide férulique qui protège la peau contre les agressions environnementales, améliore l’apparence des signes visibles de l’âge et illumine le teint.","Puissant sérum antioxydant quotidien à la formule brevetée, C E Ferulic associe 15 % de vitamine C pure, 1 % d'alpha-tocophérol et 0,5 % d'acide férulique pour protéger 8 fois plus la peau des dommages radicalaires provoqués par les agressions de l’environnement telles que les UV, les rayons infrarouges et la pollution atmosphérique.Sa synergie d'antioxydants préserve l’intégrité de la matrice des protéines de soutien de la peau, améliore l’apparence des rides et des ridules, la fermeté et l’éclat cutanés."," ","","","","NA","Normale","Sèche","NA","Sérum","","","Protège","NA","Pipette","Sans parfum","","NA","Le matin, sur peau propre, appliquer 3 à 4 gouttes sur l’ensemble du visage, du cou et du décolleté","740019 21 - INGREDIENTS:  AQUA / WATER • DIPROPYLENE GLYCOL • ASCORBIC ACID • GLYCERIN • LAURETH-23 • PHENOXYETHANOL • TOCOPHEROL • FERULIC ACID • SODIUM HYALURONATE (F.I.L. D31590/4).\nLes listes d’ingrédients entrant dans la composition des produits de notre marque sont régulièrement mises à jour. Avant d’utiliser un produit de notre marque, vous êtes invités à lire la liste d’ingrédients figurant sur son emballage afin de vous assurer que les ingrédients sont adaptés à votre utilisation personnelle","Le sérum C E FERULIC contient un trio d'actifs antioxydants pour une action ciblée sur les rides et la perte de fermeté :\n-15% VITAMINE C PURE : prévient le stress oxydatif en neutralisant les radicaux libres\n- 0,5% ACIDE FERULIQUE : stabilise la vitamine C et optimise son action antioxydante\n- 1% VITAMINE E : hydrate et stimule la synthèse de collagène pour préserver l'élasticité de la peau","3606000463981","0635494317206","0635494349207","","","","","302 F - 01","sérum antioxydant à la vitamine C,sérum anti-rides à la vitamine C ,sérum anti-âge à la vitamine C ,sérum vitamine C ,sérum vitamine C peaux normales,sérum vitamine C peaux sèches"]
["Skinceuticals","C E Ferulic","VFR09345","Coffret Noël Rides + Deshydratation - C E Ferulic 30ml","Routine Noël anti-âge sérum antioxydant vitamine C pure + sérum hydratant offert ","","3433425405483","FEMME",{"$f":"TEXT(\n  \"2022-10-01\",\n  \"JJ/MM/AA\"\n)","v":""},"97,00","","Permanent ","Oui","3433425405483","","3","6","240","320","51","190","148","1.0","Unité","","","","","","960","153","190","148","03433425417318","1920","285","385","225","03433425405490","76800","1000","1200","900","03433425405513","\n  Flacon 1 PCE\n \n \n \n    \n      \n   ","Avec SkinCeuticals, célébrez Noël et offrez la haute efficacité cliniquement prouvée. Avec la ROUTINE INTEGRALE RIDES + DESHYDRATATION, profitez d'une action anti-âge sur-mesure: votre sérum antioxydant à la vitamine C pure C E FERULIC 30ml + EN CADEAU, votre sérum hydratant booster d'éclat Hydrating B5 15ml offert dans un coffret premium et élégant, eco-conçu.","SkinCeuticals, la haute efficacité recommandée et prescrite par les dermatologues, médecins et chirurgiens esthétiques. Nos formules associent une forte concentration en actifs purs à des textures à haute absorption cutanée pour offrir une haute efficacité anti-âge autour de 3 principes fondamentaux : prévenir, corriger et protéger.\n\nCELEBREZ NOËL ET OFFREZ LA HAUTE EFFICACITE ANTI-ÂGE AVEC VOTRE ROUTINE INTEGRALE RIDES + DESHYDRATATION. Découvrez nos sérums iconiques et leur action anti-âge sur-mesure et complète, intégrés dans un élégant coffret premium et eco-conçu, en édition limitée.\n\n- Le sérum antioxydant C E FERULIC associe la vitamine C pure hautement concentrée à 15%, la vitamine E et l'acide férulique afin de maximiser l'efficacité antioxydante. Cette formulation synergique optimise la protection de la peau contre les agressions environnementales afin de prévenir l'apparition des signes de vieillissement prématuré dus aux effets néfastes du soleil et de l'environnement (rides, ridules, perte de fermeté, perte d'éclat, taches brunes), tout en stimulant la production de collagène et d'élastine pour régénérer la peau. La peau est plus lumineuse, plus ferme et visiblement plus jeune. Convient aux peaux normales à sèches.\n\n- EN CADEAU, pour compléter votre routine: le sérum hydratant booster d'éclat à l'acide hyaluronique HYDRATING B5 offert, sans corps gras, est une véritable \"bouteille d'eau\" pour la peau,  enrichie en acide hyaluronique et vitamine B5. Il redonne à la peau ses nutriments essentiels pour une peau plus souple et douce. Peut s'utiliser seul ou associé avec une crème hydratante pour optimiser ses bienfaits. Convient à tous types de peau. "," ","","","","NA","Tout type de peau","Mature","NA","Sérum","","","Anti rides","NA","Flacon","Sans parfum","","Anti âge global","C E FERULIC : le matin, sur peau propre, appliquer 3 à 4 gouttes sur l’ensemble du visage, du cou et du décolleté.\n\nHYDRATING B5: matin et soir, appliquer 3 à 4 gouttes sur le visage, le cou et le décolleté en évitant le contour des yeux.","740011 7 - INGREDIENTS:  AQUA / WATER • GLYCERIN • PHENOXYETHANOL • SODIUM HYALURONATE • CALCIUM PANTOTHENATE • SODIUM BENZOATE • SODIUM PCA • DISODIUM EDTA • UREA • TREHALOSE • POLYQUATERNIUM-51 (F.I.L. D11130/1).\nLes listes d’ingrédients entrant dans la composition des produits de notre marque sont régulièrement mises à jour. Avant d’utiliser un produit de notre marque, vous êtes invités à lire la liste d’ingrédients figurant sur son emballage afin de vous assurer que les ingrédients sont adaptés à votre utilisation personnelle","Le sérum C E FERULIC contient un trio d'actifs antioxydants pour une action ciblée sur les rides et la perte de fermeté :\n-15% VITAMINE C PURE : prévient le stress oxydatif en neutralisant les radicaux libres\n- 0,5% ACIDE FERULIQUE : stabilise la vitamine C et optimise son action antioxydante\n- 1% VITAMINE E : hydrate et stimule la synthèse de collagène pour préserver l'élasticité de la peau","3606000475380","3606000436442","635494345254","","","","","","Coffret Noel SkinCeuticals,Coffret Noel CE FERULIC,Coffret Noel Prévention Anti-ride,Coffret Noel antioxydant SkinCeuticals"]
["Skinceuticals","C E Ferulic","VFR09341","Trousse Bouclier Intégral Rides + Perte de fermeté - C E Ferulic 30ml","Routine anti-âge sérum antioxydant vitamine C pure + crème solaire visage offerte ","03 - SOINS | 112 - Soin visage | 073 - Anti-âge | 0631 - Sérum anti-âge","3433425405322","MIXTE",{"$f":"TEXT(\n  \"2022-05-23\",\n  \"JJ/MM/AA\"\n)","v":""},"97,00","","Saisonnier ","Non","0 635 494 363 210","","","3","120","200","85","220","150","1.0","Unité","","","","","","","","","","","600","285","385","225","03433425405339","24000","1000","1200","900","03433425405353","\n  Flacon 1 PCE\n \n \n \n    \n      \n   ","Découvrez la haute efficacité anti-âge avec votre BOUCLIER INTEGRAL RIDES + PERTE DE FERMETE contre les agresseurs environnementaux à l'origine du vieillissement cutané : votre sérum antioxydant à la vitamine C pure C E FERULIC 30ml + votre photoprotection ULTRA FACIAL DEFENSE SPF 50 15ml offerte dans une trousse premium en édition limitée.","SkinCeuticals, la haute efficacité recommandée et prescrite par les dermatologues, médecins et chirurgiens esthétiques. Nos formules associent une forte concentration en actifs purs à des textures à haute absorption cutanée pour offrir une haute efficacité anti-âge autour de 3 principes fondamentaux : prévenir, corriger et protéger.\n\nDECOUVREZ LA HAUTE EFFICACITE ANTI-ÂGE AVEC VOTRE BOUCLIER INTEGRAL RIDES + PERTE DE FERMETE : 15 jours de routine intégrale offerte pour voir la différence, dans une trousse premium.\nL'association d'un sérum antioxydant (bouclier interne) et d'une photoprotection (bouclier externe) permet de protéger la peau et de prévenir efficacement le vieillissement cutané en créant un bouclier intégral contre les radicaux libres générés par les agresseurs environnementaux :\n- Le sérum antioxydant C E FERULIC associe la vitamine C pure (dosée à 15%), la vitamine E et l'acide férulique afin de maximiser l'efficacité antioxydante. Cette formulation synergique optimise la protection de la peau contre les agressions environnementales afin de prévenir l'apparition des signes de vieillissement prématuré dus aux effets néfastes du soleil et de l'environnement (rides, ridules, perte de fermeté, perte d'éclat, taches brunes), tout en stimulant la production de collagène et d'élastine pour régénérer la peau. La peau est plus lumineuse, plus ferme et visiblement plus jeune. Convient aux peaux normales à sèches.\n- La photoprotection quotidienne ULTRA FACIAL DEFENSE SPF 50 [OFFERT] protège efficacement la peau des rayons UVB, UVA courts et UVA longs grâce à sa combinaison de filtres à large spectre, tout en hydratant intensément la peau."," ","","","","NA","Mature","Tout type de peau","Protection Moyenne (SPF 30)","Sérum","","","Anti rides","NA","Flacon","Sans parfum","","Anti âge global","C E FERULIC : le matin, sur peau propre, appliquer 3 à 4 gouttes sur l’ensemble du visage, du cou et du décolleté\n\nULTRA FACIAL DEFENSE SPF 50 : appliquer le produit juste avant de vous exposer au soleil. Renouveler fréquemment et généreusement l’application pour maintenir la protection, notamment après le bain, en cas de sudation ou après vous être essuyé.","740019 21 - INGREDIENTS:  AQUA / WATER • DIPROPYLENE GLYCOL • ASCORBIC ACID • GLYCERIN • LAURETH-23 • PHENOXYETHANOL • TOCOPHEROL • FERULIC ACID • SODIUM HYALURONATE (F.I.L. D31590/4).\nLes listes d’ingrédients entrant dans la composition des produits de notre marque sont régulièrement mises à jour. Avant d’utiliser un produit de notre marque, vous êtes invités à lire la liste d’ingrédients figurant sur son emballage afin de vous assurer que les ingrédients sont adaptés à votre utilisation personnelle","Le sérum C E FERULIC contient un trio d'actifs antioxydants pour une action ciblée sur les rides et la perte de fermeté :\n-15% VITAMINE C PURE : prévient le stress oxydatif en neutralisant les radicaux libres\n- 0,5% ACIDE FERULIQUE : stabilise la vitamine C et optimise son action antioxydante\n- 1% VITAMINE E : hydrate et stimule la synthèse de collagène pour préserver l'élasticité de la peau","","","","","","","","302 F - 01","Trousse Prevent + Protect,Trousse C E FERULIC + Ultra Facial defense 15ml,Trousse C E FERULIC et photoprotection 15ml  offerte,Duo C E FERULIC + Ultra Facial Defense 15ml "]
["Skinceuticals","Glycolic 10","MB519900","GLYCOLIC 10 Peeling exfoliant de Nuit révélateur d'éclat 50ml","Peeling exfoliant de nuit révélateur d'éclat","03 - SOINS | 112 - Soin visage | 075 - Exfoliant et Gommage | 0203 - Micro-peeling","3606000480964","MIXTE",{"$f":"TEXT(\n  \"2018-12-07\",\n  \"JJ/MM/AA\"\n)","v":""},"46,00","","Permanent ","Non","3606000480964","","3","75","3000","74","42","33","143","50.0","ml","","","","","","224","33","127","143","03337875849425","6120","285","385","225","03337875849432","245300","955","1155","901","03337875849456","\n  Tube 50 MLT\n \n \n \n    \n      \n   ","Soin de nuit à l’acide glycolique contenant une concentration d’acide glycolique actif de 10 %. Stimule le renouvellement cellulaire pour une peau éclatante de santé","Glycolic 10 renew Overnight  favorise le renouvellement cellulaire pour un maximum d’efficacité. La technologie active de la formule associe 10% d’acide glycolique à 2 % d’acide phytique qui accélèrent la desquamation naturelle, pour une peau visiblement plus lumineuse, plus lisse, plus jeune. Un complexe apaisant aux vertus protectrices permettent de  renforcer la barrière cutanée. Tous les bénéfices d’un peeling professionnel, à domicile: +36% d’éclat mesuré dès 8 semaines d’utilisation."," ","","","","NA","Tout type de peau","","NA","Fluide","","","Exfolie","NA","Tube","Sans parfum","","NA","Commencer par appliquer ce soin 1 soir sur 2 pour préparer la peau. Appliquer en couche homogène sur l'ensemble du visage et du décolleté. Après une semaine d'utilisation, appliquer quotidiennement le soir, ou suivre les recommandations d'un professionnel de santé.\nUtiliser systématiquement avec une protection solaire visage la journée.\nIdéal en relais des traitements pré ou post actes esthétiques (Avant un peeling ou pour prolonger ses effets)","855275 8 - INGREDIENTS:  AQUA / WATER • GLYCOLIC ACID • DICAPRYLYL CARBONATE • DIMETHICONE • SODIUM HYDROXIDE • BUTYLENE GLYCOL • PROPANEDIOL • GLYCERIN • PHYTIC ACID • CETYL PEG/PPG-10/1 DIMETHICONE • ALUMINUM STARCH OCTENYLSUCCINATE • NYLON-12 • POLYGLYCERYL-4 ISOSTEARATE • MAGNESIUM SULFATE • JOJOBA ESTERS • PHENOXYETHANOL • DISTEARDIMONIUM HECTORITE • HELIANTHUS ANNUUS SEED CERA / SUNFLOWER SEED WAX • CAPRYLYL GLYCOL • DISODIUM EDTA • SALICYLIC ACID • ACACIA DECURRENS FLOWER CERA / ACACIA DECURRENS FLOWER WAX • POLYGLYCERIN-3 • TOCOPHEROL • PENTAERYTHRITYL TETRA-DI-T-BUTYL HYDROXYHYDROCINNAMATE (F.I.L. D236319/1).\nLes listes d’ingrédients entrant dans la composition des produits de notre marque sont régulièrement mises à jour. Avant d’utiliser un produit de notre marque, vous êtes invités à lire la liste d’ingrédients figurant sur son emballage afin de vous assurer que les ingrédients sont adaptés à votre utilisation personnelle","Apporte de l'éclat, lisse le grain de peau, diminue les ridules. Délivre à la peau 10% d'acide glycolique actif grâce à un pH acide.\n-10% d'acide glycolique (exfolie et favorise le renouvellement cellulaire)\n-2% d'acide phytique ( Exfoliation douce)\n-1% complexe apaisant : cires de jojoba et tournesol (Forme une protection et apporte du confort)\n-Emulsion inverse (Conserve les niveaux d'acides actifs et la stabilité de la formule)\nInnocuité testée","3606000464186","3606000475380","","","","","","302 F - 01","Peeling de Nuit ,soin nuit révélateur d'éclat,Crème Peeling de Nuit"]
["Skinceuticals","A.G.E. Interrupter","VFR09449","A.G.E. INTERRUPTER  Soin visage rides et fermete 48ml","Crème anti-rides visage haute concentration, atténue les signes de vieillissement","03 - SOINS | 112 - Soin visage | 073 - Anti-âge | 0192 - Fermeté et Rides jour","0635494345254","MIXTE",{"$f":"TEXT(\n  \"2018-12-07\",\n  \"JJ/MM/AA\"\n)","v":""},"95,50","","Permanent ","Non","0635494345254","","99999","40","1440","286","80","80","65","48.0","ml","","","","","","1000","1","1","1","03433425344980","11440","330","400","140","03433425344997","411840","1000","1200","560","03433425345017","\n  Pot 48 MLT\n \n \n \n    \n      \n   ","Crème anti-rides haute concentration, conçue pour atténuer les signes visibles de vieillissement causés par les produits finaux de glycation avancée (AGE)","Cette crème anti-rides restructurante apporte fermeté et souplesse aux peaux matures. \nA.G.E. Interrupter est efficace pour contrer les effets de la glycation et protéger le collagène dans la peau. Enrichie en extrait de myrtille (riche en antioxydants): pour maintenir l'intégrité des protéines de soutien de la peau, et avec la plus haute concentration en Pro-Xylane™ pour améliorer la densité et l’élasticité ainsi qu'en phytosphingosine pour optimiser la fonction barrière tout en maximisant le taux d’hydratation cutané.\nce soin quotidien améliore l’apparence des signes visibles de vieillissement, soulage les sensations d’inconfort et de sécheresse cutanés."," ","","","","NA","Normale","Sèche","NA","Crème","","","Anti rides","NA","Pot","Sans parfum","","Anti âge global","Appliquer une ou deux fois par jour sur la peau préalablement nettoyée du visage, du cou et du décolleté.","740079 37 - INGREDIENTS:  AQUA / WATER • PROPYLENE GLYCOL • DIMETHICONE • HYDROXYPROPYL TETRAHYDROPYRANTRIOL • CYCLOHEXASILOXANE • ISOHEXADECANE • GLYCERIN • SYNTHETIC WAX • DIMETHICONE/PEG-10/15 CROSSPOLYMER • ALUMINUM STARCH OCTENYLSUCCINATE • PHENOXYETHANOL • MAGNESIUM SULFATE • CI 77163 / BISMUTH OXYCHLORIDE • ETHYLHEXYL HYDROXYSTEARATE • SALICYLOYL PHYTOSPHINGOSINE • ACRYLATES COPOLYMER • METHYLPARABEN • ETHYLPARABEN • DISODIUM EDTA • SORBITOL • VACCINIUM MYRTILLUS FRUIT EXTRACT • DIPROPYLENE GLYCOL • SODIUM CITRATE • ISOBUTANE • PARFUM / FRAGRANCE • SILICA [NANO] / SILICA • TOCOPHEROL • COUMARIN (F.I.L. Z293926/1).\nLes listes d’ingrédients entrant dans la composition des produits de notre marque sont régulièrement mises à jour. Avant d’utiliser un produit de notre marque, vous êtes invités à lire la liste d’ingrédients figurant sur son emballage afin de vous assurer que les ingrédients sont adaptés à votre utilisation personnelle","Soin anti-rides & fermeté\n- 30% Pro-Xylane : Renforce le soutien cutané pour une peau plus rebondie\n- 4% Extrait de myrtille : Inhibe la glycation et protège le collagène\n- Phytosphingosine : Renforce la barrière cutanée en favorisant la synthèse des lipides nécessaires à la fonction barrière","0635494345254","0635494363210","3606000436442","3606000509603","3606000435087","3606000482159","","302 F - 01","crème anti-rides,crème anti-âge,soin visage anti-rides"]
["Skinceuticals","Silymarin Cf","VFR10117","Silymarin CF Serum Antioxydant 30ML","Sérum antioxydant à la vitamine C pure pour les peaux grasses ou à imperfections","03 - SOINS | 112 - Soin visage | 073 - Anti-âge | 0631 - Sérum anti-âge","3337875746267","MIXTE",{"$f":"TEXT(\n  \"2021-01-11\",\n  \"JJ/MM/AA\"\n)","v":""},"97,00","","Permanent ","Non","3337875746267","","","25","2400","95","58","37","106","30.0","ml","","","","","","","","","","","2375","220","320","135","03337875768993","228000","1000","1200","810","03337875769013","\n  Flacon 30 MLT\n \n \n \n    \n      \n   ","Sérum antioxydant à la vitamine C pure pour les peaux grasses ou à imperfections qui délivre une double-action anti-âge et anti-imperfections : il prévient la formation d’imperfections cutanées, affine le grain de peau, réduit la brillance et l’apparence des pores dilatés, lisse les rides et ridules.","SkinCeuticals, la haute efficacité recommandée et prescrite par les dermatologues, médecins et chirurgiens esthétiques. Nos formules associent une forte concentration en actifs purs à des textures à haute absorption cutanée pour offrir une haute efficacité anti-âge autour de 3 principes fondamentaux : prévenir, corriger et protéger.\n\nSÉRUM ANTIOXYDANT HAUTE PERFORMANCE ANTI-IMPERFECTIONS ASSOCIANT 15% DE VITAMINE C PURE, 0.5% D’ACIDE FERULIQUE, 0.5% DE SILYMARINE ET 0.5% D’ACIDE SALICYLIQUE.\nSilymarin CF combine la vitamine C, l’acide férulique et la silymarine, aux propriétés antioxydantes, pour optimiser la protection de la peau contre les dommages radicalaires. En neutralisant l’oxydation des lipides présents dans le sébum, la silymarine prévient la formation d’imperfections cutanées. Tout en améliorant les signes visibles de l’âge tels que les ridules, Silymarin CF permet d’affiner le grain de peau, de réduire la brillance et l’apparence des pores dilatés. Formulé avec une texture fluide qui pénètre rapidement dans la peau sans laisser de film gras, ce sérum antioxydant convient à tous les types de peaux et est idéal pour les peaux grasses et/ou sujettes aux imperfections."," ","","","","NA","Tout type de peau","Grasse","NA","Sérum","","","Anti rides","NA","Flacon","Sans parfum","","Anti âge global","Le matin, sur peau propre, appliquer 3 à 4 gouttes sur l’ensemble du visage, du cou et du décolleté","855290 57 - INGREDIENTS:  AQUA / WATER • ALCOHOL DENAT. • ASCORBIC ACID • PROPYLENE GLYCOL • DIPROPYLENE GLYCOL • LAURETH-23 • SILYBUM MARIANUM FRUIT EXTRACT • SODIUM CITRATE • SALICYLIC ACID • FERULIC ACID (F.I.L. D251111/1).\nLes listes d’ingrédients entrant dans la composition des produits de notre marque sont régulièrement mises à jour. Avant d’utiliser un produit de notre marque, vous êtes invités à lire la liste d’ingrédients figurant sur son emballage afin de vous assurer que les ingrédients sont adaptés à votre utilisation personnelle","Le sérum antioxydant SILYMARIN CF contient une combinaison d'actifs haute efficacité pour une action ciblée sur les rides et les imperfections cutanées :\n-15% VITAMINE C PURE : prévient le stress oxydatif en neutralisant les radicaux libres\n- 0,5% ACIDE FERULIQUE : stabilise la vitamine C et optimise son action antioxydante\n- 0,5% SILYMARINE: réduit l'oxydation du sébum et prévient l'apparition des imperfections\n- 0,5% ACIDE SALICYLIQUE : réduit les imperfections et l'apparence des pores dilatés","0635494391206","3606000481282","3606000436442","","","","","302 F - 01","Sérum antioxydant,Sérum à la vitamine C,Sérum anti-âge,Sérum anti-imperfections,Sérum antioxydant peau grasse,Sérum à la vitamine C peau grasse,Sérum anti-âge peau grasse,Sérum peau grasse"]
["Skinceuticals","Silymarin Cf","VFR09343","Trousse Bouclier Intégral Rides + Imperfections - Silymarin CF 30ml","Routine anti-âge sérum antioxydant vitamine C pure + crème solaire visage offerte ","03 - SOINS | 112 - Soin visage | 073 - Anti-âge | 0631 - Sérum anti-âge","3433425405407","FEMME",{"$f":"TEXT(\n  \"2022-05-23\",\n  \"JJ/MM/AA\"\n)","v":""},"97,00","","Saisonnier ","Non","3337875746267","","","3","120","200","85","220","150","1.0","Unité","","","","","","","","","","","600","285","385","225","03433425405414","24000","1000","1200","900","03433425405438","\n  Flacon 1 PCE\n \n \n \n    \n      \n   ","Découvrez la haute efficacité anti-âge avec votre BOUCLIER INTEGRAL RIDES + IMPERFECTIONS contre les agresseurs environnementaux à l'origine du vieillissement cutané : votre sérum antioxydant à la vitamine C pure SILYMARIN CF 30ml + votre photoprotection ULTRA FACIAL DEFENSE SPF 50 15ml offerte dans une trousse premium en édition limitée.","SkinCeuticals, la haute efficacité recommandée et prescrite par les dermatologues, médecins et chirurgiens esthétiques. Nos formules associent une forte concentration en actifs purs à des textures à haute absorption cutanée pour offrir une haute efficacité anti-âge autour de 3 principes fondamentaux : prévenir, corriger et protéger.\n\nDECOUVREZ LA HAUTE EFFICACITE ANTI-ÂGE AVEC VOTRE BOUCLIER INTEGRAL RIDES + IMPERFECTIONS : 15 jours de routine intégrale offerte pour voir la différence, dans une trousse premium.\nL'association d'un sérum antioxydant (bouclier interne) et d'une photoprotection (bouclier externe) permet de protéger la peau et de prévenir efficacement le vieillissement cutané en créant un bouclier intégral contre les radicaux libres générés par les agresseurs environnementaux :\n- Le sérum antioxydant SILYMARIN CF associe la vitamine C pure (dosée à 15%), la silymarine et l'acide férulique afin de maximiser l'efficacité antioxydante. Cette formulation synergique optimise la protection de la peau contre les dommages radicalaires causés par les agressions environnementales. En neutralisant l'oxydation des lipides présents dans le sébum, la silymarine prévient la formation d'imperfections cutanées. Tout en améliorant la signes visibles de l'âge tels que les rides, les ridules et la perte d'éclat, ce sérum permet d'affiner le grain de peau, de réduire la brillance et l'apparence des pores dilatés.  Convient aux peaux grasses ou à imperfections.\n- La photoprotection quotidienne ULTRA FACIAL DEFENSE SPF 50 [OFFERT] protège efficacement la peau des rayons UVB, UVA courts et UVA longs grâce à sa combinaison de filtres à large spectre, tout en hydratant intensément la peau."," ","","","","NA","Tout type de peau","Grasse","Protection Moyenne (SPF 30)","Crème","","","Anti rides","NA","Flacon","Sans parfum","","Anti âge global","SILYMARIN CF : le matin, sur peau propre, appliquer 3 à 4 gouttes sur l’ensemble du visage, du cou et du décolleté\n\nULTRA FACIAL DEFENSE SPF 50 : appliquer le produit juste avant de vous exposer au soleil. Renouveler fréquemment et généreusement l’application pour maintenir la protection, notamment après le bain, en cas de sudation ou après vous être essuyé.","855290 57 - INGREDIENTS:  AQUA / WATER • ALCOHOL DENAT. • ASCORBIC ACID • PROPYLENE GLYCOL • DIPROPYLENE GLYCOL • LAURETH-23 • SILYBUM MARIANUM FRUIT EXTRACT • SODIUM CITRATE • SALICYLIC ACID • FERULIC ACID (F.I.L. D251111/1).\nLes listes d’ingrédients entrant dans la composition des produits de notre marque sont régulièrement mises à jour. Avant d’utiliser un produit de notre marque, vous êtes invités à lire la liste d’ingrédients figurant sur son emballage afin de vous assurer que les ingrédients sont adaptés à votre utilisation personnelle","Le sérum antioxydant SILYMARIN CF contient une combinaison d'actifs haute efficacité pour une action ciblée sur les rides et les imperfections cutanées :\n-15% VITAMINE C PURE : prévient le stress oxydatif en neutralisant les radicaux libres\n- 0,5% ACIDE FERULIQUE : stabilise la vitamine C et optimise son action antioxydante\n- 0,5% SILYMARINE: réduit l'oxydation du sébum et prévient l'apparition des imperfections\n- 0,5% ACIDE SALICYLIQUE : réduit les imperfections et l'apparence des pores dilatés","","","","","","","","302 F - 01","Trousse Silymarin CF + Ultra Facial Defense,Trousse Prévention et protection SkinCeuticals,Trousse SkinCeuticals Silymarin CF,Trousse cadeau Silymarin CF,Trousse cadeau antioxydant & photoprotection"]
["Skinceuticals","Redness Neutralizer","S0798404","REDNESS NEUTRALIZER Soin visage anti-rougeurs, anti-irritations 240ml","Soin visage anti-rougeurs, anti-irritations","03 - SOINS | 112 - Soin visage | 081 - Soin quotidien | 0222 - Anti-imperfections","3606000495395","MIXTE",{"$f":"TEXT(\n  \"2018-12-07\",\n  \"JJ/MM/AA\"\n)","v":""},"49,40","","Permanent ","Non","3606000495395","","","64","2304","149","43","42","115","50.0","ml","","","","","","","","","","","9962","364","364","143","03606000496279","358632","1016","1219","857","03606000416697","\n  Flacon Pompe 50 MLT\n \n \n \n    \n      \n   ","Soin hydratant pour les peaux irritées et sensibles, doté d’une formule innovante qui calme les rougeurs et aide à préserver l’intégrité de la barrière cutanée. Réduit la production des agents inflammatoires.","Emulsion légère, formulée pour minimiser l’apparence des rougeurs, apaiser les sensations d’inconfort et prévenir les éruptions cutanées. Redness Neutralizer renferme un complexe – NeuroMed – utilisant le Palmitoyl Tri-Peptide 8, qui prévient et réduit les hausses de température de la peau et atténue la réaction inflammatoire, associé à l’extrait d’écorce de wapa qui réduit l’hyper-réactivité cutanée. \nLa formule agit en 4 étapes en renforçant la barrière protectrice de la peau, en diminuant les neurotransmetteurs, en réduisant les médiateurs pro-inflammatoires et en abaissant la température cutanée. Ce soin hydratant ayant prouvé sa capacité à réduire l’apparence des rougeurs et à rendre la peau plus lisse et plus éclatante renferme aussi du bisabolol apaisant et de la vitamine E antioxydante."," ","","","","NA","Sensible","Tout type de peau","NA","Fluide","","","Apaise","NA","Flacon pompe","Sans parfum","","NA","Deux fois par jour, appliquer en fine couche par tapotements sur la peau du visage, du cou et du décolleté préalablement nettoyée.","855037 31 - INGREDIENTS:  AQUA / WATER • SQUALANE • GLYCERIN • ISOPROPYL LAUROYL SARCOSINATE • UNDECANE • BUTYROSPERMUM PARKII BUTTER / SHEA BUTTER • TRIDECANE • PEG-100 STEARATE • GLYCERYL STEARATE • PEG-20 STEARATE • AMMONIUM POLYACRYLDIMETHYLTAURAMIDE / AMMONIUM POLYACRYLOYLDIMETHYL TAURATE • BISABOLOL • BUTYLENE GLYCOL • CAFFEINE • CAPRYLYL GLYCOL • CARBOMER • CETYL ALCOHOL • DEXTRIN • DISODIUM EDTA • EPERUA FALCATA BARK EXTRACT • FARNESOL • PALMITOYL TRIPEPTIDE-8 • PANTHENOL • PENTAERYTHRITYL TETRA-DI-T-BUTYL HYDROXYHYDROCINNAMATE • SODIUM BENZOATE • TOCOPHEROL • TRIETHANOLAMINE • XANTHAN GUM • ZINC GLUCONATE (F.I.L. D46381/3).\nLes listes d’ingrédients entrant dans la composition des produits de notre marque sont régulièrement mises à jour. Avant d’utiliser un produit de notre marque, vous êtes invités à lire la liste d’ingrédients figurant sur son emballage afin de vous assurer que les ingrédients sont adaptés à votre utilisation personnelle","Combat les facteurs d’agression environnementale pour diminuer les rougeurs et la sensation d’inconfort de la peau\n- Palmitoyl tripeptide-8\n- Extrait d’écorce d’eperua falcata\n- Bisabolol\n- Glycérine","3606000463622","0635494310207","0635494314205","","","","","302 F - 01","crème anti-rougeurs,soin visage anti-rougeurs,crème peaux sensibles,soin visage peaux sensibles"]
["Skinceuticals","Phloretin Cf","VFR09348","Coffret Noël Rides + Taches - Phloretin CF 30ml","Routine Noël anti-âge sérum antioxydant vitamine C pure + sérum correcteur fermeté offerte","","3433425405575","FEMME",{"$f":"TEXT(\n  \"2022-10-01\",\n  \"JJ/MM/AA\"\n)","v":""},"97,00","","Permanent ","Oui","3433425405575","","3","6","240","327","51","190","148","1.0","Unité","","","","","","981","153","190","148","03433425417370","1962","285","385","225","03433425405582","78480","1000","1200","900","03433425405605","\n  Flacon 1 PCE\n \n \n \n    \n      \n   ","Avec SkinCeuticals, célébrez Noël et offrez la haute efficacité cliniquement prouvée. Avec la ROUTINE INTEGRALE RIDES + TACHES, profitez d'une action anti-âge sur-mesure: votre sérum antioxydant à la vitamine C pure PHLORETIN CF 30ml + EN CADEAU, votre sérum correcteur à l'acide hyaluronique H.A. Intensifier 15ml offert dans un coffret premium et élégant, eco-conçu.","SkinCeuticals, la haute efficacité recommandée et prescrite par les dermatologues, médecins et chirurgiens esthétiques. Nos formules associent une forte concentration en actifs purs à des textures à haute absorption cutanée pour offrir une haute efficacité anti-âge autour de 3 principes fondamentaux : prévenir, corriger et protéger.\n\nCELEBREZ NOËL ET OFFREZ LA HAUTE EFFICACITE ANTI-ÂGE AVEC VOTRE ROUTINE INTEGRALE RIDES + TACHES. Découvrez nos sérums iconiques et leur action anti-âge sur-mesure et complète, intégrés dans un élégant coffret premium et eco-conçu, en édition limitée.\n\n- Le sérum antioxydant PHLORETIN CF associe la vitamine C pure (dosée à 10%), la phlorétine et l'acide férulique afin de maximiser l'efficacité antioxydante. Cette formulation synergique optimise la protection de la peau contre les agressions environnementales afin de prévenir l'apparition des signes de vieillissement prématuré dus aux effets néfastes du soleil et de l'environnement (rides, ridules, perte de fermeté, perte d'éclat, taches brunes), tout en stimulant la production de collagène et d'élastine pour régénérer la peau. Le teint est plus uniforme, la peau est plus lumineuse et visiblement plus jeune. Convient à tous les types de peaux.\n\n- EN CADEAU, pour compléter votre routine: le sérum correcteur anti-âge H.A. INTENSIFIER offert, capable de booster de 30% le taux d'acide hyaluronique cutané et d'en préserver sa dégradation. Formulé à base de 10% de ProxylaneTM, de 1.3% d'acide hyaluronique et de 2.2% d'extraits de riz violet et de racine de réglisse, ce sérum haute efficacité anti-âge procure une hydratation instantanée et révèle une peau plus ferme, plus lisse, et repulpée. Il atténue l'apparence des rides de la patte d'oie, du sillon nasogénien et autres rides et ridules. Convient à tous types de peau. Testé post-injections."," ","","","","NA","Grasse","Tout type de peau","NA","Sérum","","","Anti rides","NA","Flacon","Sans parfum","","Anti âge global","PHLORETIN CF : le matin, sur peau propre, appliquer 3 à 4 gouttes sur l’ensemble du visage, du cou et du décolleté\n\nH.A. INTENSIFIER: matin et soir, appliquer 4 à 6 gouttes sur le visage, le contour des yeux et des lèvres, le cou et le décolleté.","740069 11 - INGREDIENTS:  AQUA / WATER • DIPROPYLENE GLYCOL • ALCOHOL DENAT. • ASCORBIC ACID • BUTYLENE GLYCOL • TRIETHYL CITRATE • PHLORETIN • FERULIC ACID (F.I.L. D30021/1).\nLes listes d’ingrédients entrant dans la composition des produits de notre marque sont régulièrement mises à jour. Avant d’utiliser un produit de notre marque, vous êtes invités à lire la liste d’ingrédients figurant sur son emballage afin de vous assurer que les ingrédients sont adaptés à votre utilisation personnelle","Le sérum PHLORETIN CF contient un trio d'actifs antioxydants pour une action ciblée sur les rides et les taches pigmentaires :\n-10% VITAMINE C PURE : prévient le stress oxydatif en neutralisant les radicaux libres\n- 0,5% ACIDE FERULIQUE : stabilise la vitamine C et optimise son action antioxydante\n- 2% PHLORETINE : inhibe la production de taches pigmentaires induites par les UV et atténue les irrégularités du teint","3606000475380","3606000481282","635494345254","","","","","","Coffre Noel SkinCeuticals,Coffret Noel Phloretin CF,Coffret Phloretin CF,Coffret Noel Prévention anti-ride & anti-taches"]
["Skinceuticals","Phloretin Cf","VFR07076","Phloretin CF Serum antioxydant anti-rides Vitamine C 30ml","Sérum visage anti-âge antioxydant anti-rides à la vitamine C peaux normales à mixtes","03 - SOINS | 112 - Soin visage | 073 - Anti-âge | 0631 - Sérum anti-âge","0635494328202","MIXTE",{"$f":"TEXT(\n  \"2018-12-07\",\n  \"JJ/MM/AA\"\n)","v":""},"97,00","","Permanent ","Non","0635494328202","","","25","2400","101","60","40","110","30.0","ml","","","","","","","","","","","2740","220","320","135","03433425322490","263040","1000","1200","810","03433425322513","\n  Pipette 30 MLT\n \n \n \n    \n      \n   ","Un sérum antioxydant de jour hautement concentré en vitamine C, offre une protection avancée contre les agressions environnementales et atténue ridules et taches pigmentaires.","Soin antioxydant quotidien, Phloretin CF associe 10 % de vitamine C pure, 2 % de phlorétine et 0,5 % d’acide férulique pour aider à prévenir les dommages radicalaires induits par les facteurs environnementaux tels que les UV et la pollution. Utilisé régulièrement, il améliore aussi l’apparence des signes visibles de l’âge et des photo-dommages – ridules, rides, taches pigmentaires... – en encourageant le processus de renouvellement cellulaire et préserve l'intégrité de la matrice des protéines de soutien de la peau."," ","","","","NA","Normale","Grasse","NA","Sérum","","","Protège","NA","Pipette","Sans parfum","","NA","PHLORETIN CF : le matin, sur peau propre, appliquer 3 à 4 gouttes sur l’ensemble du visage, du cou et du décolleté","740069 11 - INGREDIENTS:  AQUA / WATER • DIPROPYLENE GLYCOL • ALCOHOL DENAT. • ASCORBIC ACID • BUTYLENE GLYCOL • TRIETHYL CITRATE • PHLORETIN • FERULIC ACID (F.I.L. D30021/1).\nLes listes d’ingrédients entrant dans la composition des produits de notre marque sont régulièrement mises à jour. Avant d’utiliser un produit de notre marque, vous êtes invités à lire la liste d’ingrédients figurant sur son emballage afin de vous assurer que les ingrédients sont adaptés à votre utilisation personnelle","Le sérum PHLORETIN CF contient un trio d'actifs antioxydants pour une action ciblée sur les rides et les taches pigmentaires :\n-10% VITAMINE C PURE : prévient le stress oxydatif en neutralisant les radicaux libres\n- 0,5% ACIDE FERULIQUE : stabilise la vitamine C et optimise son action antioxydante\n- 2% PHLORETINE : inhibe la production de taches pigmentaires induites par les UV et atténue les irrégularités du teint","3606000463783","3606000499607","0635494343205","","","","","302 F - 01","sérum vitamine C,sérum vitamine C visage,sérum vitamine C pour visage,sérum antioxydant,sérum antioxydant visage,sérum anti-rides"]
["Skinceuticals","Phloretin Cf","VFR09342","Trousse Bouclier Intégral Rides + Taches - Phloretin CF 30ml","Routine anti-âge sérum antioxydant vitamine C pure + crème solaire visage offerte ","03 - SOINS | 112 - Soin visage | 073 - Anti-âge | 0631 - Sérum anti-âge","3433425405360","FEMME",{"$f":"TEXT(\n  \"2022-05-23\",\n  \"JJ/MM/AA\"\n)","v":""},"97,00","","Saisonnier ","Non","0635494328202","","","3","120","200","85","220","150","1.0","Unité","","","","","","","","","","","600","285","385","225","03433425405377","24000","1000","1200","900","03433425405391","\n  Flacon 1 PCE\n \n \n \n    \n      \n   ","Découvrez la haute efficacité anti-âge avec votre BOUCLIER INTEGRAL RIDES + TACHES contre les agresseurs environnementaux à l'origine du vieillissement cutané : votre sérum antioxydant à la vitamine C pure PHLORETIN CF 30ml + votre photoprotection ULTRA FACIAL DEFENSE SPF 50 15ml offerte dans une trousse premium en édition limitée.","SkinCeuticals, la haute efficacité recommandée et prescrite par les dermatologues, médecins et chirurgiens esthétiques. Nos formules associent une forte concentration en actifs purs à des textures à haute absorption cutanée pour offrir une haute efficacité anti-âge autour de 3 principes fondamentaux : prévenir, corriger et protéger.\n\nDECOUVREZ LA HAUTE EFFICACITE ANTI-ÂGE AVEC VOTRE BOUCLIER INTEGRAL RIDES + TACHES : 15 jours de routine intégrale offerte pour voir la différence, dans une trousse premium.\nL'association d'un sérum antioxydant (bouclier interne) et d'une photoprotection (bouclier exterene) permet de protéger la peau et de prévenir efficacement le vieillissement cutané en créant un bouclier intégral contre les radicaux libres générés par les agresseurs environnementaux :\n- Le sérum antioxydant PHLORETIN CF associe la vitamine C pure (dosée à 10%), la phlorétine et l'acide férulique afin de maximiser l'efficacité antioxydante. Cette formulation synergique optimise la protection de la peau contre les agressions environnementales afin de prévenir l'apparition des signes de vieillissement prématuré dus aux effets néfastes du soleil et de l'environnement (rides, ridules, perte de fermeté, perte d'éclat, taches brunes), tout en stimulant la production de collagène et d'élastine pour régénérer la peau. Le teint est plus uniforme, la peau est plus lumineuse et visiblement plus jeune. Convient à tous les types de peaux.\n- La photoprotection quotidienne ULTRA FACIAL DEFENSE SPF 50 [OFFERT] protège efficacement la peau des rayons UVB, UVA courts et UVA longs grâce à sa combinaison de filtres à large spectre, tout en hydratant intensément la peau."," ","","","","NA","Tout type de peau","Normale","Protection Moyenne (SPF 30)","Sérum","","","Anti rides","NA","Flacon","Sans parfum","","Anti âge global","PHLORETIN CF : le matin, sur peau propre, appliquer 3 à 4 gouttes sur l’ensemble du visage, du cou et du décolleté\n\nULTRA FACIAL DEFENSE SPF 50 : appliquer le produit juste avant de vous exposer au soleil. Renouveler fréquemment et généreusement l’application pour maintenir la protection, notamment après le bain, en cas de sudation ou après vous être essuyé.","740069 11 - INGREDIENTS:  AQUA / WATER • DIPROPYLENE GLYCOL • ALCOHOL DENAT. • ASCORBIC ACID • BUTYLENE GLYCOL • TRIETHYL CITRATE • PHLORETIN • FERULIC ACID (F.I.L. D30021/1).\nLes listes d’ingrédients entrant dans la composition des produits de notre marque sont régulièrement mises à jour. Avant d’utiliser un produit de notre marque, vous êtes invités à lire la liste d’ingrédients figurant sur son emballage afin de vous assurer que les ingrédients sont adaptés à votre utilisation personnelle","Le sérum PHLORETIN CF contient un trio d'actifs antioxydants pour une action ciblée sur les rides et les taches pigmentaires :\n-10% VITAMINE C PURE : prévient le stress oxydatif en neutralisant les radicaux libres\n- 0,5% ACIDE FERULIQUE : stabilise la vitamine C et optimise son action antioxydante\n- 2% PHLORETINE : inhibe la production de taches pigmentaires induites par les UV et atténue les irrégularités du teint","3606000475380","3606000481282","635494345254","","","","","302 F - 01","Trousse Skinceuticals,Trousse antioxydant & photoprotection,Trousse Phloretin Cf & photoprotection"]
["Skinceuticals","Phloretin Cf","S1111704","PHLORETIN CF Gel antioxydant rides et taches 30ml","Sérum Visage Antioxydant Anti-rides et Anti-tâches","03 - SOINS | 112 - Soin visage | 073 - Anti-âge | 0195 - Prévention jour","0635494347203","MIXTE",{"$f":"TEXT(\n  \"2018-12-07\",\n  \"JJ/MM/AA\"\n)","v":""},"97,00","","Permanent ","Non","0635494328202","","","54","2268","61","57","38","107","30.0","ml","","","","","","","","","","","3723","362","372","125","20635494347207","156362","1016","1219","906","40635494347201","\n  Flacon Pompe 30 MLT\n \n \n \n    \n      \n   ","Un sérum antioxydant de jour hautement concentré en vitamine C, offre une protection avancée contre les agressions environnementales et atténue ridules et taches pigmentaires.","Ce sérum en gel hautement concentré en antioxydants, combine 2 % de phlorétine, 10 % de Vitamine C pure et 0,5 % d'acide férulique. Ce soin prévient et corrige les différents signes du photovieillissement, comme les taches pigmentaires et taches de vieillesse. La peau parait plus jeune et se défend mieux contre le vieillissement dû aux facteurs environnementaux. Sa texture gel s'adapte à toutes les peaux et favorise l'application et la pénétration au sein de l'épiderme.\nUne fois absorbé, ce sérum résiste aux frottements et à l'eau. Le sérum reste actif pour un minimum de 72 heures, ce qui en fait un excellent soin complémentaire à un écran solaire.\nPour tous types de peau même sensible."," ","","","","NA","Tout type de peau","Normale","NA","Gel","","","Protège","NA","Flacon pompe","Sans parfum","","NA","PHLORETIN CF : le matin, sur peau propre, appliquer 3 à 4 gouttes sur l’ensemble du visage, du cou et du décolleté","855022 15 - INGREDIENTS:  AQUA / WATER • DIPROPYLENE GLYCOL • BUTYLENE GLYCOL • ALCOHOL DENAT. • ASCORBIC ACID • UNDECANE • BIS-HYDROXYETHOXYPROPYL DIMETHICONE • DIMETHICONE • CAPRYLIC/CAPRIC TRIGLYCERIDE • TRIDECANE • PHLORETIN • LAURYL PEG-9 POLYDIMETHYLSILOXYETHYL DIMETHICONE • DIMETHICONE/PEG-10/15 CROSSPOLYMER • DIMETHICONE/POLYGLYCERIN-3 CROSSPOLYMER • FERULIC ACID • SODIUM HYDROXIDE • DISODIUM EDTA (F.I.L. D41813/1).\nLes listes d’ingrédients entrant dans la composition des produits de notre marque sont régulièrement mises à jour. Avant d’utiliser un produit de notre marque, vous êtes invités à lire la liste d’ingrédients figurant sur son emballage afin de vous assurer que les ingrédients sont adaptés à votre utilisation personnelle","Le sérum PHLORETIN CF contient un trio d'actifs antioxydants pour une action ciblée sur les rides et les taches pigmentaires :\n-10% VITAMINE C PURE : prévient le stress oxydatif en neutralisant les radicaux libres\n- 0,5% ACIDE FERULIQUE : stabilise la vitamine C et optimise son action antioxydante\n- 2% PHLORETINE : inhibe la production de taches pigmentaires induites par les UV et atténue les irrégularités du teint","0635494348200","3606000463783","0635494317206","","","","","302 F - 01","gel antioxydant,antioxydant visage,soin anti-rides ,soin anti-taches,soin anti-rides visage,soin anti-taches visage,soin à la vitamine C visage"]
["Skinceuticals","Eye Balm","S0910004","EYE BALM Baume hydratant contour des yeux 14g","Soin hydratant anti poches contour des yeux","03 - SOINS | 112 - Soin visage | 180 - Soin des yeux et des lèvres | 0784 - Soin des yeux","0635494369205","MIXTE",{"$f":"TEXT(\n  \"2018-12-07\",\n  \"JJ/MM/AA\"\n)","v":""},"46,90","","Permanent ","Non","0635494369205","","","108","2916","79","52","51","41","14.0","g","","","","","","","","","","","8981","319","325","152","20635494369209","242495","1000","1200","457","40635494369203","\n  Pot 14 GRM\n \n \n \n    \n      \n   ","Soin anti-âge du contour des yeux à la texture baume spécialement formulé pour lutter contre les trois principaux signes de l'âge : la perte d'hydratation, la destruction du collagène et les dommages dus aux radicaux libres.","Soin intensément hydratant, Eye Balm renferme des isoflavones de soja, des antioxydants, ainsi que des ingrédients d’origine marine et végétale pour cibler les signes visibles de l’âge et prendre soin de la zone délicate du contour des yeux. Sa formule riche et apaisante, allie douceur et efficacité pour lutter contre les agressions extérieures et la dégradation du collagène. Eye Balm améliore l’apparence des rides et ridules et diminue les poches sous les yeux. Le fini est mat et souple sur la peau."," ","","","","NA","Normale","Sèche","NA","Baume","","","Anti rides","NA","Pot","Sans parfum","","Anti âge global","Une à deux fois par jour, appliquer Eye Balm sous l'œil et le long de l’arcade sourcilière, en évitant la paupière mobile.","740024 29 - INGREDIENTS:  AQUA / WATER • GLYCERIN • ALOE BARBADENSIS LEAF JUICE • MYRISTYL MYRISTATE • CETYL PALMITATE • TOCOPHEROL • STEARIC ACID • HYDROGENATED VEGETABLE OIL • PARAFFIN • PALMITIC ACID • PETROLATUM • DIMETHICONE • HYDROGENATED LECITHIN • CETYL ALCOHOL • CAPRYLIC/CAPRIC/MYRISTIC/STEARIC TRIGLYCERIDE • PHENOXYETHANOL • TRIETHANOLAMINE • LAUROYL LYSINE • CARBOMER • GLYCINE SOJA PROTEIN / SOYBEAN PROTEIN • PENTYLENE GLYCOL • CAPRYLYL GLYCOL • CHLORPHENESIN • BISABOLOL • MYRISTIC ACID • PENTAERYTHRITYL TETRA-DI-T-BUTYL HYDROXYHYDROCINNAMATE • SILYBUM MARIANUM EXTRACT • DISODIUM EDTA • CAPRYLIC/CAPRIC TRIGLYCERIDE • RETINYL PALMITATE • SODIUM COCOYL GLUTAMATE • HELIANTHUS ANNUUS SEED OIL / SUNFLOWER SEED OIL • ETHYLHEXYLGLYCERIN • SODIUM BENZOATE • POTASSIUM SORBATE • FARNESOL • CITRIC ACID • CRITHMUM MARITIMUM EXTRACT • BHT (F.I.L. D216313/1).\nLes listes d’ingrédients entrant dans la composition des produits de notre marque sont régulièrement mises à jour. Avant d’utiliser un produit de notre marque, vous êtes invités à lire la liste d’ingrédients figurant sur son emballage afin de vous assurer que les ingrédients sont adaptés à votre utilisation personnelle","Crème hydratante riche, aide à réduire les poches et atténue les signes visibles de vieillissement du contour des yeux.\n- Isoflavones de soja : améliore la fermeté de la peau\n- Vitamine E (alpha tocophérol) : Neutralise les radicaux libres et rétablit la concentration lipidique de la peau.\n- Silymarine : Neutralise les radicaux libres et lutte contre les signes de l’âge.\n- Extrait de gorgone : Extrait marin naturel aux propriétés anti-irritantes.","0635494368208","0635494348200","0635494363210","","","","","302 F - 01","hydratant contour des yeux,anti-poches yeux,crème anti-cernes"]
["Skinceuticals","Face Cream","S0908103","FACE CREAM Crème visage rides et fermeté  50ml","Crème visage antioxydante anti-rides et fermeté","03 - SOINS | 112 - Soin visage | 073 - Anti-âge | 0192 - Fermeté et Rides jour","0635494368208","MIXTE",{"$f":"TEXT(\n  \"2018-12-07\",\n  \"JJ/MM/AA\"\n)","v":""},"85,00","","Permanent ","Non","0635494368208","","","56","1792","170","44","43","132","50.0","ml","","","","","","","","","","","9921","313","402","148","20635494368202","317472","1016","1219","591","40635494368206","\n  Flacon Pompe 50 MLT\n \n \n \n    \n      \n   ","Crème anti-âge restructurante enrichie en isoflavones de soja et antioxydants pour nourrir, augmenter la fermeté et protéger la peau des dommages des radicaux libres.","Soin hydratant quotidien dédié aux peaux sèches et matures. Face Cream combat les effets visibles de la dégradation du collagène et  le déssèchement. Les isoflavones de soja préservent le réseau de soutien de la peau, lisse l’apparence des rides et ridules, tandis qu'un cocktail unique d’huiles de pépin de raisin, de tournesol, de sésame et de soja comble les carences en lipides cutanés essentiels.\nÉgalement enrichie en vitamine E, thé vert du Japon, sylimarine et autres actifs antioxydants, cette crème pénètre rapidement sans laisser de fini gras."," ","","","","NA","Normale","Sèche","NA","Crème","","","Anti rides","NA","Flacon pompe","Sans parfum","","Anti âge global","Une à deux fois par jour, appliquer Face Cream sur l'ensemble du visage, du cou et du décolleté.","740038 42 - INGREDIENTS:  AQUA / WATER • DIMETHICONE • GLYCERIN • NYLON-12 • STEARETH-21 • DIPROPYLENE GLYCOL • ALCOHOL DENAT. • BORON NITRIDE • AMMONIUM ACRYLOYLDIMETHYLTAURATE/VP COPOLYMER • HELIANTHUS ANNUUS SEED OIL / SUNFLOWER SEED OIL • PHENOXYETHANOL • VITIS VINIFERA SEED OIL / GRAPE SEED OIL • TOCOPHEROL • BIS-PEG/PPG-20/20 DIMETHICONE • SESAMUM INDICUM OIL / SESAME SEED OIL • GLYCINE SOJA OIL / SOYBEAN OIL • CAPRYLYL GLYCOL • PROPYLENE GLYCOL • POLYACRYLAMIDE • DIMETHICONOL • SODIUM BENZOATE • C13-14 ISOPARAFFIN • DIMETHICONE/VINYL DIMETHICONE CROSSPOLYMER • PENTAERYTHRITYL TETRA-DI-T-BUTYL HYDROXYHYDROCINNAMATE • SILYBUM MARIANUM EXTRACT • LAURETH-7 • BIOSACCHARIDE GUM-1 • GLYCINE SOJA PROTEIN / SOYBEAN PROTEIN • CUCUMIS SATIVUS FRUIT EXTRACT / CUCUMBER FRUIT EXTRACT • CANANGA ODORATA FLOWER OIL • ANTHEMIS NOBILIS FLOWER OIL • LINALOOL • PELARGONIUM GRAVEOLENS FLOWER OIL (F.I.L. D174276/1).\nLes listes d’ingrédients entrant dans la composition des produits de notre marque sont régulièrement mises à jour. Avant d’utiliser un produit de notre marque, vous êtes invités à lire la liste d’ingrédients figurant sur son emballage afin de vous assurer que les ingrédients sont adaptés à votre utilisation personnelle","Cette crème légère combat les effets visibles de la dégradation du collagène et de la perte d’hydratation de la peau mature. Cette crème légère régénérante possède de puissantes propriétés raffermissantes et rétablit l’hydratation grâce aux émollients qu’elle contient.\n\n- Isoflavones de soja : riche en isoflavones de soja isolées, un actif qui stimule la production de collagène et d’hyaluronates pour raffermir la peau.\n- Vitamine E (alpha tocophérol) : cet émollient possède de puissantes propriétés antioxydantes.\n- Silymarine : cet antioxydant puissant neutralise les radicaux libres et prévient l’apparition des signes de vieillissement.","0635494368208","0635494369205","0635494349207","","","","","302 F - 01","crème anti-rides,soin visage anti-rides,meilleure crème anti-rides après 50 ans,crème raffermissante visage"]
["Skinceuticals","Equalizing Toner","MB519400","EQUALIZING TONER Lotion tonique exfoliante 200ml","Lotion tonique exfoliante visage à l'acide de fruits","03 - SOINS | 112 - Soin visage | 076 - Lotion et Tonique | 0204 - Lotion et Tonique","3606000471269","MIXTE",{"$f":"TEXT(\n  \"2018-12-05\",\n  \"JJ/MM/AA\"\n)","v":""},"24,80","","Permanent ","Non","0635494363210","","3","24","1536","233","47","47","155","200.0","ml","","","","","","705","47","141","155","03337875862752","5850","217","317","177","03337875862769","374900","968","1168","709","03337875862783","\n  Flacon 200 MLT\n \n \n \n    \n      \n   ","Lotion tonique visage exfoliante. Lisse le grain de peau tout en éliminant les impuretés","Ce tonique contribue à équilibrer, rafraîchir et restaurer le pH protecteur de la peau  tout en optimisant l’élimination des impuretés.\nLes acides hydroxy exfolient en douceur les cellules mortes, tandis que les extraits botaniques (hamamélis, romarin, aloe vera et camomille) adoucissent,  apaisent et tonifient la peau."," ","","","","NA","Normale","Sèche","","Liquide","","","Purifie","NA","Flacon","Sans alcool","","NA","Deux fois par jour, après avoir utilisé un nettoyant SkinCeuticals, vaporiser une petite quantité de produit sur un coton et appliquer uniformément sur le visage, le cou et le décolleté.","740013 16 - INGREDIENTS: AQUA / WATER ALOE BARBADENSIS / ALOE BARBADENSIS LEAF JUICE VACCINIUM MYRTILLUS FRUIT EXTRACT HAMAMELIS VIRGINIANA WATER / WITCH HAZEL WATER ISOCETETH-20 PHENOXYETHANOL SACCHARUM OFFICINARUM EXTRACT / SUGAR CANE EXTRACT SODIUM HYDROXIDE PVP CHLORPHENESIN CITRUS AURANTIUM DULCIS FRUIT WATER / ORANGE FRUIT WATER CITRUS LIMON FRUIT EXTRACT / LEMON FRUIT EXTRACT DISODIUM EDTA GLYCERIN ACER SACCHARINUM EXTRACT / SUGAR MAPLE EXTRACT CITRUS AURANTIUM DULCIS OIL / ORANGE PEEL OIL LIMONENE PROPYLENE GLYCOL ROSMARINUS OFFICINALIS LEAF EXTRACT / ROSEMARY LEAF EXTRACT CHAMOMILLA RECUTITA EXTRACT / MATRICARIA FLOWER EXTRACT THYMUS VULGARIS FLOWER/LEAF EXTRACT - THYME FLOWER/LEAF EXTRACT (F.I.L. D176111/2).\nLes listes d’ingrédients entrant dans la composition des produits de notre marque sont régulièrement mises à jour. Avant d’utiliser un produit de notre marque, vous êtes invités à lire la liste d’ingrédients figurant sur son emballage afin de vous assurer que les ingrédients sont adaptés à votre utilisation personnelle","Mélange d’acides de fruits: Ils agissent en synergie pour exfolier en douceur les cellules mortes.\nExtraits végétaux: L’hamamélis, le romarin, l’aloe et la camomille adoucissent, apaisent et tonifient la peau tout en restaurant le pH protecteur de la peau.","3606000463783","0635494363210","3606000436442","","","","","302 F - 01","lotion tonique,lotion tonique visage,tonique visage"]
["Skinceuticals","Ultra Facial Defense Spf 50","M0155605","ULTRA FACIAL DEFENSE SPF 50  Crème solaire hydratante SPF 50+ visage 30ml","Crème Solaire Visage Fluide Très Haute Protection Indice 50+","03 - SOINS | 111 - Solaire | 071 - Protection | 0187 - Visage","0635494349207","MIXTE",{"$f":"TEXT(\n  \"2018-12-03\",\n  \"JJ/MM/AA\"\n)","v":""},"24,50","","Permanent ","Non","0635494349207","","","138","5520","46","35","29","128","30.0","ml","","","","","","","","","","","6969","285","385","225","60635494349209","279276","955","1155","901","80635494349203","\n  Tube 30 MLT\n \n \n \n    \n      \n   ","Photoprotection hydratante à large spectre anti UVA/UVB","Soin solaire hydratant quotidien, Ultra Facial Defense SPF 50 allie différents filtres UV pour assurer une protection optimale contre les dommages photo-induits qui sont à l'origine  des signes de vieillissement prématurés. Sa formule légère enrichie en Mexoryl® SX et XL, Tinosorb® S, Uvinul A+® et dioxyde de titane convient à tous les types de peaux, même sensibles."," ","","","","NA","Tout type de peau","Normale","Haute Protection (SPF 50)","Crème","","","Protège","Haute","Tube","Non comédogène","Sans parfum","NA","Appliquer le produit juste avant de vous exposer au soleil. Renouveler fréquemment et généreusement l'application pour maintenir la protection, notamment après le bain, en cas de sudation ou après vous être essuyé.","858370 1 - INGREDIENTS:  AQUA / WATER • ETHYLHEXYL METHOXYCINNAMATE • DROMETRIZOLE TRISILOXANE • GLYCERIN • PROPYLENE GLYCOL • DIMETHICONE • TITANIUM DIOXIDE [NANO] / TITANIUM DIOXIDE • ALCOHOL DENAT. • PENTYLENE GLYCOL • TEREPHTHALYLIDENE DICAMPHOR SULFONIC ACID • DIETHYLAMINO HYDROXYBENZOYL HEXYL BENZOATE • TRIETHANOLAMINE • BIS-ETHYLHEXYLOXYPHENOL METHOXYPHENYL TRIAZINE • STEARIC ACID • POTASSIUM CETYL PHOSPHATE • TOCOPHEROL • SODIUM COCOYL SARCOSINATE • PHENOXYETHANOL • PEG-100 STEARATE • PALMITIC ACID • XANTHAN GUM • TROMETHAMINE • CAPRYLYL GLYCOL • CARBOMER • DISODIUM EDTA • CETYL ALCOHOL • BUTYLENE GLYCOL • BUTYROSPERMUM PARKII SEEDCAKE EXTRACT / SHEA BUTTER SEEDCAKE EXTRACT • ALUMINUM HYDROXIDE • GLYCERYL STEARATE (F.I.L. D164448/2).\nLes listes d’ingrédients entrant dans la composition des produits de notre marque sont régulièrement mises à jour. Avant d’utiliser un produit de notre marque, vous êtes invités à lire la liste d’ingrédients figurant sur son emballage afin de vous assurer que les ingrédients sont adaptés à votre utilisation personnelle","Protection solaire élevée à large spectre UVA/UVB hydratante\n- Mexoryl® SX : Filtres UV photostables avancés qui protègent la peau des rayons UVA de courte longueur d’onde\n - Mexoryl® XL : Filtres UV de pointe qui offrent une protection à large spectre contre les rayons UVA et UVB\n - Tinosorb® S : Filtres UV photostables qui protègent la peau des rayons UVA et UVB","0635494328202","0635494317206","3606000436442","0635494394207","3606000497290","3606000439627","","303 E - 01","crème solaire,solaire SPF 50+,photoprotection ,crème solaire SPF 50+,crème solaire visage "]
["Skinceuticals","Daily Moisture","S2859201","DAILY MOISTURE Crème visage hydratante astringente 60ml","Crème visage hydratante peaux grasses","03 - SOINS | 112 - Soin visage | 081 - Soin quotidien | 0228 - Hydratation jour","3606000482111","MIXTE",{"$f":"TEXT(\n  \"2018-12-07\",\n  \"JJ/MM/AA\"\n)","v":""},"41,30","","Permanent ","Non","3606000482111","","","32","1152","242","69","69","62","60.0","ml","","","","","","","","","","","8102","297","297","143","03606000482135","291661","892","1187","429","03606000482142","\n  Pot 60 MLT\n \n \n \n    \n      \n   ","crème légère hydratante réductrice de pores aux extraits marins, pour peau normale ou grasse","Crème hydratante légère et non-grasse, Daily Moisture renferme un cocktail d’ingrédients botaniques et d’extraits de plantes riches en nutriments essentiels qui infusent la peau. Formulée à partir de trois types d'algues marines et d’actifs astringents: pimprenelle, cannelle et gingembre, qui sont idéalement adaptés aux peaux normales, grasses et mixtes. Daily moisture hydrate et aide à minimiser l’apparence des pores de la peau, sans laisser de film gras."," ","","","","NA","Normale","Grasse","NA","Crème","","","Hydrate","NA","Pot","Sans parfum","","Hydratation","Appliquer une à deux fois par jour sur l'ensemble du visage, le cou et le décolleté.","855145 29 - INGREDIENTS:  AQUA / WATER • GLYCERIN • CETYL PALMITATE • STEARIC ACID • BUTYLENE GLYCOL • PALMITIC ACID • TOCOPHEROL • DIMETHICONE • POLYMETHYLSILSESQUIOXANE • GLYCERYL STEARATE • SORBITOL • CI 77163 / BISMUTH OXYCHLORIDE • PHENOXYETHANOL • PEG-100 STEARATE • SODIUM HYALURONATE • HAMAMELIS VIRGINIANA WATER / WITCH HAZEL WATER • PEG-75 STEARATE • CETYL ALCOHOL • CARBOMER • ETHYLHEXYL HYDROXYSTEARATE • ALLANTOIN • PANTHENOL • CETETH-20 • TRIETHANOLAMINE • CAPRYLYL GLYCOL • XANTHAN GUM • PROPYLENE GLYCOL • STEARETH-20 • DISODIUM EDTA • MYRISTIC ACID • BETAINE • CHLORELLA VULGARIS EXTRACT • LAMINARIA SACCHARINA EXTRACT • GLUCOSE • CHAMOMILLA RECUTITA FLOWER EXTRACT / MATRICARIA FLOWER EXTRACT • ZINGIBER OFFICINALE ROOT EXTRACT / GINGER ROOT EXTRACT • SANGUISORBA OFFICINALIS ROOT EXTRACT • CINNAMOMUM CASSIA BARK EXTRACT • THYMUS VULGARIS FLOWER/LEAF EXTRACT - THYME FLOWER/LEAF EXTRACT • RETINYL PALMITATE • HELIANTHUS ANNUUS SEED OIL / SUNFLOWER SEED OIL • SODIUM BENZOATE • ZINC SULFATE • LAMINARIA OCHROLEUCA EXTRACT • GLYCYRRHIZA GLABRA EXTRACT / LICORICE ROOT EXTRACT • URTICA DIOICA EXTRACT / NETTLE EXTRACT • EQUISETUM ARVENSE EXTRACT • BETULA ALBA LEAF EXTRACT • CITRIC ACID • POTASSIUM SORBATE • CINNAMAL • PYRIDOXINE HCl (F.I.L. D188981/2).\nLes listes d’ingrédients entrant dans la composition des produits de notre marque sont régulièrement mises à jour. Avant d’utiliser un produit de notre marque, vous êtes invités à lire la liste d’ingrédients figurant sur son emballage afin de vous assurer que les ingrédients sont adaptés à votre utilisation personnelle","Crème hydratante réductrice de pores, à l'effet matifiant. \nVitamine B5 : Hydrate et répare\nExtraits d'algues : hydrate et régénère\nAgents réducteurs de pores : \n- Pimprenelle\n- Canelle\n- Gingembre","0635494328202","3606000436442","0635494349207","","","","","302 F - 01","Crème hydratante ,Soin visage hydratant,Hydratant peau grasse,crème anti-points noirs,crème hydratante peau grasse"]
["Skinceuticals","Hydrating B5","VFR09347","Coffret Noël Déshydratation + Perte d'éclat Hydrating B5 30ml","Routine Noël anti-âge sérum hydratant + crème solaire visage offerte ","","3433425405537","FEMME",{"$f":"TEXT(\n  \"2022-10-01\",\n  \"JJ/MM/AA\"\n)","v":""},"47,00","","Edition limitée ","Oui","3433425405537","","3","6","240","280","51","190","148","1.0","Unité","","","","","","840","153","190","148","03433425417363","1680","285","385","225","03433425405544","67200","1000","1200","900","03433425405568","\n  Flacon 1 PCE\n \n \n \n    \n      \n   ","Avec SkinCeuticals, célébrez Noël et offrez la haute efficacité cliniquement prouvée. Avec la ROUTINE INTEGRALE DESHYDRATATION + PERTE D'ECLAT, profitez d'une action anti-âge sur-mesure: votre sérum hydratant booster d'éclat Hydrating B5 30ml + EN CADEAU, votre photoprotection ULTRA FACIAL UV DEFENSE SPF 50 15ml offerte dans un coffret premium et élégant, eco-conçu.","SkinCeuticals, la haute efficacité recommandée et prescrite par les dermatologues, médecins et chirurgiens esthétiques. Nos formules associent une forte concentration en actifs purs à des textures à haute absorption cutanée pour offrir une haute efficacité anti-âge autour de 3 principes fondamentaux : prévenir, corriger et protéger.\n\nCELEBREZ NOËL ET OFFREZ LA HAUTE EFFICACITE ANTI-ÂGE AVEC VOTRE ROUTINE INTEGRALE DESHYDRATATION + PERTE D'ECLAT. Découvrez nos soins iconiques et leur action anti-âge sur-mesure et complète, intégrés dans un élégant coffret premium et eco-conçu, en édition limitée.\n\n- Le sérum hydratant booster d'éclat à l'acide hyaluronique HYDRATING B5, sans corps gras, est une véritable \"bouteille d'eau\" pour la peau, enrichie en acide hyaluronique et vitamine B5. Il redonne à la peau ses nutriments essentiels pour une peau plus souple et douce. Peut s'utiliser seul ou associé avec une crème hydratante pour optimiser ses bienfaits. Convient à tous types de peau. \n\n- EN CADEAU, pour compléter votre routine: la photoprotection quotidienne ULTRA FACIAL DEFENSE SPF 50 offert, qui protège efficacement la peau des rayons UVB, UVA courts et UVA longs grâce à sa combinaison de filtres à large spectre, tout en hydratant intensément la peau."," ","","","","NA","Sèche","Sèche","Protection Moyenne (SPF 30)","Sérum","","","Adouci","NA","Flacon","Sans parfum","","NA","'HYDRATING B5: matin et soir, appliquer 3 à 4 gouttes sur le visage, le cou et le décolleté en évitant le contour des yeux.\n\nULTRA FACIAL UV DEFENSE SPF 50 : appliquer le produit juste avant de vous exposer au soleil. Renouveler fréquemment et généreusement l’application pour maintenir la protection, notamment après le bain, en cas de sudation ou après vous être essuyé.","740011 7 - INGREDIENTS:  AQUA / WATER • GLYCERIN • PHENOXYETHANOL • SODIUM HYALURONATE • CALCIUM PANTOTHENATE • SODIUM BENZOATE • SODIUM PCA • DISODIUM EDTA • UREA • TREHALOSE • POLYQUATERNIUM-51 (F.I.L. D11130/1).\nLes listes d’ingrédients entrant dans la composition des produits de notre marque sont régulièrement mises à jour. Avant d’utiliser un produit de notre marque, vous êtes invités à lire la liste d’ingrédients figurant sur son emballage afin de vous assurer que les ingrédients sont adaptés à votre utilisation personnelle","Le sérum HYDRATING B5 est un sérum sans corps gras enrichi en acide hyaluronique, booster d'hydratation et d'éclat:  \n-0.3% ACIDE HYALURONIQUE : hydratant naturel, pouvant retenir 1 000 fois son propre poids en eau\n- 0,5% VITAMINE B5 : stimule le processus de réparation naturel de la barrière cutanée","3606000436442","635494363210","635494345254","","","","","","Coffret Noel SkinCeuticals,Coffret Noel Hydratant,Coffret Noel Hydrating B5,Coffre SkinCeuticals hydratant"]
["Skinceuticals","Hydrating B5","MB185601","Hydrating B5 Serum 30ml","Sérum hydratant visage acide hyaluronique, vitamine B5 peaux sèches à très sèches","03 - SOINS | 112 - Soin visage | 073 - Anti-âge | 0631 - Sérum anti-âge","0635494317206","FEMME",{"$f":"TEXT(\n  \"2020-03-18\",\n  \"JJ/MM/AA\"\n)","v":""},"47,00","","Permanent ","Non","3606000436442","","","35","3360","90","38","38","108","30.0","ml","","","","","","","","","","","3360","217","317","136","03337875704731","323060","968","1168","817","03337875704755","\n  Pipette 30 MLT\n \n \n \n    \n      \n   ","Sérum booster d'hydratation à l'acide hyaluronique","Hautement concentré en acide hyaluronique et en vitamine B5, ce sérum permet de rétablir un équilibre d'hydratation et de retrouver une peau plus lisse et éclatante. Véritable \"bouteille d'eau\" de la peau, ce sérum permet une hydratation intense.\n\nHydrating B5 s'utilise également en post acte médical, après une injection d'acide hyaluronique ou une injection de botox. Après application, la peau est parfaitement hydratée, instantanément plus lisse."," ","","","","NA","Sèche","","NA","Sérum","","","Anti rides","NA","Pipette","Non comédogène","Sans parfum","Anti âge global","Matin et/ou soir, appliquer 3 à 4 gouttes sur le visage, le cou et le décolleté en évitant le contour des yeux. Nous vous conseillons de compléter avec Hydrating B5 masque 1 fois par semaine pour une hydratation intense.","740011 7 - INGREDIENTS:  AQUA / WATER • GLYCERIN • PHENOXYETHANOL • SODIUM HYALURONATE • CALCIUM PANTOTHENATE • SODIUM BENZOATE • SODIUM PCA • DISODIUM EDTA • UREA • TREHALOSE • POLYQUATERNIUM-51 (F.I.L. D11130/1).\nLes listes d’ingrédients entrant dans la composition des produits de notre marque sont régulièrement mises à jour. Avant d’utiliser un produit de notre marque, vous êtes invités à lire la liste d’ingrédients figurant sur son emballage afin de vous assurer que les ingrédients sont adaptés à votre utilisation personnelle","Ce sérum hydratant est idéal pour les peaux déshydratées. Hautement concentré en acide hyaluronique et en vitamine B5, ce sérum permet de rétablir un équilibre d'hydratation et de retrouver une peau plus lisse et éclatante. Véritable \"bouteille d'eau\" de la peau, ce sérum permet une hydratation intense.","635494327205","635494314205","3606000436442","","","","","302 F - 01","sérum à l'acide hyaluronique,sérum hydratant,soin visage hydratant,hydratant visage"]
["Skinceuticals","Phyto Corrective","MB294901","Phyto Corrective Essence Mist Brume Apaisante Peau Sensible 50ml","Brume concentrée en acide hyaluronique et extraits botaniques, réduit les rougeurs","03 - SOINS | 112 - Soin visage | 076 - Lotion et Tonique | 0204 - Lotion et Tonique","3337875742511","MIXTE",{"$f":"TEXT(\n  \"2021-08-30\",\n  \"JJ/MM/AA\"\n)","v":""},"37,80","","Permanent ","Non","3337875742511","","","28","2240","190","39","39","157","50.0","ml","","","","","","","","","","","5535","195","293","205","03337875770842","443300","976","1172","821","03337875770866","\n  Spray 50 MLT\n \n \n \n    \n      \n   ","Brume hydratante concentrée en extraits botaniques qui renforce la barrière cutanée, apaise et réduit les rougeurs. Convient aux peaux les plus sensibles et en post-procédures*\n\n*Protocole : étude clinique à double face sur 21 sujets âgés de 19 à 70 ans. Les sujets ont subi une procédure de laser fractionné non ablatif sur tout le visage.\nLa brume a été appliquée sur une moitié du visage immédiatement après la procédure et deux fois par jour pendant une semaine.","SkinCeuticals, la haute efficacité recommandée et prescrite par les dermatologues, médecins et chirurgiens esthétiques. Nos formules associent une forte concentration en actifs purs à des textures à haute absorption cutanée pour offrir une haute efficacité anti-âge autour de 3 principes fondamentaux : prévenir, corriger et protéger.\n\nBRUME HYDRATANTE APAISANTE HAUTEMENT CONCENTRÉE ASSOCIANT 5.75% D’EXTRAITS BOTANIQUES ET 6.2% DE COMPLEXE D’ACIDE HYALURONIQUE + GLYCERINE\nPhyto Corrective Essence Mist hydrate, apaise les sensations d’inconfort et réduit immédiatement les rougeurs visibles tout en  renforçant la barrière cutanée. \nSa brume ultra fine pénètre rapidement pour un effet peau nue, sans laisser de film gras.  Sa diffusion permet une application sans toucher, même sur peau maquillée.\nConvient à tous les types de peaux, même mixtes à grasses. Idéal en post-procédure esthétique pour réduire les rougeurs post-laser."," ","","","","NA","Tout type de peau","Mature","NA","Eau / Brume","","","Anti rides","NA","Spray","Sans parfum","","Anti âge global","Agiter avant utilisation. Fermer les yeux et la bouche avant l’application. Vaporiser à un minimum de 15cm sur peau nue. Réappliquer à tout moment de la journée, même sur du maquillage. Ne pas inhaler.","855328 4 - INGREDIENTS:  AQUA / WATER • GLYCERIN • PROPYLENE GLYCOL • BUTYLENE GLYCOL • POTASSIUM PHOSPHATE • POLYSORBATE 80 • PHENOXYETHANOL • SODIUM CHLORIDE • HEXYLENE GLYCOL • DIPOTASSIUM PHOSPHATE • POLYGLYCERYL-4 CAPRATE • SODIUM HYALURONATE • PEUMUS BOLDUS LEAF EXTRACT • DISODIUM EDTA • OLEA EUROPAEA LEAF EXTRACT / OLIVE LEAF EXTRACT • MYRTRIMONIUM BROMIDE • BENZOPHENONE-4 • ROSMARINUS OFFICINALIS LEAF EXTRACT / ROSEMARY LEAF EXTRACT • PARFUM / FRAGRANCE • XANTHAN GUM • CITRUS GRANDIS FRUIT EXTRACT / GRAPEFRUIT FRUIT EXTRACT • SODIUM BENZOATE • CUCUMIS SATIVUS FRUIT EXTRACT / CUCUMBER FRUIT EXTRACT • THYMUS VULGARIS FLOWER/LEAF EXTRACT - THYME FLOWER/LEAF EXTRACT • LACTIC ACID • BENZYL BENZOATE • POTASSIUM SORBATE • BENZYL ALCOHOL • ALPHA-ISOMETHYL IONONE • MORUS ALBA ROOT EXTRACT • LINALOOL • CI 42090 / BLUE 1 • CI 19140 / YELLOW 5 (F.I.L. D249771/1).\nLes listes d’ingrédients entrant dans la composition des produits de notre marque sont régulièrement mises à jour. Avant d’utiliser un produit de notre marque, vous êtes invités à lire la liste d’ingrédients figurant sur son emballage afin de vous assurer que les ingrédients sont adaptés à votre utilisation personnelle","Une combinaison d'actifs haute efficacité pour soulager immédiatement la peau et réparer la barrière cutanée :\n5.75% d'extraits botaniques, pour calmer et apaiser les sensations d'inconforts, et réduire les rougeurs visibles\n6.2% d'acide hyaluronique + glycérine, qui retient l'eau pour favoriser l'hydratation et renforcer la fonction barrière de la peau.  ","635494310207","635494314205","3606000436725","","","","","302 F - 01","soin hydratant,soin apaisant,soin anti rougeur,creme peau irritée"]
["Skinceuticals","Blemish & Age","MB507000","Blemish + Age Cleanser Gel nettoyant purifiant anti-imperfections 240ml","Gel nettoyant purifiant anti-imperfections","03 - SOINS | 112 - Soin visage | 081 - Soin quotidien | 0222 - Anti-imperfections","3606000471467","MIXTE",{"$f":"TEXT(\n  \"2018-12-05\",\n  \"JJ/MM/AA\"\n)","v":""},"24,80","","Permanent ","Non","0635494391206","","3","24","960","283","78","50","187","240.0","ml","","","","","","855","50","235","189","03337875853781","7440","285","385","225","03337875843959","298100","955","1155","901","03337875843973","\n  Tube 240 MLT\n \n \n \n    \n      \n   ","Nettoyant moussant exfoliant à l’acide salicylique pour décongestionner les pores et diminuer la sécrétion de sébum","Blemish + Age Cleanser est un nettoyant sous forme de gel conçu pour les peaux matures sujettes aux imperfections.\nSa formule contient de puissants agents nettoyants  aux vertus exfoliantes comme  l’acide lipo-hydroxy, l’acide glycolique et l’acide salicylique. Idéale pour éliminer l’excès de sébum et le maquillage tout en purifiant les pores et  illuminer le teint. Blemish + Age Cleanser resserre en douceur les pores, lisse le grain de peau et réduit les imperfections."," ","","","","NA","Mixte","Grasse","","Gel","","","Nettoie","NA","Tube","NA","","NA","Deux fois par jour, masser doucement une petite quantité de gel sur le visage et le cou humides. Rincer abondamment à l’eau.","855062 2 - INGREDIENTS:  AQUA / WATER • COCO-BETAINE • PROPYLENE GLYCOL • PEG-120 METHYL GLUCOSE DIOLEATE • SORBITOL • GLYCERIN • GLYCOLIC ACID • TRIETHANOLAMINE • SODIUM LAURETH SULFATE • SODIUM CHLORIDE • DISTEARETH-100 IPDI • SALICYLIC ACID • CAPRYLOYL SALICYLIC ACID • MENTHOL • DISODIUM EDTA • STEARETH-100 (F.I.L. Z292049/1).\nLes listes d’ingrédients entrant dans la composition des produits de notre marque sont régulièrement mises à jour. Avant d’utiliser un produit de notre marque, vous êtes invités à lire la liste d’ingrédients figurant sur son emballage afin de vous assurer que les ingrédients sont adaptés à votre utilisation personnelle","Acide salicylique capryloyl: Dotée d’une structure lipidique semblable à celle de la peau humaine, cette forme d’acide salicylique exfolie la peau en précision et possède une action antibactérienne et anti-inflammatoire.\nAcide glycolique: Cet AHA élimine l’accumulation de cellules mortes et améliore l’hydratation de la peau.\nAcide salicylique: Cet acide bêta-hydroxylé resserre les pores et réduit les imperfections.","3606000471382","0635494391206","0635494328202","","","","","302 F - 01","nettoyant visage,nettoyant visage anti-imperfections,gel nettoyant visage,nettoyant peau grasse"]
["Skinceuticals","Sheer Mineral Uv Defense Spf 50","S1073502","SHEER MINERAL UV DEFENSE SPF 50 Protection solaire visage minérale teintée SPF 50 50ml","Protection Solaire Visage Fini Mat Très Haute Protection Indice 50+","03 - SOINS | 111 - Solaire | 071 - Protection | 0187 - Visage","0635494394207","MIXTE",{"$f":"TEXT(\n  \"2018-12-03\",\n  \"JJ/MM/AA\"\n)","v":""},"27,50","","Permanent ","Non","0635494394207","","","66","4752","72","47","25","121","50.0","ml","","","","","","","","","","","5071","297","297","143","20635494394201","365133","1016","1219","865","03606000416338","\n  Flacon 50 MLT\n \n \n \n    \n      \n   ","Fluide solaire à la texture légère offrant une protection à large spectre grâce à des filtres 100 % minéraux. Fini mat et transparent sur la peau.","Sheer Mineral UV Defense SPF 50 contient des filtres 100 % minéraux pour protéger efficacement des UVA et lUVB. Sa formule légère et non-irritante est également enrichie en artémie, un extrait de plancton qui aide à booster les défenses naturelles de la peau contre le stress photo-induit et la chaleur. La galénique fluide et soyeuse pénètre rapidement pour envelopper la peau d’un fini mat doux."," ","","","","NA","Normale","Grasse","Protection Moyenne (SPF 30)","Fluide","","","Protège","Haute","Flacon","Minérale","Non comédogène","NA","Bien secouer le flacon avant utilisation. Le matin, appliquer sur le visage, le cou et le décolleté avant de se maquiller. Appliquer généreusement 15 minutes avant l'exposition au soleil et réappliquer après une baignade de plus de 40 minutes, après avoir transpiré ou après s’être essuyé avec une serviette. Dans tous les cas, renouveler l’application au minimum toutes les deux heures. Pour les enfants de moins de six mois, consulter un médecin avant utilisation.","858258 - INGREDIENTS:  AQUA / WATER • TITANIUM DIOXIDE [NANO] / TITANIUM DIOXIDE • ISODODECANE • DIMETHICONE • UNDECANE • C12-15 ALKYL BENZOATE • STYRENE/ACRYLATES COPOLYMER • CAPRYLYL METHICONE • NYLON-12 • BUTYLOCTYL SALICYLATE • PHENETHYL BENZOATE • TRIDECANE • DICAPRYLYL CARBONATE • SILICA [NANO] / SILICA • TRIETHYLHEXANOIN • ISOHEXADECANE • DICAPRYLYL ETHER • TALC • DIMETHICONE/PEG-10/15 CROSSPOLYMER • ALUMINUM HYDROXIDE • STEARIC ACID • PEG-9 POLYDIMETHYLSILOXYETHYL DIMETHICONE • PENTYLENE GLYCOL • ALUMINUM STEARATE • PEG-8 LAURATE • PHENOXYETHANOL • MAGNESIUM SULFATE • CAPRYLYL GLYCOL • ALUMINA • POLYHYDROXYSTEARIC ACID • DISTEARDIMONIUM HECTORITE • DIETHYLHEXYL SYRINGYLIDENEMALONATE • TOCOPHEROL • PROPYLENE CARBONATE • SODIUM DODECYLBENZENESULFONATE • ARTEMIA EXTRACT • BENZOIC ACID • DIPROPYLENE GLYCOL • SODIUM CITRATE • CAPRYLIC/CAPRIC TRIGLYCERIDE • POTASSIUM SORBATE • HELIANTHUS ANNUUS SEED OIL / SUNFLOWER SEED OIL (F.I.L. D226283/1).\nLes listes d’ingrédients entrant dans la composition des produits de notre marque sont régulièrement mises à jour. Avant d’utiliser un produit de notre marque, vous êtes invités à lire la liste d’ingrédients figurant sur son emballage afin de vous assurer que les ingrédients sont adaptés à votre utilisation personnelle","Photoprotection à large spectre 100 % minérale au fini transparent\n- 6 % de dioxyde de titane : Le dioxyde de titane microfin est un contributeur SPF non chimique qui forme une barrière sur la peau pour la protéger des rayons UVA et UVB.\n- Artemia salina : Cet extrait de plancton stimule les défenses naturelles de la peau et sa résistance au stress dû aux UV et à la chaleur. (d’après un test in vitro)","3606000464186","0635494327205","0635494345254","","","","","303 E - 01","protection solaire visage SPF 50,protection solaire visage,crème solaire teintée SPF 50"]
["Skinceuticals","A.G.E. Eye Complex","S0904602","AGE EYE COMPLEX Soin contour des yeux rides et fermete 15g","Soin anti cernes anti poches pour le contour des yeux - anti-rides et fermeté","03 - SOINS | 112 - Soin visage | 180 - Soin des yeux et des lèvres | 0784 - Soin des yeux","0635494358209","MIXTE",{"$f":"TEXT(\n  \"2018-12-07\",\n  \"JJ/MM/AA\"\n)","v":""},"57,20","","Permanent ","Non","0635494358209","","","108","2916","80","52","51","41","15.0","ml","","","","","","","","","","","9004","319","325","152","20635494358203","243103","1016","1219","457","40635494358207","\n  Pot 15 MLT\n \n \n \n    \n      \n   ","Soin contour des yeux anti-rides, combat l’apparition des rides de la patte d'oie, les cernes et les gonflements","Soin du contour des yeux dédié aux peaux matures, A.G.E. Eye Complex contient deux actifs ( extrait de myrtille et Pro-xylane™) dont l’action protège le réseau de soutien de la peau contre les effets de la glycation, améliore la fermeté , maximise l’hydratation et lisse l’apparence des rides et ridules. Il est enrichi en antioxydants issus de flavonoïdes et peptides et doté de diffuseurs optiques qui agissent instantanément pour redonner de l’éclat au contour de l’œil et minimiser les signes de fatigue."," ","","","","NA","Normale","Sèche","NA","Baume","","","Anti rides","NA","Pot","Sans parfum","","Anti âge global","Appliquer une à deux fois par jour sur le contour des yeux et des sourcils.","794030 29 - INGREDIENTS:  AQUA / WATER • GLYCERIN • DIMETHICONE • ISOHEXADECANE • PARAFFIN • PROPYLENE GLYCOL • SILICA [NANO] / SILICA • POLYGLYCERYL-4 ISOSTEARATE • CETYL PEG/PPG-10/1 DIMETHICONE • HEXYL LAURATE • NYLON-12 • HYDROXYPROPYL TETRAHYDROPYRANTRIOL • METHYLSILANOL/SILICATE CROSSPOLYMER • POLYETHYLENE • ASCORBYL GLUCOSIDE • CAPRYLIC/CAPRIC TRIGLYCERIDE • OCTYLDODECANOL • PHENOXYETHANOL • TOCOPHERYL ACETATE • AMMONIUM POLYACRYLOYLDIMETHYL TAURATE • PEG-6 ISOSTEARATE • TRIETHANOLAMINE • SODIUM CITRATE • METHYLPARABEN • CHLORPHENESIN • CAFFEINE • CI 77891 / TITANIUM DIOXIDE • SILICA • ETHYLPARABEN • MENTHOXYPROPANEDIOL • SORBITOL • VACCINIUM MYRTILLUS FRUIT EXTRACT • STEARETH-20 • SODIUM PHYTATE • HESPERIDIN METHYL CHALCONE • HESPERETIN LAURATE • CHLORHEXIDINE DIGLUCONATE • ALUMINUM HYDROXIDE • N-HYDROXYSUCCINIMIDE • ALCOHOL • POTASSIUM SORBATE • DIPEPTIDE-2 • BHT • CITRIC ACID • PALMITOYL TETRAPEPTIDE-7 • PENTAERYTHRITYL TETRA-DI-T-BUTYL HYDROXYHYDROCINNAMATE • PALMITOYL TRIPEPTIDE-1 • CHRYSIN • BIOTIN (F.I.L. D238363/1).\nLes listes d’ingrédients entrant dans la composition des produits de notre marque sont régulièrement mises à jour. Avant d’utiliser un produit de notre marque, vous êtes invités à lire la liste d’ingrédients figurant sur son emballage afin de vous assurer que les ingrédients sont adaptés à votre utilisation personnelle","Soin contour des yeux anti-rides, anti-poches, anti-cernes\n- 5% Pro-xylane : renforce le soutien cutané pour une peau plus rebondie\n- 4% Extrait de myrtille : Inhibe la glycation et protège le collagène\n- Caféine et Flavonoïdes : atténuent cernes et poches","0635494345254","635494345254","3606000497290","","","","","302 F - 01","soin contour des yeux,crème contour des yeux,anti-poches,crème anti-rides yeux,crème anti-rides contour des yeux"]
["Skinceuticals","Hydrater","S2859301","Emollience Crème visage riche hydratante réparatrice 60ml","Crème visage riche hydratante réparatrice","03 - SOINS | 112 - Soin visage | 081 - Soin quotidien | 0228 - Hydratation jour","3606000482159","MIXTE",{"$f":"TEXT(\n  \"2018-07-04\",\n  \"JJ/MM/AA\"\n)","v":""},"41,30","","Permanent ","Non","3606000482159","","","32","1152","240","69","69","62","60.0","ml","","","","","","","","","","","8038","297","297","143","03606000482173","289357","892","1187","429","03606000482180","\n  Pot 60 MLT\n \n \n \n    \n      \n   ","Crème hydratante et régénérante, riche en principes actifs nourrissants capables d’hydrater et d’apaiser les peaux sèches, mêmes sensibles.","Crème intensément hydratante, Emollience renferme un cocktail d’extraits naturels riches en nutriments. Formulée à partir de trois types d'algues marines et d’une synergie d’huiles végétales (pépin de raisin, rose musquée et noix de macadamia). elle gorge la peau d'acides aminés, protéines, vitamines et minéraux. Idéale pour les peaux normales, sèches ou sensibles, cette formule pénètre rapidement pour régénérer la barrière cutanée et l’aider à préserver le taux d’hydratation de la peau. Excellente base de maquillage."," ","","","","NA","Sèche","Normale","NA","Crème","","","Hydrate","NA","Pot","NA","","Hydratation","Appliquer une à deux fois par jour sur l'ensemble du visage, le cou et le décolleté.","740018 52 - INGREDIENTS:  AQUA / WATER • GLYCERIN • SESAMUM INDICUM OIL / SESAME SEED OIL • PROPYLENE GLYCOL • GLYCERYL STEARATE • VITIS VINIFERA SEED OIL / GRAPE SEED OIL • ROSA CANINA FRUIT OIL • MACADAMIA TERNIFOLIA SEED OIL • MANGIFERA INDICA SEED BUTTER / MANGO SEED BUTTER • STEARIC ACID • PALMITIC ACID • TRIETHANOLAMINE • CAPRYLIC/CAPRIC GLYCERIDES • PHENOXYETHANOL • PANTHENOL • CARBOMER • CHLORPHENESIN • CAPRYLYL GLYCOL • ALOE BARBADENSIS / ALOE BARBADENSIS LEAF JUICE • DISODIUM EDTA • ALLANTOIN • LAMINARIA OCHROLEUCA EXTRACT • GINKGO BILOBA EXTRACT / GINKGO BILOBA LEAF EXTRACT • CHLORELLA VULGARIS EXTRACT • ALGAE EXTRACT • PRUNUS CERASUS FRUIT EXTRACT / BITTER CHERRY FRUIT EXTRACT • FAGUS SYLVATICA EXTRACT / FAGUS SYLVATICA BUD EXTRACT • LAVANDULA ANGUSTIFOLIA OIL / LAVENDER OIL • ROSMARINUS OFFICINALIS LEAF OIL / ROSEMARY LEAF OIL • PRUNUS ARMENIACA KERNEL OIL / APRICOT KERNEL OIL • MENTHA PIPERITA OIL / PEPPERMINT OIL • LINALOOL • MENTHA PIPERITA EXTRACT / PEPPERMINT EXTRACT • CHAMOMILLA RECUTITA EXTRACT / MATRICARIA FLOWER EXTRACT (F.I.L. D174141/1).\nLes listes d’ingrédients entrant dans la composition des produits de notre marque sont régulièrement mises à jour. Avant d’utiliser un produit de notre marque, vous êtes invités à lire la liste d’ingrédients figurant sur son emballage afin de vous assurer que les ingrédients sont adaptés à votre utilisation personnelle","Soin visage nourrissant, qui répare et hydrate les peaux normales à sèches au quotidien.\n- Extraits végétaux puissants : Les extraits d’algue, riches en nutriments, nourrissent et hydratent la peau\n- Huiles essentielles nourrissantes : Les huiles de pépin de raisin, de rose musquée et de noix de macadamia réparent la peau et maintiennent son hydratation à un niveau optimal","3606000463981","0635494328202","0635494349207","","","","","302 F - 01","Crème Hydratante Nourissante,Crème Hydratante ,Crème peaux sèches"]
["Skinceuticals","Hydrating B₅","S1111503","HYDRATING B5 MASQUE Masque hydratant à l'acide hyaluronique 75ml","Masque hydratant visage l'acide hyaluronique","03 - SOINS | 112 - Soin visage | 077 - Masque | 0209 - Hydratation","0635494316209","MIXTE",{"$f":"TEXT(\n  \"2018-12-07\",\n  \"JJ/MM/AA\"\n)","v":""},"44,70","","Permanent ","Non","0635494316209","","","64","2880","100","41","42","145","75.0","ml","","","","","","","","","","","6861","341","341","162","20635494316203","308740","1016","1219","810","03606000416406","\n  Tube 75 MLT\n \n \n \n    \n      \n   ","Masque de soin intensément hydratant enrichi en acide hyaluronique et vitamine B5 , restaure une hydratation maximale et nourrit la peau pourla  laisser douce et souple.","Gel très concentré en ingrédients actifs.Hydrating B₅ Masque est formulé à partir d'acide hyaluronique et de vitamine B₅ pour aider les peaux déshydratées, stressées à retrouver une hydratation optimale. La formulation est comparable aux composants du facteur naturel d’hydratation de la peau (NMF), elle désaltère et rééquilibre intensément l’hydratation cutanée. La peau est plus saine et révèle tout son éclat."," ","","","","NA","Normale","Grasse","NA","Gel","","","Hydrate","NA","Tube","Sans parfum","","Hydratation","Le soir après le démaquillage, appliquer en fine couche sur l'ensemble du visage.  Laisser poser 10 à 15 minutes, puis faire pénétrer l’éventuel excédent de produit par massages. Hydrating B₅ Masque peut aussi être appliqué sur les autres zones présentant des signes deà la sécheresse telles que le cou, le décolleté, les mains, les genoux, les coudes et les pieds.","740048 4 - INGREDIENTS:  AQUA / WATER • GLYCERIN • TRIETHANOLAMINE • CARBOMER • SODIUM HYALURONATE • PHENOXYETHANOL • CALCIUM PANTOTHENATE • SODIUM BENZOATE • PANTHENOL • SODIUM PCA • UREA • DISODIUM EDTA • TREHALOSE • POLYQUATERNIUM-51 (F.I.L. D26656/1).\nLes listes d’ingrédients entrant dans la composition des produits de notre marque sont régulièrement mises à jour. Avant d’utiliser un produit de notre marque, vous êtes invités à lire la liste d’ingrédients figurant sur son emballage afin de vous assurer que les ingrédients sont adaptés à votre utilisation personnelle","Ce masque gel hydratant à l'acide hyaluronique aide les peaux déshydratées et stressées à retrouver une hydratation optimale et nourrit la peau pour la laisser souple et lisse au toucher. Texture gel fraîche non grasse.\n\n- Acide hyaluronique : cet humectant naturel peut retenir 1 000 fois son propre poids en eau, ce qui en fait un hydratant efficace.\n- Vitamine B5 : cette vitamine est essentielle à la fonction de réparation cutanée.\n- Complexe hydratant de pointe : composé de glycérine, d’urée, de sodium PCA, de tréhalose et de polyquatérium-51, ce cocktail d’actifs comprend des composants du facteur naturel d’hydratation de la peau et restaure l’équilibre d’hydratation de la peau idéal.","3606000464186","0635494363210","0635494349207","","","","","302 F - 01","masque hydratant visage,masque visage,masque visage à l'acide hyaluronique"]
["Skinceuticals","Brightening Uv Defense Spf 30","M5051004","BRIGHTENING UV DEFENSE Protection Solaire Visage Eclat SPF 30 30ml","Protection Solaire Visage Hydratante Eclat et Tâches Haute Protection Indice 30","03 - SOINS | 111 - Solaire | 071 - Protection | 0187 - Visage","0635494343205","MIXTE",{"$f":"TEXT(\n  \"2018-12-03\",\n  \"JJ/MM/AA\"\n)","v":""},"24,50","","Permanent ","Non","0635494343205","","","138","5520","46","36","28","127","30.0","ml","","","","","","","","","","","6859","285","385","225","20635494343209","274860","955","1155","901","40635494343203","\n  Tube 30 MLT\n \n \n \n    \n      \n   ","Soin hydratant doté d’une protection solaire à large spectre et d’une technologie avancée capable d’atténuer les défauts de pigmentation et illuminer le teint.","Soin solaire hydratant quotidien, Brightening UV Defense SPF 30  s’appuie sur la puissance du Complexe HyperBright pour aider à atténuer les taches brunes existantes et à prévenir l’apparition de nouveaux défauts de pigmentation induits par les UV.\nGrâce à son alliance de filtres UV ultra efficace, il assure une protection optimale contre les dommages induits par le soleil, à l'origine de taches pigmentaires et signes de vieillissement prématurés. Cette formule légère est enrichie en Mexoryl® SX et XL, Tinosorb® S, Uvinul A+® et dioxyde de titane convenant à tout  type de peau, même sensibles."," ","","","","NA","Tout type de peau","Normale","Protection Faible (SPF 15)","Crème","","","Protège","Moyenne","Tube","Non comédogène","Sans parfum","NA","Le matin, appliquer sur le visage, le cou et le décolleté avant de se maquiller. Appliquer généreusement 15 minutes avant l'exposition au soleil et réappliquer après une baignade de plus de 40 minutes, après avoir transpiré ou après s’être essuyé avec une serviette. Dans tous les cas, renouveler l’application au minimum toutes les deux heures. Pour les enfants de moins de six mois, consulter un médecin avant utilisation.","858145 - INGREDIENTS:  AQUA • ETHYLHEXYL METHOXYCINNAMATE • GLYCERIN • CYCLOPENTASILOXANE • TEREPHTHALYLIDENE DICAMPHOR SULFONIC ACID • PROPYLENE GLYCOL • DROMETRIZOLE TRISILOXANE • ALCOHOL DENAT. • TRIETHANOLAMINE • TITANIUM DIOXIDE [NANO] • STEARIC ACID • POTASSIUM CETYL PHOSPHATE • NYLON-12 • PALMITIC ACID • PEG-100 STEARATE • GLYCERYL STEARATE • CETYL ALCOHOL • DIMETHICONE • PHENOXYETHANOL • METHYLPARABEN • SODIUM COCOYL SARCOSINATE • CAPRYLYL GLYCOL • CARBOMER • TOCOPHEROL • TROMETHAMINE • ETHYLPARABEN • ACRYLAMIDE/SODIUM ACRYLOYLDIMETHYLTAURATE COPOLYMER • ALUMINUM HYDROXIDE • ISOHEXADECANE • XANTHAN GUM • DISODIUM EDTA • POLYSORBATE 80 • ZEA MAYS EXTRACT • MENTHA PIPERITA EXTRACT (F.I.L. D45726/2).\nLes listes d’ingrédients entrant dans la composition des produits de notre marque sont régulièrement mises à jour. Avant d’utiliser un produit de notre marque, vous êtes invités à lire la liste d’ingrédients figurant sur son emballage afin de vous assurer que les ingrédients sont adaptés à votre utilisation personnelle","Protection à large spectre contre les UVA et les UVB\nAction hydratante.\n\n- Complexe Hyperbright : Réduit l’hyperpigmentation causée par l’exposition aux UV\n- Mexoryl® SX : Filtres UV photostables avancés qui protègent la peau des rayons UVA de courte longueur d’onde\n- Mexoryl® XL : Filtres UV de pointe qui offrent une protection à large spectre contre les rayons UVA et UVB\n- Tinosorb® S : Filtres UV photostables qui protègent la peau des rayons UVA et UVB","0635494363210","3606000463783","3606000481282","","","","","303 E - 01","protection solaire SPF 30,protection solaire visage,protection solaire,écran solaire anti-taches,crème solaire visage anti-taches brunes"]
["Skinceuticals","Resveratrol B E","VFR08067","RESVERATROL B E sérum antioxydant de Nuit rides & fermeté 30ml","Sérum antioxydant de Nuit rides & fermeté","03 - SOINS | 112 - Soin visage | 073 - Anti-âge | 0196 - Prévention nuit","3606000475380","MIXTE",{"$f":"TEXT(\n  \"2018-12-07\",\n  \"JJ/MM/AA\"\n)","v":""},"91,70","","Permanent ","Non","3606000475380","","","49","2940","128","40","39","117","30.0","ml","","","","","","","","","","","6265","300","300","145","03433425288536","375888","1000","1200","725","03433425288550","\n  Flacon Pompe 30 MLT\n \n \n \n    \n      \n   ","Concentré antioxydant de nuit. Répare les dommages accumulés et prévient les dommages futurs","Sérum de nuit à la texture légère qui pénètre rapidement dans la peau. Resveratrol B E renferme une combinaison brevetée d’antioxydants pour neutraliser efficacement les radicaux libres et renforcer les défenses de la peau des dommages environnementaux. Dotée d’une concentration maximisée de resvératrol pur et stable, de baicaline et de vitamine E pure, connus pour leurs bienfaits antiâge et antioxydants. L’utilisation régulière de cette formule améliore significativement l’éclat du teint, la densité et l’élasticité de la peau."," ","","","","NA","Tout type de peau","Normale","NA","Gel","","","Protège","NA","Flacon pompe","Sans parfum","","NA","Le soir, appliquer 1 à 2 pressions de produit sur la peau propre et sèche du visage, du cou et du décolleté, en évitant le contour des yeux. S’utilise aussi sur le dos des mains.","855141 16 - INGREDIENTS:  AQUA / WATER • DIMETHICONE • PROPYLENE GLYCOL • DIPROPYLENE GLYCOL • NIACINAMIDE • ALCOHOL DENAT. • GLYCERIN • CAFFEINE • SODIUM CHLORIDE • PEG/PPG-18/18 DIMETHICONE • TOCOPHEROL • RESVERATROL • SCUTELLARIA BAICALENSIS EXTRACT / SCUTELLARIA BAICALENSIS ROOT EXTRACT • DISODIUM EDTA (F.I.L. D162488/4).\nLes listes d’ingrédients entrant dans la composition des produits de notre marque sont régulièrement mises à jour. Avant d’utiliser un produit de notre marque, vous êtes invités à lire la liste d’ingrédients figurant sur son emballage afin de vous assurer que les ingrédients sont adaptés à votre utilisation personnelle","- 1% de Resveratrol pur et stable \n- 1% d'Alpha Tocophérol\n- 0,5% de Baicaline\n\nResveratrol B E possède une formulation révolutionnaire qui inclut une concentration maximisée de resvératrol pur et stable pour atténuer les signes des dommages accumulés. La formulation, en attente de trois brevets aux États-Unis, combine du resvératrol, de la baicaline et de l’alpha tocophérol (vitamine E), fournissant ainsi une protection antioxydante plus importante que chacun de ces antioxydants pris séparément.","0635494345254","3606000509603","3606000497290","0635494363210","0635494328202","0635494310207","","302 F - 01","sérum antioxydant de nuit,sérum vitamine C,sérum vitamine C visage,sérum anti-rides à la vitamine C,sérum éclat,sérum éclat visage,sérum anti-âge"]
["Skinceuticals","Meta Cell Renewal","S0799201","METACELL RENEWAL B₃ Crème hydratante premières rides 50ml","Crème hydratante visage premières rides","03 - SOINS | 112 - Soin visage | 073 - Anti-âge | 0192 - Fermeté et Rides jour","3606000495470","MIXTE",{"$f":"TEXT(\n  \"2018-12-07\",\n  \"JJ/MM/AA\"\n)","v":""},"66,00","","Permanent ","Non","0635494363210","","1","36","2880","211","38","38","157","50.0","ml","","","","","","211","38","38","157","03606000495913","7884","246","246","175","03606000496354","630712","1016","1219","873","03606000496798","\n  Flacon Pompe 50 MLT\n \n \n \n    \n      \n   ","Une émulsion de jour complète au niacinamide pour lutter contre les signes prématurés de photovieillissement","Soin correcteur hydratant quotidien, Metacell Renewal B3 stimule le renouvellement cellulaire, renforcent la barrière cutanée, améliore l’apparence des rides et ridules, des irrégularités du teint et la fermeté de la peau. Sa formule émulsion brevetée, procure une hydratation intense sans effet collant."," ","","","","NA","Normale","Grasse","NA","Gel","","","Anti rides","NA","Flacon pompe","NA","","Anti âge global","Faire pénétrer par massage une couche fine et homogène de Metacell Renewal B3 sur l’ensemble du visage, du cou et du décolleté deux fois par jour.","855156 47 - INGREDIENTS:  AQUA / WATER • GLYCERIN • DIMETHICONE • NIACINAMIDE • PROPANEDIOL • DIMETHICONE/PEG-10/15 CROSSPOLYMER • METHYLSILANOL/SILICATE CROSSPOLYMER • SODIUM CHLORIDE • POLYMETHYLSILSESQUIOXANE • PHENOXYETHANOL • MICROCRYSTALLINE CELLULOSE • CI 77163 / BISMUTH OXYCHLORIDE • CHLORPHENESIN • CAPRYLYL GLYCOL • SODIUM CITRATE • ETHYLHEXYL HYDROXYSTEARATE • PEG-10 DIMETHICONE • DISODIUM EDTA • CELLULOSE GUM • LAMINARIA DIGITATA EXTRACT • ADENOSINE • DIPROPYLENE GLYCOL • CITRUS AURANTIUM AMARA FLOWER OIL / BITTER ORANGE FLOWER OIL • MELALEUCA VIRIDIFLORA LEAF OIL • TETRADECYL AMINOBUTYROYLVALYLAMINOBUTYRIC UREA TRIFLUOROACETATE • LINALOOL • CYMBOPOGON SCHOENANTHUS OIL • MAGNESIUM CHLORIDE • CITRAL • TOCOPHEROL • LIMONENE • PELARGONIUM GRAVEOLENS FLOWER OIL (F.I.L. D166367/7).\nLes listes d’ingrédients entrant dans la composition des produits de notre marque sont régulièrement mises à jour. Avant d’utiliser un produit de notre marque, vous êtes invités à lire la liste d’ingrédients figurant sur son emballage afin de vous assurer que les ingrédients sont adaptés à votre utilisation personnelle","Non applicable.","3606000495470","0635494363210","0635494349207","","","","","302 F - 01","Crème hydratante,soin visage hydratant,crème hydratante premières rides,soin visage premières rides,crème premières rides,crème anti-rides 25 ans,crème anti-rides 30 ans"]
["Skinceuticals","Serum 10","VFR09260","SERUM 10 Serum antioxydant rides et ridules  30ml","Sérum visage antioxydant à la vitamine C peaux sensibles - action sur rides et ridules","03 - SOINS | 112 - Soin visage | 073 - Anti-âge | 0631 - Sérum anti-âge","0635494310207","MIXTE",{"$f":"TEXT(\n  \"2018-12-07\",\n  \"JJ/MM/AA\"\n)","v":""},"56,50","","Permanent ","Non","0635494310207","","","54","2268","100","59","37","107","30.0","ml","","","","","","","","","","","5399","360","360","130","03433425322575","226777","1000","1200","910","03433425322599","\n  Pipette 30 MLT\n \n \n \n    \n      \n   ","Sérum antioxydant à la vitamine C et à l’acide férulique qui protège la peau contre les agressions environnementales et corrige la peau des signes du vieillissement.","Idéal en premier sérum antioxydant quotidien, dédié à toutes les peaux, mêmes sensibles, Serum 10 renferme une synergie de 10 % de vitamine C et de 0,2 % d'acide férulique pour neutraliser les radicaux libres induits par les agressions environnementales. Prévient des dommages cutanés et des signes de l’âge.\nOutre ses bienfaits antioxydants, il améliore la qualité et la santé de la peau."," ","","","","NA","Sensible","Tout type de peau","NA","Sérum","","","Anti rides","NA","Pipette","Sans parfum","","Anti âge global","Le matin, sur peau propre, appliquer 3 à 4 gouttes sur l’ensemble du visage, du cou et du décolleté","740021 13 - INGREDIENTS:  AQUA / WATER • DIPROPYLENE GLYCOL • ASCORBIC ACID • GLYCERIN • TRIETHYL CITRATE • FERULIC ACID • SODIUM HYALURONATE (F.I.L. D34877/1).\nLes listes d’ingrédients entrant dans la composition des produits de notre marque sont régulièrement mises à jour. Avant d’utiliser un produit de notre marque, vous êtes invités à lire la liste d’ingrédients figurant sur son emballage afin de vous assurer que les ingrédients sont adaptés à votre utilisation personnelle","SERUM 10 contient une association synergique d'actifs antioxydants pour une action ciblée sur les rides et la perte d'éclat :\n-10% VITAMINE C PURE : prévient le stress oxydatif en neutralisant les radicaux libres\n- 0,2% ACIDE FERULIQUE : stabilise la vitamine C et optimise son action antioxydante","0635494314205","3606000463981","0635494343205","0635494363210","0635494328202","3606000475380","","302 F - 01","serum anti rides,serum antioxydant,soin antirides,serum vitamine C"]
["Skinceuticals","Serum 10","VFR09344","Trousse Bouclier Intégral Rides + Perte d'éclat - Serum 10 30ml\n","Routine anti-âge sérum antioxydant vitamine C pure + crème solaire visage offerte ","03 - SOINS | 109 - Coffrets | 056 - Visage | 0690 - Anti-âge","3433425405445","FEMME",{"$f":"TEXT(\n  \"2020-08-01\",\n  \"JJ/MM/AA\"\n)","v":""},"56,50","","Saisonnier ","Non","0 635 494 310 207","","","3","120","200","85","220","150","1.0","Unité","","","","","","","","","","","600","285","385","225","03433425405452","24000","1000","1200","900","03433425405476","\n  Flacon 1 PCE\n \n \n \n    \n      \n   ","Découvrez la haute efficacité anti-âge avec votre BOUCLIER INTEGRAL RIDES + PERTE D'ECLAT contre les agresseurs environnementaux à l'origine du vieillissement cutané : votre sérum antioxydant à la vitamine C pure SERUM 10 30ml + votre photoprotection ULTRA FACIAL DEFENSE SPF 50 15ml offerte dans une trousse premium en édition limitée.","SkinCeuticals, la haute efficacité recommandée et prescrite par les dermatologues, médecins et chirurgiens esthétiques. Nos formules associent une forte concentration en actifs purs à des textures à haute absorption cutanée pour offrir une haute efficacité anti-âge autour de 3 principes fondamentaux : prévenir, corriger et protéger.\n\nDECOUVREZ LA HAUTE EFFICACITE ANTI-ÂGE AVEC VOTRE BOUCLIER INTEGRAL RIDES + PERTE D'ECLAT : 15 jours de routine intégrale offerte pour voir la différence, dans une trousse premium.\nL'association d'un sérum antioxydant (bouclier interne) et d'une photoprotection (bouclier externe) permet de protéger la peau et de prévenir efficacement le vieillissement cutané en créant un bouclier intégral contre les radicaux libres générés par les agresseurs environnementaux :\n- Le sérum antioxydant SERUM 10 associe la vitamine C pure (dosée à 10%) et l'acide férulique afin de maximiser l'efficacité antioxydante. Cette formulation synergique optimise la protection de la peau contre les agressions environnementales afin de prévenir l'apparition des signes de vieillissement prématuré dus aux effets néfastes du soleil et de l'environnement (rides, ridules, perte d'éclat, taches brunes). Convient aux peaux sensibles.\n- La photoprotection quotidienne ULTRA FACIAL DEFENSE SPF 50 [OFFERT] protège efficacement la peau des rayons UVB, UVA courts et UVA longs grâce à sa combinaison de filtres à large spectre, tout en hydratant intensément la peau."," ","","","","NA","Tout type de peau","Sensible","Protection Moyenne (SPF 30)","Sérum","","","Anti rides","NA","Flacon","Sans parfum","","Anti âge global","SERUM 10 : le matin, sur peau propre, appliquer 3 à 4 gouttes sur l’ensemble du visage, du cou et du décolleté\n\nULTRA FACIAL DEFENSE SPF 50 : appliquer le produit juste avant de vous exposer au soleil. Renouveler fréquemment et généreusement l’application pour maintenir la protection, notamment après le bain, en cas de sudation ou après vous être essuyé.","740021 13 - INGREDIENTS:  AQUA / WATER • DIPROPYLENE GLYCOL • ASCORBIC ACID • GLYCERIN • TRIETHYL CITRATE • FERULIC ACID • SODIUM HYALURONATE (F.I.L. D34877/1).\nLes listes d’ingrédients entrant dans la composition des produits de notre marque sont régulièrement mises à jour. Avant d’utiliser un produit de notre marque, vous êtes invités à lire la liste d’ingrédients figurant sur son emballage afin de vous assurer que les ingrédients sont adaptés à votre utilisation personnelle","SERUM 10 contient une association synergique d'actifs antioxydants pour une action ciblée sur les rides et la perte d'éclat :\n-10% VITAMINE C PURE : prévient le stress oxydatif en neutralisant les radicaux libres\n- 0,2% ACIDE FERULIQUE : stabilise la vitamine C et optimise son action antioxydante","3606000475380","635494327205","635494345254","","","","","302 F - 01","TROUSSE DUO PREVENTION & PROTECTION,TROUSSE SERUM 10 & ULTRA FACIAL DEFENSE,TROUSSE CADEAUX,TROUSSE PREVENT PROTECT,DUO SKINCEUTICALS ANTIOXYDANT ET PHOTOPROTECTION,TROUSSE SOIN VISAGE SKINCEUTICALS"]
["Skinceuticals","Advanced Brightening Uv Defense Spf50","MB240900","Advanced Brightening UV Defense SPF 50","Soin Solaire Visage Anti-Tâches Très Haute Protection SPF 50+","03 - SOINS | 111 - Solaire | 071 - Protection | 0187 - Visage","3337875702478","FEMME",{"$f":"TEXT(\n  \"2020-03-01\",\n  \"JJ/MM/AA\"\n)","v":""},"26,50","","Permanent ","Non","635494349207","","","108","4320","57","35","29","155","40.0","ml","","","","","","","","","","","6681","285","385","225","03337875733571","267756","955","1155","901","03337875733595","\n  Tube 40 MLT\n \n \n \n    \n      \n   ","Soin solaire quotidien SPF50 haute protection anti-taches","Soin solaire quotidien SPF 50 anti-taches, Advanced Brightening UV Defense SPF 50 délivre une haute protection quotidienne à large spectre contre les UVA/UVB. Doté d'une action correctrice et protectrice grâce à son complexe [1% Acide Tranexamique - 2% Niacinamide], le soin solaire Advanced Brightening UV Defense SPF 50 corrige et atténue l'hyperpigmentation existante tout en protégeant les taches pigmentaire induites par les UVA/UVB pour un teint éclatant.\n\nConvient à tous types de peaux et particulièrement aux peaux sujettes à l'hyperpigmentation."," ","","","","NA","Tout type de peau","","Protection Moyenne (SPF 30)","Fluide","","","NA","","Tube","Sans parfum","Non comédogène","Tâches","Le matin, appliquez sur le visage, le cou et le décolleté avant de se maquiller. Appliquez généreusement 15 minutes avant l'exposition au soleil et réappliquer après une baignade de plus de 40 minutes, après avoir transpiré ou après s’être essuyé avec une serviette. Dans tous les cas, renouveler l’application au minimum toutes les deux heures. Pour les enfants de moins de six mois, consulter un médecin avant utilisation.","855319 15 - INGREDIENTS:  AQUA / WATER • ALCOHOL DENAT. • ETHYLHEXYL TRIAZONE • DROMETRIZOLE TRISILOXANE • ISONONYL ISONONANOATE • ISOPROPYL LAUROYL SARCOSINATE • BUTYL METHOXYDIBENZOYLMETHANE • DIISOPROPYL SEBACATE • BIS-ETHYLHEXYLOXYPHENOL METHOXYPHENYL TRIAZINE • NIACINAMIDE • DIMETHICONE • METHYLENE BIS-BENZOTRIAZOLYL TETRAMETHYLBUTYLPHENOL [NANO] / METHYLENE BIS-BENZOTRIAZOLYL TETRAMETHYLBUTYLPHENOL • OCTOCRYLENE • PROPANEDIOL • ETHYLHEXYL SALICYLATE • CETEARYL ALCOHOL • SILICA • TRANEXAMIC ACID • TOCOPHEROL • PHENOXYETHANOL • PEG-10 DIMETHICONE • CI 77891 / TITANIUM DIOXIDE • POLYGLYCERYL-10 LAURATE • SODIUM STEAROYL GLUTAMATE • CAPRYLYL GLYCOL • BUTYLENE GLYCOL • CETEARYL GLUCOSIDE • MICA • GLYCERIN • PEG-20 • AMMONIUM ACRYLOYLDIMETHYLTAURATE/VP COPOLYMER • TRISODIUM ETHYLENEDIAMINE DISUCCINATE • CARBOMER • INULIN LAURYL CARBAMATE • T-BUTYL ALCOHOL (F.I.L. D241104/1).\nLes listes d’ingrédients entrant dans la composition des produits de notre marque sont régulièrement mises à jour. Avant d’utiliser un produit de notre marque, vous êtes invités à lire la liste d’ingrédients figurant sur son emballage afin de vous assurer que les ingrédients sont adaptés à votre utilisation personnelle","Advanced Brightening UV Defense SPF 50 délivre une haute protection quotidienne à large spectre contre les UVA/UVB. Son complexe d'actifs (1% d'Acide Tranexamique - 2% de Niacinamide) agit directement à la base de l'hyperpigmentation, bloque les médiateurs inflammatoires et prévient des récidives potentielles de taches pigmentatires.","635494349207","635494363210","3606000436442","","","","","303 E - 01","Crème Solaire,Protection Solaire Visage,Solaire Haute Protection,Soin Anti-taches SPF 50"]
["Skinceuticals","Tripeptide-R Neck Repair","S3878600","Tripeptide-R Neck Repair Cou & Décolleté 50ML","Crème anti-rides raffermissante au rétinol pour le cou et le décolleté","03 - SOINS | 112 - Soin visage | 073 - Anti-âge | 0192 - Fermeté et Rides jour","3606000555075","MIXTE",{"$f":"TEXT(\n  \"2020-09-01\",\n  \"JJ/MM/AA\"\n)","v":""},"76,90","","Permanent ","Non","3606000555075","","","36","2880","202","38","38","157","50.0","ml","","","","","","","","","","","7576","246","246","175","03606000555099","606096","1016","1219","901","03606000555105","\n  Flacon Pompe 50 MLT\n \n \n \n    \n      \n   ","Soin anti-âge cou & décolleté au rétinol qui cible le vieillissement de la peau du cou : il lisse les rides horizontales, corrige le relâchement cutané et la perte de fermeté, redessine les contours et réduit le double-menton.","Marque médicale esthétique américaine N°1 au monde, prescrite et recommandée par plus de 8500 médecins et chirurgiens esthétiques. Nos formules associent une forte concentration en actifs purs à des textures à haute absorption cutanée pour offrir une haute efficacité anti-âge autour de 3 principes fondamentaux : prévenir, corriger et protéger.\n\nConçu pour traiter spécifiquement la zone sensible du cou et du décolleté, le soin anti-rides raffermissant Tripeptide-R Neck Repair renferme une combinaison puissante d'actifs haute efficacité : 0.2% de rétinol, 2.5% de tripeptide et 5% de glaucine. Formulé avec une texture hydratante ultra-légère, ce soin anti-âge procure un effet tenseur immédiat et corrige visiblement les signes précoces et/ou avancés du vieillissement de la peau du cou : rides horizontales, relâchement cutané, perte de fermeté, aspect fripé de la peau, double-menton. Convient à tous les types de peaux, à l'exception des peaux les plus sensibles."," ","","","","NA","Mature","Tout type de peau","NA","Crème","","","Anti rides","NA","Flacon pompe","Sans parfum","","Anti âge global","Un soir sur deux, appliquer 1 à 2 pressions en effectuant des massages dans un mouvement ascendant du décolleté jusqu'au menton. Après 1 semaine, utiliser tous les soirs puis passer à 2 utilisations quotidiennes en fonction de la tolérance.","855331 12 - INGREDIENTS:  AQUA / WATER • GLYCERIN • DIMETHICONE • HYDROGENATED POLYISOBUTENE • VINYL DIMETHICONE/METHICONE SILSESQUIOXANE CROSSPOLYMER • METHYL METHACRYLATE CROSSPOLYMER • AMMONIUM POLYACRYLOYLDIMETHYL TAURATE • HELIANTHUS ANNUUS SEED OIL UNSAPONIFIABLES / SUNFLOWER SEED OIL UNSAPONIFIABLES • MYRISTYL MYRISTATE • ALLYL METHACRYLATES CROSSPOLYMER • SODIUM HYDROXIDE • POTASSIUM CETYL PHOSPHATE • GLYCERYL STEARATE SE • CAPRYLOYL GLYCINE • CAPRYLYL GLYCOL • SILICA SILYLATE • PENTYLENE GLYCOL • STEARIC ACID • HYDROLYZED RICE PROTEIN • PALMITIC ACID • RETINOL • POLYSORBATE 20 • COCO-GLUCOSIDE • ARGILLA / MAGNESIUM ALUMINUM SILICATE • XANTHAN GUM • ALCOHOL • BHT • SODIUM CITRATE • MYRISTIC ACID • LAVANDULA ANGUSTIFOLIA OIL / LAVENDER OIL • ROSMARINUS OFFICINALIS LEAF OIL / ROSEMARY LEAF OIL • MENTHA PIPERITA OIL / PEPPERMINT OIL • GLAUCINE • CITRIC ACID • LINALOOL • TETRADECYL AMINOBUTYROYLVALYLAMINOBUTYRIC UREA TRIFLUOROACETATE • MAGNESIUM CHLORIDE • TOCOPHEROL • PROPYL GALLATE • BIOTIN (F.I.L. D247391/1).\nLes listes d’ingrédients entrant dans la composition des produits de notre marque sont régulièrement mises à jour. Avant d’utiliser un produit de notre marque, vous êtes invités à lire la liste d’ingrédients figurant sur son emballage afin de vous assurer que les ingrédients sont adaptés à votre utilisation personnelle","Combinaison d'actifs haute efficacité pour une action ciblée sur le cou et le décolleté : 0,2% RETINOL pour lisser les rides + 2,5% TRIPEPTIDE pour corriger le relâchement et la perte de fermeté + 5% GLAUCINE pour réduire le double-menton.","0635494345254","0635494358209","3606000435087","","","","","302 F - 01","soin lifting cou,crème lifting cou,crème anti-rides cou et décolleté,crème au retinol,crème anti-âge au retinol,soin cou et décolleté "]
["Skinceuticals","Retexturing Activator","MB503800","RETEXTURING ACTIVATOR Serum exfoliant à l'acide hyaluronique 30ml","Sérum exfoliant pour le visage à l'acide hyaluronique","03 - SOINS | 112 - Soin visage | 081 - Soin quotidien | 0632 - Sérum","0635494327205","MIXTE",{"$f":"TEXT(\n  \"2018-12-07\",\n  \"JJ/MM/AA\"\n)","v":""},"53,60","","Permanent ","Non","0635494327205","","","35","3360","90","38","38","108","30.0","ml","","","","","","","","","","","3360","217","317","136","03337875836371","323060","968","1168","817","03337875836395","\n  Flacon 30 MLT\n \n \n \n    \n      \n   ","Sérum peeling double-action non gras, doté d’ingrédients exfoliants et hydratants, qui améliore l’apparence des rides, des ridules et du teint et qui lisse le grain de peau.","Sérum hydratant et exfoliant, Retexturing Activator associe l’acide hyaluronique à un complexe d’actifs exfoliants breveté hydroxyethyl urée/acide aminosulfonique pour révéler une peau visiblement plus jeune, plus belle, plus éclatante, sans irritations ni effets secondaires. Retexturing Activator améliore spectaculairement l’apparence des rides, des ridules, des irrégularités du teint et des rugosités du grain de peau tout en prévenant l’apparition des imperfections en éliminant les risques d’obstruction des pores par les cellules mortes."," ","","","","NA","Tout type de peau","Normale","NA","Sérum","","","Exfolie","NA","Flacon","Sans parfum","","NA","Deux fois par jour, appliquer 4 à 6 gouttes sur l'ensemble du visage, du cou et du décolleté.","740035 19 - INGREDIENTS:  AQUA / WATER • HYDROXYETHYL UREA • HYDROXYETHYLPIPERAZINE ETHANE SULFONIC ACID • PENTYLENE GLYCOL • SACCHAROMYCES/XYLINUM/ BLACK TEA FERMENT • GLYCERIN • SODIUM HYALURONATE • METHYLPARABEN • PHENOXYETHANOL (F.I.L. D42446/1).\nLes listes d’ingrédients entrant dans la composition des produits de notre marque sont régulièrement mises à jour. Avant d’utiliser un produit de notre marque, vous êtes invités à lire la liste d’ingrédients figurant sur son emballage afin de vous assurer que les ingrédients sont adaptés à votre utilisation personnelle","Hydrate et exfolie le visage pour une peau lisse et éclatante.\n- 25 % de composé hydroxyethyl urée/acide aminosulfonique : Exfolie pour régénérer la couche cornée et rétablir les niveaux d’hydratation critiques pour une desquamation uniforme.\n- Kombuchka : Ce ferment de thé noir améliore la qualité globale de la peau en lui apportant douceur, éclat et clarté. Il possède également un effet antioxydant.\n- Acide hyaluronique : Humectant naturel capable de retenir 1 000 fois son propre poids en eau, cet actif permet à la peau de retenir l’eau et lisse immédiatement les irrégularités.","3606000463783","0635494310207","0635494394207","","","","","302 F - 01","sérum hydratant à l'acide hyaluronique,exfoliant visage,soin exfoliant visage,soin exfoliant à l'acide hyaluronique,sérum à l'acide hyaluronique"]